Workbook

Sheet Custom_Material_Properties (hidden)
A1: Material Name | B1: Test the Power | D1: Folder Path | E1: C:\Users\a0226740\Desktop
A2: Relative µ_r (mu_x) | B2: 1 | D2: FEMM Project Name | E2: test
A3: Relative µ_z (mu_y) | B3: 1 | D3: FEMM Accepted Folder Path | E3: C:\\Users\\a0226740\\Desktop
A4: H_c | B4: 23.34432 | D4: FEMM Accepted Project Path (.fem) | E4: C:\\Users\\a0226740\\Desktop\\test.fem
A5: J | B5: 12.3423 | D5: FEMM Accepted Project Path (.ans) | E5: C:\\Users\\a0226740\\Desktop\\test.ans
A6: Cduct (Sigma) | B6: 12.222 | D6: FEMM Accepted Project Path (.emf) | E6: C:\\Users\\a0226740\\Desktop\\test.emf
A7: Lam thickness (Lam_d) | B7: 0 | D7: FEMM Accepted Project Path (.bmp) | E7: C:\\Users\\a0226740\\Desktop\\test.bmp
A8: Phi_hmax | B8: 0
A9: Lam_fill | B9: 1
A10: Lamtype | B10: 0
A11: Phi_hr (Phi_hx) | B11: 0
A12: Phi_hz (Phi_hy) | B12: 0
A13: Number of Strands (NStrands) | B13: 0
A14: Strand dia (WireD) | B14: 0

Sheet DesignTool
D3: units
A4: Design Stage | B4: 16 | C4: SubStage
A5: General Implementation | F5: Magnet Dimensions | U5: =IF(AND(OR(PartType="Omnipolar switch",PartType="Unipolar switch"),OR(Magnet_Movement="Head-On",Magnet_Movement="Slide-By")),"d", IF(AND(OR(PartType="Omnipolar switch",PartType="Unipolar switch"),Magnet_Movement="Hinge"),"a (degrees)","")) -> d
A6: Magnet Movement | B6: Slide-By | C6: =IF(AND(A6<>"", OR(Magnet_Movement="",Magnet_Movement="Select Movement")),"Cue","") ->  | T6: =IF(OR(PartType="Omnipolar switch",PartType="Unipolar switch"),"BOP Typ","") -> BOP Typ
A7: Magnet Shape | B7: Cylinder | C7: =IF(AND(A7<>"", OR(Magnet_Shape="",Magnet_Shape="Select Shape")),"Cue","") ->  | T7: =IF(OR(PartType="Omnipolar switch",PartType="Unipolar switch"),"BRP Typ","") -> BRP Typ
A8: Magnet Orientation | B8: South Facing DUT | C8: =IF(OR( Magnet_Orientation="",Magnet_Orientation="Select Orientation"),"Cue","") ->  | T8: =IF(OR(PartType="Omnipolar switch",PartType="Unipolar switch"),"BOP Max","") -> BOP Max
A9: Polarity | B9: =IF(Magnet_Orientation="North Facing DUT", -1, IF(Magnet_Orientation="South Facing DUT", 1, 0)) -> 1 | T9: =IF(OR(PartType="Omnipolar switch",PartType="Unipolar switch"),"BRP Min","") -> BRP Min
A10: Magnet Characteristics | F10: XZ-Plane Displacement Dimensions
A11: =IF(Magnet_Shape="BLOCK","L ",IF(Magnet_Shape="Ring","Ri",IF(Magnet_Shape="Cylinder","",""))) ->  | C11: =IF(AND(A11<>"", OR(L="",L="Enter Length",ISNUMBER(L)=FALSE)),"Cue","") -> 
A12: =IF(Magnet_Shape="BLOCK","W",IF(OR(Magnet_Shape="CYLINDER",Magnet_Shape="Sphere",Magnet_Shape="Ring"),"R","")) -> R | B12: 1.55 | C12: =IF(AND(A12<>"", OR(W="",W="Enter Width", W="Enter Radius", ISNUMBER(W)=FALSE)),"Cue","") ->  | D12: mm
A13: =IF(OR(Magnet_Shape="Select Shape",Magnet_Shape="Sphere",Magnet_Shape=""),"","T") -> T | B13: 6 | C13: =IF(AND(A13<>"", OR(D="",D="Enter Thickness", ISNUMBER(D)=FALSE)),"Cue","") ->  | D13: mm
A14: Magnet Material | B14: N35 | C14: =IF(AND(A14<>"", OR(Magnet_Material="",Magnet_Material="Choose Material")),"Cue","") -> 
A15: Br (Remanence) | B15: =IFERROR(IF(Magnet_Material="Custom","Enter value", VLOOKUP(Magnet_Material,Mag_Material_List,2,FALSE)),"") -> 12000 | C15: =IF(Magnet_Material="Custom","Cue","") ->  | D15: G
A16: Displacement Dimensions
A17: =IF(Magnet_Movement="Select Movement","",IF(OR(Magnet_Movement="Head-On",Magnet_Movement="Slide-By"),"d1",IF(Magnet_Movement="Hinge","a1"))) -> d1 | B17: 2.05 | C17: =IF(AND(A17<>"", OR(d1MIN="",d1MIN="Enter displacement", ISNUMBER(d1MIN)=FALSE)),"Cue","") ->  | D17: =IF(A17="d1","mm",IF(A17="a1","degrees","")) -> mm
A18: =IF(Magnet_Movement="Select Movement","",IF(OR(Magnet_Movement="Head-On",Magnet_Movement="Slide-By"),"d2",IF(Magnet_Movement="Hinge","a2"))) -> d2 | B18: 2.05 | C18: =IF(AND(A18<>"", OR(d2MAX="",d2MAX="Enter displacement",ISNUMBER(d2MAX)=FALSE)),"Cue","") ->  | D18: =IF(A18="d2","mm",IF(A18="a2","degrees","")) -> mm
A19: =IF(AND(Magnet_Movement<>"Slide-By",Magnet_Movement<>""),"X-Offset","") ->  | C19: =IF(AND(A19<>"", OR(d3Text="",d3Text="Enter Offset",ISNUMBER(d3Text)=FALSE)),"Cue","") -> 
A20: =IF(Magnet_Movement<>"","Y-Offset","") -> Y-Offset | B20: 1 | C20: =IF(AND(A20<>"", OR(YOffs="",YOffs="Enter Offset",ISNUMBER(YOffs)=FALSE)),"Cue","") ->  | D20: mm
A21: =IF(AND(Magnet_Movement<>"Head-On",Magnet_Movement<>""), "Sensor Z-Offset", "") -> Sensor Z-Offset | B21: 0 | C21: =IF(AND(A21<>"", OR(Sensor_ZOffs="",Sensor_ZOffs="Enter Offset",ISNUMBER(Sensor_ZOffs)=FALSE)),"Cue","") ->  | D21: mm | L21: DRV5021A1
A22: =IF(Magnet_Movement="Hinge", "Magnet Z-Offset", "") ->  | C22: =IF(AND(A22<>"", OR(Mag_ZOffs="",Mag_ZOffs="Enter Offset",ISNUMBER(Mag_ZOffs)=FALSE)),"Cue","") -> 
A23: =IF(Magnet_Movement="Hinge", "Arc Radius", "") ->  | C23: =IF(AND(A23<>"", OR(B23="",B23="Enter Radius Length",ISNUMBER(B23)=FALSE)),"Cue","") ->  | U23: Max | V23: Min
A24: Hall offsets from Center of package surface
A25: x1 | B25: =_xlfn.IFNA(VLOOKUP(B41,parametric_table!A1:AV107,MATCH("X-Sensor Loc (mm)",parametric_table!$A$1:$AV$1,0),FALSE),"") -> NA
A26: y1 | B26: =_xlfn.IFNA(VLOOKUP(B41,parametric_table!A1:AV107,MATCH("Y-Sensor Loc (mm)",parametric_table!$A$1:$AV$1,0),FALSE),"") -> NA
A27: z1 | B27: =_xlfn.IFNA(VLOOKUP(B41,parametric_table!A1:AV107,MATCH("Z-Sensor Loc (mm)",parametric_table!$A$1:$AV$1,0),FALSE),"") -> 0.47
A28: x2 | B28: NA
A29: y2 | B29: NA
A30: z2 | B30: NA
A31: x3 | B31: NA
A32: y3 | B32: NA
A33: z3 | B33: NA
A34: Sensor Operating Conditions | U34: =MAX(F67:F1087) -> -88.55885874 | V34: =MIN(F67:F1087) -> -88.55885874
A35: Temperature Min | D35: °C | V35: =MIN(G67:G1087) -> -177.1177175
A36: Temperature Nominal | C36: "IF(AND(A36<>"", OR(B36="",B36="Enter Temperature")),"Cue","")" | D36: °C | T36: Bz | U36: =MAX(H67:H1087) -> 319.7791729 | V36: =MIN(H67:H1087) -> 319.7791729
A37: Temperature Max | D37: °C | F37: *Dimensions not to scale
A38: VSUPPLY (nominal) | B38: 3.3 | C38: =IF(AND(A38<>"", OR(VSUPPLY="",VSUPPLY="Enter Voltage", ISNUMBER(VSUPPLY)=FALSE)),"Cue","") ->  | D38: V | F38: XY-Plane Displacement Dimensions
A39: Sensor Filters | U39: ="True" -> True
A40: Type of Device | B40: Unipolar switch | C40: =IF(AND(A40<>"", OR(PartType="",PartType="Select Type")),"Cue","") -> 
A41: Device | B41: DRV5021A1 | C41: =IF(AND(A41<>"", OR(PartNum="",PartNum="Enter Temperature")),"Cue","") -> 
A42: package | B42: =_xlfn.IFNA(VLOOKUP(B41,parametric_table!A1:AV107,MATCH("Package Group",parametric_table!$A$1:$AV$1,0),FALSE),"") -> SOT-23|3 | C42: =IF(AND(A42<>"", B42=""),"Cue","") -> 
C43: =IF(B42<>"","Cue","") -> Cue
A44: Sensor Axis | B44: =_xlfn.IFNA(VLOOKUP(B41,parametric_table!A1:AV107,MATCH("Sensor Axis",parametric_table!$A$1:$AV$1,0),FALSE),"") -> 2
A45: Operating Region | B45: =_xlfn.IFNA(VLOOKUP(B41,parametric_table!A1:AV107,MATCH("Operating Region Used",parametric_table!$A$1:$AV$1,0),FALSE),"") -> 1 | F45: *Dimensions not to Scale
A46: VL (MIN) | B46: =_xlfn.IFNA(VLOOKUP(B41,parametric_table!A1:AV107,MATCH("Vout Min (V)",parametric_table!$A$1:$AV$1,0),FALSE),"") -> 0 | D46: V | F46: =IF(Magnet_Movement="Hinge", "*Magnet Offsets when magnet oriented at 0°", IF(Magnet_Movement="Slide-By", "*Y-Offset when Magnet x displacement = 0.","")) -> *Y-Offset when Magnet x displacement = 0.
A47: VL (MAX) | B47: =IFERROR(_xlfn.IFNA(VLOOKUP(B41,parametric_table!A1:AV107,MATCH("Vout Max (V)",parametric_table!$A$1:$AV$1,0),FALSE),""),"") -> 3.3 | D47: V
A48: VQ (max) | B48: =_xlfn.IFNA(VLOOKUP(B41,parametric_table!A1:AV107,MATCH("VQ (V)",parametric_table!$A$1:$AV$1,0),FALSE),"") -> 0 | D48: V
A49: BIN,MIN | B49: =_xlfn.IFNA(_xlfn.FILTERXML("<t><s>"&SUBSTITUTE(VLOOKUP(B41,parametric_table!A1:AV107,MATCH("BL min",parametric_table!$A$1:$AV$1,0),FALSE),",","</s><s>")&"</s></t>","//s["&B45&"]"),"") ->  | D49: mT
A50: BIN,MAX | B50: =_xlfn.IFNA(_xlfn.FILTERXML("<t><s>"&SUBSTITUTE(VLOOKUP(B41,parametric_table!A1:AV107,MATCH("BL max",parametric_table!$A$1:$AV$1,0),FALSE),",","</s><s>")&"</s></t>","//s["&B45&"]"),"") ->  | D50: mT
A51: Sensitivity (min) | B51: =_xlfn.IFNA(IF(PartType<>"Ratiometric PWM output",_xlfn.FILTERXML("<t><s>"&SUBSTITUTE(VLOOKUP(B41,parametric_table!A1:AV107,MATCH("Sensitivity Min (mV/mT)",parametric_table!$A$1:$AV$1,0),FALSE),",","</s><s>")&"</s></t>","//s["&B45&"]"), _xlfn.FILTERXML("<t><s>"&SUBSTITUTE(VLOOKUP(B41,parametric_table!A1:AV107,MATCH("Sensitivity (%D/mT)",parametric_table!$A$1:$AV$1,0),FALSE),",","</s><s>")&"</s></t>","//s["&B45&"]")),"") ->  | D51: mV/mT
A52: Sensitivity (typ) | B52: =_xlfn.IFNA(IF(PartType<>"Ratiometric PWM output",_xlfn.FILTERXML("<t><s>"&SUBSTITUTE(VLOOKUP(B41,parametric_table!A1:AV107,MATCH("Sensitivity Typ (mV/mT)",parametric_table!$A$1:$AV$1,0),FALSE),",","</s><s>")&"</s></t>","//s["&B45&"]"), _xlfn.FILTERXML("<t><s>"&SUBSTITUTE(VLOOKUP(B41,parametric_table!A1:AV107,MATCH("Sensitivity (%D/mT)",parametric_table!$A$1:$AV$1,0),FALSE),",","</s><s>")&"</s></t>","//s["&B45&"]")),"") ->  | D52: mV/mT
A53: Sensitivity (max) | B53: =_xlfn.IFNA(_xlfn.FILTERXML("<t><s>"&SUBSTITUTE(VLOOKUP(B41,parametric_table!A1:AV107,MATCH("Sensitivity Max (mV/mT)",parametric_table!$A$1:$AV$1,0),FALSE),",","</s><s>")&"</s></t>","//s["&B45&"]"),"") ->  | D53: mV/mT
A54: BOP MIN | B54: =_xlfn.IFNA(VLOOKUP(B41,parametric_table!A1:AV107,MATCH("BOP Min (mT)",parametric_table!$A$1:$AV$1,0),FALSE),"") -> 1.4 | D54: mT
A55: BOP TYP | B55: =_xlfn.IFNA(VLOOKUP(B41,parametric_table!A1:AV107,MATCH("BOP Typ (mT)",parametric_table!$A$1:$AV$1,0),FALSE),"") -> 2.9 | D55: mT
A56: BOP MAX | B56: =_xlfn.IFNA(VLOOKUP(B41,parametric_table!A1:AV107,MATCH("BOP Max (mT)",parametric_table!$A$1:$AV$1,0),FALSE),"") -> 4.4 | D56: mT
A57: BRP MIN | B57: =_xlfn.IFNA(VLOOKUP(B41,parametric_table!A1:AV107,MATCH("BRP Min (mT)",parametric_table!$A$1:$AV$1,0),FALSE),"") -> 0.4 | D57: mT
A58: BRP TYP | B58: =_xlfn.IFNA(VLOOKUP(B41,parametric_table!A1:AV107,MATCH("BRP Typ (mT)",parametric_table!$A$1:$AV$1,0),FALSE),"") -> 1.8 | D58: mT
A59: BRP MAX | B59: =_xlfn.IFNA(VLOOKUP(B41,parametric_table!A1:AV107,MATCH("BRP Max (mT)",parametric_table!$A$1:$AV$1,0),FALSE),"") -> 3 | D59: mT
F64: StepSize
F65: =(MAX(B29:B30)-MIN(B29:B30))/1000 -> 0
A66: dx (mm) | B66: dy (mm) | D66: dz (mm) | F66: Bx (mT) | G66: By (mT) | H66: Bz (mT) | I66: Angle (°) | L66: =IF(PartType<>"Ratiometric PWM output", "VOUT(V)", "D (%)") -> VOUT(V) | M66: VOUT2(V) | N66: VBOP | O66: VBRP
A67: 2.05 | B67: 1 | D67: 0 | F67: -88.55885874 | G67: -177.1177175 | H67: 319.7791729 | L67: =IF($L$21=PartNum,IF(PartType="Omnipolar switch",IF(ABS(H67)>BRP_Typ,0,VOH), IF(PartType="Unipolar switch",IF(H67>BRP_Typ,0,VOH), IF(PartType="Latch",IF(H67<BRP_Typ,VOH,0), IF(PartType="Ratiometric PWM output", IF(50+GAIN*H67<5.3,5.3,IF(50+GAIN*H67>94.7,94.7,50+GAIN*H67)), IF(OR(PartType="Ratiometric unipolar",PartType="Ratiometric bipolar",PartType="Bipolar"),IF(AND(VQ+H67*GAIN/1000<=VOH,VQ+H67*GAIN/1000>=VOL),VQ+H67*GAIN/1000,IF(VQ+H67*GAIN/1000>VOH,VOH,VOL))))))),0) -> 0 | M67: =IF($L$21=PartNum,IF(PartType="Omnipolar switch",IF(ABS(H67)>BOP_Typ,0,VOH), IF(PartType="Unipolar switch",IF(H67>BOP_Typ,0,VOH), IF(PartType="Latch",IF(H67<BOP_Typ,VOH,0),""))),0) -> 0 | N67: =IF(PartType="Omnipolar switch",IF(ABS(H67)>BOP_Max,0,VOH),IF(PartType="Unipolar switch",IF(H67>BOP_Max,0,VOH),"")) -> 0 | O67: =IF(PartType="Omnipolar switch",IF(ABS(H67)>BRP_Min,0,VOH),IF(PartType="Unipolar switch",IF(H67>BRP_Min,0,VOH),"")) -> 0
A68: 2.05 | B68: 1 | D68: 0 | F68: -88.55885874 | G68: -177.1177175 | H68: 319.7791729 | L68: =IF($L$21=PartNum,IF(PartType="Omnipolar switch",IF(ABS(H68)>BRP_Typ,0,VOH), IF(PartType="Unipolar switch",IF(H68>BRP_Typ,0,VOH), IF(PartType="Latch",IF(H68<BRP_Typ,VOH,0), IF(PartType="Ratiometric PWM output", IF(50+GAIN*H68<5.3,5.3,IF(50+GAIN*H68>94.7,94.7,50+GAIN*H68)), IF(OR(PartType="Ratiometric unipolar",PartType="Ratiometric bipolar",PartType="Bipolar"),IF(AND(VQ+H68*GAIN/1000<=VOH,VQ+H68*GAIN/1000>=VOL),VQ+H68*GAIN/1000,IF(VQ+H68*GAIN/1000>VOH,VOH,VOL))))))),0) -> 0 | M68: =IF($L$21=PartNum,IF(PartType="Omnipolar switch",IF(ABS(H68)>BOP_Typ,0,VOH), IF(PartType="Unipolar switch",IF(H68>BOP_Typ,0,VOH), IF(PartType="Latch",IF(H68<BOP_Typ,VOH,0),""))),0) -> 0 | N68: 0 | O68: 0
A69: 2.05 | B69: 1 | D69: 0 | F69: -88.55885874 | G69: -177.1177175 | H69: 319.7791729 | L69: 0 | M69: 0 | N69: 0 | O69: 0
A70: 2.05 | B70: 1 | D70: 0 | F70: -88.55885874 | G70: -177.1177175 | H70: 319.7791729 | L70: 0 | M70: 0 | N70: 0 | O70: 0
A71: 2.05 | B71: 1 | D71: 0 | F71: -88.55885874 | G71: -177.1177175 | H71: 319.7791729 | L71: 0 | M71: 0 | N71: 0 | O71: 0
A72: 2.05 | B72: 1 | D72: 0 | F72: -88.55885874 | G72: -177.1177175 | H72: 319.7791729 | L72: 0 | M72: 0 | N72: 0 | O72: 0
A73: 2.05 | B73: 1 | D73: 0 | F73: -88.55885874 | G73: -177.1177175 | H73: 319.7791729 | L73: 0 | M73: 0 | N73: 0 | O73: 0
A74: 2.05 | B74: 1 | D74: 0 | F74: -88.55885874 | G74: -177.1177175 | H74: 319.7791729 | L74: 0 | M74: 0 | N74: 0 | O74: 0
A75: 2.05 | B75: 1 | D75: 0 | F75: -88.55885874 | G75: -177.1177175 | H75: 319.7791729 | L75: 0 | M75: 0 | N75: 0 | O75: 0
A76: 2.05 | B76: 1 | D76: 0 | F76: -88.55885874 | G76: -177.1177175 | H76: 319.7791729 | L76: 0 | M76: 0 | N76: 0 | O76: 0
A77: 2.05 | B77: 1 | D77: 0 | F77: -88.55885874 | G77: -177.1177175 | H77: 319.7791729 | L77: 0 | M77: 0 | N77: 0 | O77: 0
A78: 2.05 | B78: 1 | D78: 0 | F78: -88.55885874 | G78: -177.1177175 | H78: 319.7791729 | L78: 0 | M78: 0 | N78: 0 | O78: 0
A79: 2.05 | B79: 1 | D79: 0 | F79: -88.55885874 | G79: -177.1177175 | H79: 319.7791729 | L79: 0 | M79: 0 | N79: 0 | O79: 0
A80: 2.05 | B80: 1 | D80: 0 | F80: -88.55885874 | G80: -177.1177175 | H80: 319.7791729 | L80: 0 | M80: 0 | N80: 0 | O80: 0
A81: 2.05 | B81: 1 | D81: 0 | F81: -88.55885874 | G81: -177.1177175 | H81: 319.7791729 | L81: 0 | M81: 0 | N81: 0 | O81: 0
A82: 2.05 | B82: 1 | D82: 0 | F82: -88.55885874 | G82: -177.1177175 | H82: 319.7791729 | L82: 0 | M82: 0 | N82: 0 | O82: 0
A83: 2.05 | B83: 1 | D83: 0 | F83: -88.55885874 | G83: -177.1177175 | H83: 319.7791729 | L83: 0 | M83: 0 | N83: 0 | O83: 0
A84: 2.05 | B84: 1 | D84: 0 | F84: -88.55885874 | G84: -177.1177175 | H84: 319.7791729 | L84: 0 | M84: 0 | N84: 0 | O84: 0
A85: 2.05 | B85: 1 | D85: 0 | F85: -88.55885874 | G85: -177.1177175 | H85: 319.7791729 | L85: 0 | M85: 0 | N85: 0 | O85: 0
A86: 2.05 | B86: 1 | D86: 0 | F86: -88.55885874 | G86: -177.1177175 | H86: 319.7791729 | L86: 0 | M86: 0 | N86: 0 | O86: 0
A87: 2.05 | B87: 1 | D87: 0 | F87: -88.55885874 | G87: -177.1177175 | H87: 319.7791729 | L87: 0 | M87: 0 | N87: 0 | O87: 0
A88: 2.05 | B88: 1 | D88: 0 | F88: -88.55885874 | G88: -177.1177175 | H88: 319.7791729 | L88: 0 | M88: 0 | N88: 0 | O88: 0
A89: 2.05 | B89: 1 | D89: 0 | F89: -88.55885874 | G89: -177.1177175 | H89: 319.7791729 | L89: 0 | M89: 0 | N89: 0 | O89: 0
A90: 2.05 | B90: 1 | D90: 0 | F90: -88.55885874 | G90: -177.1177175 | H90: 319.7791729 | L90: 0 | M90: 0 | N90: 0 | O90: 0
A91: 2.05 | B91: 1 | D91: 0 | F91: -88.55885874 | G91: -177.1177175 | H91: 319.7791729 | L91: 0 | M91: 0 | N91: 0 | O91: 0
A92: 2.05 | B92: 1 | D92: 0 | F92: -88.55885874 | G92: -177.1177175 | H92: 319.7791729 | L92: 0 | M92: 0 | N92: 0 | O92: 0
A93: 2.05 | B93: 1 | D93: 0 | F93: -88.55885874 | G93: -177.1177175 | H93: 319.7791729 | L93: 0 | M93: 0 | N93: 0 | O93: 0
A94: 2.05 | B94: 1 | D94: 0 | F94: -88.55885874 | G94: -177.1177175 | H94: 319.7791729 | L94: 0 | M94: 0 | N94: 0 | O94: 0
A95: 2.05 | B95: 1 | D95: 0 | F95: -88.55885874 | G95: -177.1177175 | H95: 319.7791729 | L95: 0 | M95: 0 | N95: 0 | O95: 0
A96: 2.05 | B96: 1 | D96: 0 | F96: -88.55885874 | G96: -177.1177175 | H96: 319.7791729 | L96: 0 | M96: 0 | N96: 0 | O96: 0
A97: 2.05 | B97: 1 | D97: 0 | F97: -88.55885874 | G97: -177.1177175 | H97: 319.7791729 | L97: 0 | M97: 0 | N97: 0 | O97: 0
A98: 2.05 | B98: 1 | D98: 0 | F98: -88.55885874 | G98: -177.1177175 | H98: 319.7791729 | L98: 0 | M98: 0 | N98: 0 | O98: 0
A99: 2.05 | B99: 1 | D99: 0 | F99: -88.55885874 | G99: -177.1177175 | H99: 319.7791729 | L99: 0 | M99: 0 | N99: 0 | O99: 0
A100: 2.05 | B100: 1 | D100: 0 | F100: -88.55885874 | G100: -177.1177175 | H100: 319.7791729 | L100: 0 | M100: 0 | N100: 0 | O100: 0
A101: 2.05 | B101: 1 | D101: 0 | F101: -88.55885874 | G101: -177.1177175 | H101: 319.7791729 | L101: 0 | M101: 0 | N101: 0 | O101: 0
A102: 2.05 | B102: 1 | D102: 0 | F102: -88.55885874 | G102: -177.1177175 | H102: 319.7791729 | L102: 0 | M102: 0 | N102: 0 | O102: 0
A103: 2.05 | B103: 1 | D103: 0 | F103: -88.55885874 | G103: -177.1177175 | H103: 319.7791729 | L103: 0 | M103: 0 | N103: 0 | O103: 0
A104: 2.05 | B104: 1 | D104: 0 | F104: -88.55885874 | G104: -177.1177175 | H104: 319.7791729 | L104: 0 | M104: 0 | N104: 0 | O104: 0
A105: 2.05 | B105: 1 | D105: 0 | F105: -88.55885874 | G105: -177.1177175 | H105: 319.7791729 | L105: 0 | M105: 0 | N105: 0 | O105: 0
A106: 2.05 | B106: 1 | D106: 0 | F106: -88.55885874 | G106: -177.1177175 | H106: 319.7791729 | L106: 0 | M106: 0 | N106: 0 | O106: 0
A107: 2.05 | B107: 1 | D107: 0 | F107: -88.55885874 | G107: -177.1177175 | H107: 319.7791729 | L107: 0 | M107: 0 | N107: 0 | O107: 0
A108: 2.05 | B108: 1 | D108: 0 | F108: -88.55885874 | G108: -177.1177175 | H108: 319.7791729 | L108: 0 | M108: 0 | N108: 0 | O108: 0
A109: 2.05 | B109: 1 | D109: 0 | F109: -88.55885874 | G109: -177.1177175 | H109: 319.7791729 | L109: 0 | M109: 0 | N109: 0 | O109: 0
A110: 2.05 | B110: 1 | D110: 0 | F110: -88.55885874 | G110: -177.1177175 | H110: 319.7791729 | L110: 0 | M110: 0 | N110: 0 | O110: 0
A111: 2.05 | B111: 1 | D111: 0 | F111: -88.55885874 | G111: -177.1177175 | H111: 319.7791729 | L111: 0 | M111: 0 | N111: 0 | O111: 0
A112: 2.05 | B112: 1 | D112: 0 | F112: -88.55885874 | G112: -177.1177175 | H112: 319.7791729 | L112: 0 | M112: 0 | N112: 0 | O112: 0
A113: 2.05 | B113: 1 | D113: 0 | F113: -88.55885874 | G113: -177.1177175 | H113: 319.7791729 | L113: 0 | M113: 0 | N113: 0 | O113: 0
A114: 2.05 | B114: 1 | D114: 0 | F114: -88.55885874 | G114: -177.1177175 | H114: 319.7791729 | L114: 0 | M114: 0 | N114: 0 | O114: 0
A115: 2.05 | B115: 1 | D115: 0 | F115: -88.55885874 | G115: -177.1177175 | H115: 319.7791729 | L115: 0 | M115: 0 | N115: 0 | O115: 0
A116: 2.05 | B116: 1 | D116: 0 | F116: -88.55885874 | G116: -177.1177175 | H116: 319.7791729 | L116: 0 | M116: 0 | N116: 0 | O116: 0
A117: 2.05 | B117: 1 | D117: 0 | F117: -88.55885874 | G117: -177.1177175 | H117: 319.7791729 | L117: 0 | M117: 0 | N117: 0 | O117: 0
A118: 2.05 | B118: 1 | D118: 0 | F118: -88.55885874 | G118: -177.1177175 | H118: 319.7791729 | L118: 0 | M118: 0 | N118: 0 | O118: 0
A119: 2.05 | B119: 1 | D119: 0 | F119: -88.55885874 | G119: -177.1177175 | H119: 319.7791729 | L119: 0 | M119: 0 | N119: 0 | O119: 0
A120: 2.05 | B120: 1 | D120: 0 | F120: -88.55885874 | G120: -177.1177175 | H120: 319.7791729 | L120: 0 | M120: 0 | N120: 0 | O120: 0
A121: 2.05 | B121: 1 | D121: 0 | F121: -88.55885874 | G121: -177.1177175 | H121: 319.7791729 | L121: 0 | M121: 0 | N121: 0 | O121: 0
A122: 2.05 | B122: 1 | D122: 0 | F122: -88.55885874 | G122: -177.1177175 | H122: 319.7791729 | L122: 0 | M122: 0 | N122: 0 | O122: 0
A123: 2.05 | B123: 1 | D123: 0 | F123: -88.55885874 | G123: -177.1177175 | H123: 319.7791729 | L123: 0 | M123: 0 | N123: 0 | O123: 0
A124: 2.05 | B124: 1 | D124: 0 | F124: -88.55885874 | G124: -177.1177175 | H124: 319.7791729 | L124: 0 | M124: 0 | N124: 0 | O124: 0
A125: 2.05 | B125: 1 | D125: 0 | F125: -88.55885874 | G125: -177.1177175 | H125: 319.7791729 | L125: 0 | M125: 0 | N125: 0 | O125: 0
A126: 2.05 | B126: 1 | D126: 0 | F126: -88.55885874 | G126: -177.1177175 | H126: 319.7791729 | L126: 0 | M126: 0 | N126: 0 | O126: 0
A127: 2.05 | B127: 1 | D127: 0 | F127: -88.55885874 | G127: -177.1177175 | H127: 319.7791729 | L127: 0 | M127: 0 | N127: 0 | O127: 0
A128: 2.05 | B128: 1 | D128: 0 | F128: -88.55885874 | G128: -177.1177175 | H128: 319.7791729 | L128: 0 | M128: 0 | N128: 0 | O128: 0
A129: 2.05 | B129: 1 | D129: 0 | F129: -88.55885874 | G129: -177.1177175 | H129: 319.7791729 | L129: 0 | M129: 0 | N129: 0 | O129: 0
A130: 2.05 | B130: 1 | D130: 0 | F130: -88.55885874 | G130: -177.1177175 | H130: 319.7791729 | L130: 0 | M130: 0 | N130: 0 | O130: 0
A131: 2.05 | B131: 1 | D131: 0 | F131: -88.55885874 | G131: -177.1177175 | H131: 319.7791729 | L131: =IF($L$21=PartNum,IF(PartType="Omnipolar switch",IF(ABS(H131)>BRP_Typ,0,VOH), IF(PartType="Unipolar switch",IF(H131>BRP_Typ,0,VOH), IF(PartType="Latch",IF(H131<BRP_Typ,VOH,0), IF(PartType="Ratiometric PWM output", IF(50+GAIN*H131<5.3,5.3,IF(50+GAIN*H131>94.7,94.7,50+GAIN*H131)), IF(OR(PartType="Ratiometric unipolar",PartType="Ratiometric bipolar",PartType="Bipolar"),IF(AND(VQ+H131*GAIN/1000<=VOH,VQ+H131*GAIN/1000>=VOL),VQ+H131*GAIN/1000,IF(VQ+H131*GAIN/1000>VOH,VOH,VOL))))))),0) -> 0 | M131: =IF($L$21=PartNum,IF(PartType="Omnipolar switch",IF(ABS(H131)>BOP_Typ,0,VOH), IF(PartType="Unipolar switch",IF(H131>BOP_Typ,0,VOH), IF(PartType="Latch",IF(H131<BOP_Typ,VOH,0),""))),0) -> 0 | N131: =IF(PartType="Omnipolar switch",IF(ABS(H131)>BOP_Max,0,VOH),IF(PartType="Unipolar switch",IF(H131>BOP_Max,0,VOH),"")) -> 0 | O131: =IF(PartType="Omnipolar switch",IF(ABS(H131)>BRP_Min,0,VOH),IF(PartType="Unipolar switch",IF(H131>BRP_Min,0,VOH),"")) -> 0
A132: 2.05 | B132: 1 | D132: 0 | F132: -88.55885874 | G132: -177.1177175 | H132: 319.7791729 | L132: 0 | M132: 0 | N132: 0 | O132: 0
A133: 2.05 | B133: 1 | D133: 0 | F133: -88.55885874 | G133: -177.1177175 | H133: 319.7791729 | L133: 0 | M133: 0 | N133: 0 | O133: 0
A134: 2.05 | B134: 1 | D134: 0 | F134: -88.55885874 | G134: -177.1177175 | H134: 319.7791729 | L134: 0 | M134: 0 | N134: 0 | O134: 0
A135: 2.05 | B135: 1 | D135: 0 | F135: -88.55885874 | G135: -177.1177175 | H135: 319.7791729 | L135: 0 | M135: 0 | N135: 0 | O135: 0
A136: 2.05 | B136: 1 | D136: 0 | F136: -88.55885874 | G136: -177.1177175 | H136: 319.7791729 | L136: 0 | M136: 0 | N136: 0 | O136: 0
A137: 2.05 | B137: 1 | D137: 0 | F137: -88.55885874 | G137: -177.1177175 | H137: 319.7791729 | L137: 0 | M137: 0 | N137: 0 | O137: 0
A138: 2.05 | B138: 1 | D138: 0 | F138: -88.55885874 | G138: -177.1177175 | H138: 319.7791729 | L138: 0 | M138: 0 | N138: 0 | O138: 0
A139: 2.05 | B139: 1 | D139: 0 | F139: -88.55885874 | G139: -177.1177175 | H139: 319.7791729 | L139: 0 | M139: 0 | N139: 0 | O139: 0
A140: 2.05 | B140: 1 | D140: 0 | F140: -88.55885874 | G140: -177.1177175 | H140: 319.7791729 | L140: 0 | M140: 0 | N140: 0 | O140: 0
A141: 2.05 | B141: 1 | D141: 0 | F141: -88.55885874 | G141: -177.1177175 | H141: 319.7791729 | L141: 0 | M141: 0 | N141: 0 | O141: 0
A142: 2.05 | B142: 1 | D142: 0 | F142: -88.55885874 | G142: -177.1177175 | H142: 319.7791729 | L142: 0 | M142: 0 | N142: 0 | O142: 0
A143: 2.05 | B143: 1 | D143: 0 | F143: -88.55885874 | G143: -177.1177175 | H143: 319.7791729 | L143: 0 | M143: 0 | N143: 0 | O143: 0
A144: 2.05 | B144: 1 | D144: 0 | F144: -88.55885874 | G144: -177.1177175 | H144: 319.7791729 | L144: 0 | M144: 0 | N144: 0 | O144: 0
A145: 2.05 | B145: 1 | D145: 0 | F145: -88.55885874 | G145: -177.1177175 | H145: 319.7791729 | L145: 0 | M145: 0 | N145: 0 | O145: 0
A146: 2.05 | B146: 1 | D146: 0 | F146: -88.55885874 | G146: -177.1177175 | H146: 319.7791729 | L146: 0 | M146: 0 | N146: 0 | O146: 0
A147: 2.05 | B147: 1 | D147: 0 | F147: -88.55885874 | G147: -177.1177175 | H147: 319.7791729 | L147: 0 | M147: 0 | N147: 0 | O147: 0
A148: 2.05 | B148: 1 | D148: 0 | F148: -88.55885874 | G148: -177.1177175 | H148: 319.7791729 | L148: 0 | M148: 0 | N148: 0 | O148: 0
A149: 2.05 | B149: 1 | D149: 0 | F149: -88.55885874 | G149: -177.1177175 | H149: 319.7791729 | L149: 0 | M149: 0 | N149: 0 | O149: 0
A150: 2.05 | B150: 1 | D150: 0 | F150: -88.55885874 | G150: -177.1177175 | H150: 319.7791729 | L150: 0 | M150: 0 | N150: 0 | O150: 0
A151: 2.05 | B151: 1 | D151: 0 | F151: -88.55885874 | G151: -177.1177175 | H151: 319.7791729 | L151: 0 | M151: 0 | N151: 0 | O151: 0
A152: 2.05 | B152: 1 | D152: 0 | F152: -88.55885874 | G152: -177.1177175 | H152: 319.7791729 | L152: 0 | M152: 0 | N152: 0 | O152: 0
A153: 2.05 | B153: 1 | D153: 0 | F153: -88.55885874 | G153: -177.1177175 | H153: 319.7791729 | L153: 0 | M153: 0 | N153: 0 | O153: 0
A154: 2.05 | B154: 1 | D154: 0 | F154: -88.55885874 | G154: -177.1177175 | H154: 319.7791729 | L154: 0 | M154: 0 | N154: 0 | O154: 0
A155: 2.05 | B155: 1 | D155: 0 | F155: -88.55885874 | G155: -177.1177175 | H155: 319.7791729 | L155: 0 | M155: 0 | N155: 0 | O155: 0
A156: 2.05 | B156: 1 | D156: 0 | F156: -88.55885874 | G156: -177.1177175 | H156: 319.7791729 | L156: 0 | M156: 0 | N156: 0 | O156: 0
A157: 2.05 | B157: 1 | D157: 0 | F157: -88.55885874 | G157: -177.1177175 | H157: 319.7791729 | L157: 0 | M157: 0 | N157: 0 | O157: 0
A158: 2.05 | B158: 1 | D158: 0 | F158: -88.55885874 | G158: -177.1177175 | H158: 319.7791729 | L158: 0 | M158: 0 | N158: 0 | O158: 0
A159: 2.05 | B159: 1 | D159: 0 | F159: -88.55885874 | G159: -177.1177175 | H159: 319.7791729 | L159: 0 | M159: 0 | N159: 0 | O159: 0
A160: 2.05 | B160: 1 | D160: 0 | F160: -88.55885874 | G160: -177.1177175 | H160: 319.7791729 | L160: 0 | M160: 0 | N160: 0 | O160: 0
A161: 2.05 | B161: 1 | D161: 0 | F161: -88.55885874 | G161: -177.1177175 | H161: 319.7791729 | L161: 0 | M161: 0 | N161: 0 | O161: 0
A162: 2.05 | B162: 1 | D162: 0 | F162: -88.55885874 | G162: -177.1177175 | H162: 319.7791729 | L162: 0 | M162: 0 | N162: 0 | O162: 0
A163: 2.05 | B163: 1 | D163: 0 | F163: -88.55885874 | G163: -177.1177175 | H163: 319.7791729 | L163: 0 | M163: 0 | N163: 0 | O163: 0
A164: 2.05 | B164: 1 | D164: 0 | F164: -88.55885874 | G164: -177.1177175 | H164: 319.7791729 | L164: 0 | M164: 0 | N164: 0 | O164: 0
A165: 2.05 | B165: 1 | D165: 0 | F165: -88.55885874 | G165: -177.1177175 | H165: 319.7791729 | L165: 0 | M165: 0 | N165: 0 | O165: 0
A166: 2.05 | B166: 1 | D166: 0 | F166: -88.55885874 | G166: -177.1177175 | H166: 319.7791729 | L166: 0 | M166: 0 | N166: 0 | O166: 0
A167: 2.05 | B167: 1 | D167: 0 | F167: -88.55885874 | G167: -177.1177175 | H167: 319.7791729 | L167: 0 | M167: 0 | N167: 0 | O167: 0
A168: 2.05 | B168: 1 | D168: 0 | F168: -88.55885874 | G168: -177.1177175 | H168: 319.7791729 | L168: 0 | M168: 0 | N168: 0 | O168: 0
A169: 2.05 | B169: 1 | D169: 0 | F169: -88.55885874 | G169: -177.1177175 | H169: 319.7791729 | L169: 0 | M169: 0 | N169: 0 | O169: 0
A170: 2.05 | B170: 1 | D170: 0 | F170: -88.55885874 | G170: -177.1177175 | H170: 319.7791729 | L170: 0 | M170: 0 | N170: 0 | O170: 0
A171: 2.05 | B171: 1 | D171: 0 | F171: -88.55885874 | G171: -177.1177175 | H171: 319.7791729 | L171: 0 | M171: 0 | N171: 0 | O171: 0
A172: 2.05 | B172: 1 | D172: 0 | F172: -88.55885874 | G172: -177.1177175 | H172: 319.7791729 | L172: 0 | M172: 0 | N172: 0 | O172: 0
A173: 2.05 | B173: 1 | D173: 0 | F173: -88.55885874 | G173: -177.1177175 | H173: 319.7791729 | L173: 0 | M173: 0 | N173: 0 | O173: 0
A174: 2.05 | B174: 1 | D174: 0 | F174: -88.55885874 | G174: -177.1177175 | H174: 319.7791729 | L174: 0 | M174: 0 | N174: 0 | O174: 0
A175: 2.05 | B175: 1 | D175: 0 | F175: -88.55885874 | G175: -177.1177175 | H175: 319.7791729 | L175: 0 | M175: 0 | N175: 0 | O175: 0
A176: 2.05 | B176: 1 | D176: 0 | F176: -88.55885874 | G176: -177.1177175 | H176: 319.7791729 | L176: 0 | M176: 0 | N176: 0 | O176: 0
A177: 2.05 | B177: 1 | D177: 0 | F177: -88.55885874 | G177: -177.1177175 | H177: 319.7791729 | L177: 0 | M177: 0 | N177: 0 | O177: 0
A178: 2.05 | B178: 1 | D178: 0 | F178: -88.55885874 | G178: -177.1177175 | H178: 319.7791729 | L178: 0 | M178: 0 | N178: 0 | O178: 0
A179: 2.05 | B179: 1 | D179: 0 | F179: -88.55885874 | G179: -177.1177175 | H179: 319.7791729 | L179: 0 | M179: 0 | N179: 0 | O179: 0
A180: 2.05 | B180: 1 | D180: 0 | F180: -88.55885874 | G180: -177.1177175 | H180: 319.7791729 | L180: 0 | M180: 0 | N180: 0 | O180: 0
A181: 2.05 | B181: 1 | D181: 0 | F181: -88.55885874 | G181: -177.1177175 | H181: 319.7791729 | L181: 0 | M181: 0 | N181: 0 | O181: 0
A182: 2.05 | B182: 1 | D182: 0 | F182: -88.55885874 | G182: -177.1177175 | H182: 319.7791729 | L182: 0 | M182: 0 | N182: 0 | O182: 0
A183: 2.05 | B183: 1 | D183: 0 | F183: -88.55885874 | G183: -177.1177175 | H183: 319.7791729 | L183: 0 | M183: 0 | N183: 0 | O183: 0
A184: 2.05 | B184: 1 | D184: 0 | F184: -88.55885874 | G184: -177.1177175 | H184: 319.7791729 | L184: 0 | M184: 0 | N184: 0 | O184: 0
A185: 2.05 | B185: 1 | D185: 0 | F185: -88.55885874 | G185: -177.1177175 | H185: 319.7791729 | L185: 0 | M185: 0 | N185: 0 | O185: 0
A186: 2.05 | B186: 1 | D186: 0 | F186: -88.55885874 | G186: -177.1177175 | H186: 319.7791729 | L186: 0 | M186: 0 | N186: 0 | O186: 0
A187: 2.05 | B187: 1 | D187: 0 | F187: -88.55885874 | G187: -177.1177175 | H187: 319.7791729 | L187: 0 | M187: 0 | N187: 0 | O187: 0
A188: 2.05 | B188: 1 | D188: 0 | F188: -88.55885874 | G188: -177.1177175 | H188: 319.7791729 | L188: 0 | M188: 0 | N188: 0 | O188: 0
A189: 2.05 | B189: 1 | D189: 0 | F189: -88.55885874 | G189: -177.1177175 | H189: 319.7791729 | L189: 0 | M189: 0 | N189: 0 | O189: 0
A190: 2.05 | B190: 1 | D190: 0 | F190: -88.55885874 | G190: -177.1177175 | H190: 319.7791729 | L190: 0 | M190: 0 | N190: 0 | O190: 0
A191: 2.05 | B191: 1 | D191: 0 | F191: -88.55885874 | G191: -177.1177175 | H191: 319.7791729 | L191: 0 | M191: 0 | N191: 0 | O191: 0
A192: 2.05 | B192: 1 | D192: 0 | F192: -88.55885874 | G192: -177.1177175 | H192: 319.7791729 | L192: 0 | M192: 0 | N192: 0 | O192: 0
A193: 2.05 | B193: 1 | D193: 0 | F193: -88.55885874 | G193: -177.1177175 | H193: 319.7791729 | L193: 0 | M193: 0 | N193: 0 | O193: 0
A194: 2.05 | B194: 1 | D194: 0 | F194: -88.55885874 | G194: -177.1177175 | H194: 319.7791729 | L194: 0 | M194: 0 | N194: 0 | O194: 0
A195: 2.05 | B195: 1 | D195: 0 | F195: -88.55885874 | G195: -177.1177175 | H195: 319.7791729 | L195: =IF($L$21=PartNum,IF(PartType="Omnipolar switch",IF(ABS(H195)>BRP_Typ,0,VOH), IF(PartType="Unipolar switch",IF(H195>BRP_Typ,0,VOH), IF(PartType="Latch",IF(H195<BRP_Typ,VOH,0), IF(PartType="Ratiometric PWM output", IF(50+GAIN*H195<5.3,5.3,IF(50+GAIN*H195>94.7,94.7,50+GAIN*H195)), IF(OR(PartType="Ratiometric unipolar",PartType="Ratiometric bipolar",PartType="Bipolar"),IF(AND(VQ+H195*GAIN/1000<=VOH,VQ+H195*GAIN/1000>=VOL),VQ+H195*GAIN/1000,IF(VQ+H195*GAIN/1000>VOH,VOH,VOL))))))),0) -> 0 | M195: =IF($L$21=PartNum,IF(PartType="Omnipolar switch",IF(ABS(H195)>BOP_Typ,0,VOH), IF(PartType="Unipolar switch",IF(H195>BOP_Typ,0,VOH), IF(PartType="Latch",IF(H195<BOP_Typ,VOH,0),""))),0) -> 0 | N195: =IF(PartType="Omnipolar switch",IF(ABS(H195)>BOP_Max,0,VOH),IF(PartType="Unipolar switch",IF(H195>BOP_Max,0,VOH),"")) -> 0 | O195: =IF(PartType="Omnipolar switch",IF(ABS(H195)>BRP_Min,0,VOH),IF(PartType="Unipolar switch",IF(H195>BRP_Min,0,VOH),"")) -> 0
A196: 2.05 | B196: 1 | D196: 0 | F196: -88.55885874 | G196: -177.1177175 | H196: 319.7791729 | L196: 0 | M196: 0 | N196: 0 | O196: 0
A197: 2.05 | B197: 1 | D197: 0 | F197: -88.55885874 | G197: -177.1177175 | H197: 319.7791729 | L197: 0 | M197: 0 | N197: 0 | O197: 0
A198: 2.05 | B198: 1 | D198: 0 | F198: -88.55885874 | G198: -177.1177175 | H198: 319.7791729 | L198: 0 | M198: 0 | N198: 0 | O198: 0
A199: 2.05 | B199: 1 | D199: 0 | F199: -88.55885874 | G199: -177.1177175 | H199: 319.7791729 | L199: 0 | M199: 0 | N199: 0 | O199: 0
A200: 2.05 | B200: 1 | D200: 0 | F200: -88.55885874 | G200: -177.1177175 | H200: 319.7791729 | L200: 0 | M200: 0 | N200: 0 | O200: 0
A201: 2.05 | B201: 1 | D201: 0 | F201: -88.55885874 | G201: -177.1177175 | H201: 319.7791729 | L201: 0 | M201: 0 | N201: 0 | O201: 0
A202: 2.05 | B202: 1 | D202: 0 | F202: -88.55885874 | G202: -177.1177175 | H202: 319.7791729 | L202: 0 | M202: 0 | N202: 0 | O202: 0
A203: 2.05 | B203: 1 | D203: 0 | F203: -88.55885874 | G203: -177.1177175 | H203: 319.7791729 | L203: 0 | M203: 0 | N203: 0 | O203: 0
A204: 2.05 | B204: 1 | D204: 0 | F204: -88.55885874 | G204: -177.1177175 | H204: 319.7791729 | L204: 0 | M204: 0 | N204: 0 | O204: 0
A205: 2.05 | B205: 1 | D205: 0 | F205: -88.55885874 | G205: -177.1177175 | H205: 319.7791729 | L205: 0 | M205: 0 | N205: 0 | O205: 0
A206: 2.05 | B206: 1 | D206: 0 | F206: -88.55885874 | G206: -177.1177175 | H206: 319.7791729 | L206: 0 | M206: 0 | N206: 0 | O206: 0
... 881 more rows

Sheet ChartControls (hidden)
B1: Min | C1: Max | D1: step | F1: OUTPUT_CHART
A2: Vout | B2: =IF(OR(ChartControls!B44="Omnipolar Switch", ChartControls!B44="Unipolar Switch"), ROUND(MIN(DesignTool!$L$67:$O$1087)-(MAX(DesignTool!$L$67:$O$1087)-MIN(DesignTool!$L$67:$O$1087))*0.1,1), ROUND(MIN(DesignTool!$L$67:$M$1087)-(MAX(DesignTool!$L$67:$M$1087)-MIN(DesignTool!$L$67:$M$1087))*0.1,1)) -> 0 | C2: =ROUND(MAX(DesignTool!$L$67:$O$1087)*1.1,1) -> 0 | D2: =(C2-B2)/1020 -> 0 | F2: Value Axis => | G2: =IF(Processing=1,"",setChartAxis("DesignTool","OUTPUT_CHART","Min","Value","Primary",B2)) -> Value Primary Min: 0
A3: Bvals | B3: =MIN(MIN(DesignTool!F67:H1087),MIN(DesignTool!X67:Y1087)) -> -177.1177175 | C3: =MAX(MAX(DesignTool!F67:H1087),MAX(DesignTool!X67:Y1087)) -> 319.7791729 | F3: Value Axis => | G3: =IF(Processing=1,"",setChartAxis("DesignTool","OUTPUT_CHART","Max","Value","Primary",C2)) -> Value Primary Max: 0
A4: Bchart | B4: =ROUND(B3-(C3-B3)*0.1,2) -> -226.81 | C4: =ROUND(C3+(C3-B3)*0.1,2) -> 369.47 | F4: Secondary Value Axis => | G4: =IF(Processing=1,"",setChartAxis("Sheet2","Chart 2","Min","Value","Secondary",#REF!)) -> 
A5: dz | B5: =ROUND(MIN(DesignTool!D67:D1087),1) -> 0 | C5: =ROUND(MAX(DesignTool!D67:D1087),1) -> 0 | F5: Secondary Value Axis => | G5: =IF(Processing=1,"",setChartAxis("Sheet2","Chart 2","Max","Value","Secondary",#REF!)) -> 
A6: dx | B6: =ROUND(MIN(DesignTool!A67:A1087)-0.04,1) -> 2 | C6: =ROUND(MAX(DesignTool!A67:A1087)+0.05,1) -> 2.1 | F6: Category Axis => | G6: =IF(Processing=1,"",setChartAxis("DesignTool","OUTPUT_CHART","Min","Category","Primary",IF(Magnet_Movement="Head-On",B5,IF(Magnet_Movement="Slide-By",B6,B8)))) -> Category Primary Min: 2
A7: dy | F7: Category Axis => | G7: =IF(Processing=1,"",setChartAxis("DesignTool","OUTPUT_CHART","Max","Category","Primary",IF(Magnet_Movement="Head-On",C5,IF(Magnet_Movement="Slide-By",C6,C8)))) -> Category Primary Max: 2.1
A8: angle | B8: =ROUND(MIN(DesignTool!I67:I1087),1) -> 0 | C8: =ROUND(MAX(DesignTool!I67:I1087),1) -> 0 | F8: Secondary Category Axis => | G8: =IF(Processing=1,"",setChartAxis("Sheet2","Chart 2","Min","Category","Secondary",#REF!)) -> 
F9: Secondary Category Axis => | G9: =IF(Processing=1,"",setChartAxis("Sheet2","Chart 2","Max","Category","Secondary",#REF!)) -> 
A10: Switch and Latch Markers
A11: OUTPUT_CHART | B11: x | C11: y
A12: BOP MIN | C12: =($C$2-$B$2)/2+$B$2 -> 0 | F12: B_FIELD_CHART
A13: BOP TYP | C13: =($C$2-$B$2)/2+$B$2 -> 0 | F13: Value Axis => | G13: =IF(Processing=1,"",setChartAxis("DesignTool","B_FIELD_CHART","Min","Value","Primary",B4)) -> Value Primary Min: -226.81
A14: BOP TYP p2 | B14: =B13 -> 0 | C14: =C13+D2 -> 0 | F14: Value Axis => | G14: =IF(Processing=1,"",setChartAxis("DesignTool","B_FIELD_CHART","Max","Value","Primary",C4)) -> Value Primary Max: 369.47
A15: BOP MAX | C15: =VSUPPLY -> 3.3 | F15: Secondary Value Axis => | G15: =IF(Processing=1,"",setChartAxis("Sheet2","Chart 2","Min","Value","Secondary",#REF!)) -> 
A16: BRP MIN | C16: =($C$2-$B$2)/8+$B$2 -> 0 | F16: Secondary Value Axis => | G16: =IF(Processing=1,"",setChartAxis("Sheet2","Chart 2","Max","Value","Secondary",#REF!)) -> 
A17: BRP TYP | C17: 0 | F17: Category Axis => | G17: =IF(Processing=1,"",setChartAxis("DesignTool","B_FIELD_CHART","Min","Category","Primary",IF(Magnet_Movement="Head-On",B5,IF(Magnet_Movement="Slide-By",B6,B8)))) -> Category Primary Min: 2
A18: BRP TYP p2 | B18: =B17 -> 0 | C18: =C17+D2 -> 0 | F18: Category Axis => | G18: =IF(Processing=1,"",setChartAxis("DesignTool","B_FIELD_CHART","Max","Category","Primary",IF(Magnet_Movement="Head-On",C5,IF(Magnet_Movement="Slide-By",C6,C8)))) -> Category Primary Max: 2.1
A19: BRP MAX | B19: =INDEX(DesignTool!D67:D1087,MATCH(TRUE,INDEX(DesignTool!O67:O1087<>0,),0)) ->  | C19: =($C$2-$B$2)/8+$B$2 -> 0 | F19: Secondary Category Axis => | G19: =IF(Processing=1,"",setChartAxis("Sheet2","Chart 2","Min","Category","Secondary",#REF!)) -> 
A20: d1 | B20: =d1MIN -> 2.05 | C20: =B2 -> 0 | F20: Secondary Category Axis => | G20: =IF(Processing=1,"",setChartAxis("Sheet2","Chart 2","Max","Category","Secondary",#REF!)) -> 
A21: d1 p2 | B21: =B20 -> 2.05 | C21: =C2 -> 0
A22: d2 | B22: =d2MAX -> 2.05 | C22: =B2 -> 0
A23: d2 p2 | B23: =B22 -> 2.05 | C23: =C2 -> 0
A24: Vcc | B24: =B52 -> 2.05 | C24: =VOH -> 3.3
A25: Vcc p2 | B25: =B53 -> 2.05 | C25: =VOH -> 3.3
A26: VQ | B26: =B52 -> 2.05 | C26: =VQ -> 0
A27: VQ p2 | B27: =B53 -> 2.05 | C27: =VQ -> 0
A29: B_FIELD_CHART
A30: BOP MIN | B30: =BOP_Min -> 1.4
A31: BOP TYP | B31: =B48 -> 0 | C31: =BOP_Typ -> 2.9
A32: BOP TYP p2 | B32: =B49 -> 0 | C32: =BOP_Typ -> 2.9
A33: BOP MAX | B33: =B52 -> 2.05 | C33: =BOP_Max -> 4.4
A34: BOP MAX p2 | B34: =B53 -> 2.05 | C34: =C33 -> 4.4
A35: BRP MIN | B35: =B52 -> 2.05 | C35: =BRP_Min -> 0.4
A36: BRP MIN p2 | B36: =B53 -> 2.05 | C36: =BRP_Min -> 0.4
A37: BRP TYP | B37: =BRP_Typ -> 1.8 | C37: =DesignTool!D67 -> 0
A38: BRP TYP p2 | B38: =B37 -> 1.8 | C38: =DesignTool!D1087 -> 0
A39: BRP MAX
A40: d1 | B40: =d1MIN -> 2.05 | C40: =BchartMin -> -226.81
A41: d1 p2 | B41: =B40 -> 2.05 | C41: =BchartMax -> 369.47
A42: d2 | B42: =d2MAX -> 2.05 | C42: =BchartMin -> -226.81
A43: d2 p2 | B43: =B42 -> 2.05 | C43: =BchartMax -> 369.47
A44: dx | B44: =MIN(DesignTool!$A$67:$A$1087) -> 2.05
A45: dx p2 | B45: =MAX(DesignTool!$A$67:$A$1087) -> 2.05
A46: dy | B46: =MIN(DesignTool!$B$67:$B$1087) -> 1
A47: dy p2 | B47: =MAX(DesignTool!$B$67:$B$1087) -> 1
A48: dz | B48: =MIN(DesignTool!$D$67:$D$1087) -> 0
A49: dz p2 | B49: =MAX(DesignTool!$D$1087) -> 0
A50: a | B50: =MIN(DesignTool!I67:I1087) -> 0
A51: a p2 | B51: =MAX(DesignTool!I67:I1087) -> 0
A52: d | B52: =IF(Magnet_Movement="Head-On",ChartControls!B48,IF(Magnet_Movement="Slide-By",ChartControls!B44,IF(Magnet_Movement="Hinge",B50,""))) -> 2.05
A53: d p2 | B53: =IF(Magnet_Movement="Head-On",ChartControls!B49,IF(Magnet_Movement="Slide-By",ChartControls!B45,IF(Magnet_Movement="Hinge",B51,""))) -> 2.05
D269: =HEX2DEC("1d43") -> 7491
H827: unichar(8346)

Sheet Lists (hidden)
D1: Device Type | F1: Device Check | G1: VCC Filter | H1: Relevant Devices | J1: Packages | L1: Magnet Movement | N1: Magnet Shape | P1: Magnet Orientation | R1: Magnet Material | S1: Br (G) | U1: units
D2: Omnipolar switch | F2: =IF(DesignTool!$B$40=parametric_table!D2,parametric_table!A2,"0") -> 0 | G2: =_xlfn.IFNA(IF(VLOOKUP(F2,ParametricTableRange,MATCH("Operating Region Used",parametric_table!$A$1:$AV$1,0),FALSE)>0,F2,"0"),"0") -> 0 | H2: =IF(ROWS(H$2:H2)>COUNTIF(G$2:G200,"<>0"),"",IF(ISERROR(INDEX(G$2:G200,SMALL(IF(G$2:G200<>"0",ROW(G$2:G200)-ROW(G$2)+1),ROWS(H$2:H2)))),"",IF(INDEX(G$2:G200,SMALL(IF(G$2:G200<>"0",ROW(G$2:G200)-ROW(G$2)+1),ROWS(H$2:H2)))=0,"",INDEX(G$2:G200,SMALL(IF(G$2:G200<>"0",ROW(G$2:G200)-ROW(G$2)+1),ROWS(H$2:H2)))))) -> TMAG5124A | L2: Head-On | N2: Block | P2: North Facing DUT | R2: SmCo18(1:5) | S2: 8750 | U2: mm
D3: Unipolar switch | F3: =IF(DesignTool!$B$40=parametric_table!D3,parametric_table!A3,"0") -> 0 | G3: =_xlfn.IFNA(IF(VLOOKUP(F3,ParametricTableRange,MATCH("Operating Region Used",parametric_table!$A$1:$AV$1,0),FALSE)>0,F3,"0"),"0") -> 0 | H3: =IF(ROWS(H$2:H3)>COUNTIF(G$2:G201,"<>0"),"",IF(ISERROR(INDEX(G$2:G201,SMALL(IF(G$2:G201<>"0",ROW(G$2:G201)-ROW(G$2)+1),ROWS(H$2:H3)))),"",IF(INDEX(G$2:G201,SMALL(IF(G$2:G201<>"0",ROW(G$2:G201)-ROW(G$2)+1),ROWS(H$2:H3)))=0,"",INDEX(G$2:G201,SMALL(IF(G$2:G201<>"0",ROW(G$2:G201)-ROW(G$2)+1),ROWS(H$2:H3)))))) -> TMAG5124B | L3: Hinge | N3: Cylinder | P3: South Facing DUT | R3: SmCo20(1:5) | S3: 9200 | U3: in.
D4: Latch | F4: =IF(DesignTool!$B$40=parametric_table!D4,parametric_table!A4,"0") -> 0 | G4: =_xlfn.IFNA(IF(VLOOKUP(F4,ParametricTableRange,MATCH("Operating Region Used",parametric_table!$A$1:$AV$1,0),FALSE)>0,F4,"0"),"0") -> 0 | H4: =IF(ROWS(H$2:H4)>COUNTIF(G$2:G202,"<>0"),"",IF(ISERROR(INDEX(G$2:G202,SMALL(IF(G$2:G202<>"0",ROW(G$2:G202)-ROW(G$2)+1),ROWS(H$2:H4)))),"",IF(INDEX(G$2:G202,SMALL(IF(G$2:G202<>"0",ROW(G$2:G202)-ROW(G$2)+1),ROWS(H$2:H4)))=0,"",INDEX(G$2:G202,SMALL(IF(G$2:G202<>"0",ROW(G$2:G202)-ROW(G$2)+1),ROWS(H$2:H4)))))) -> TMAG5124C | L4: Slide-By | N4: Sphere | P4: NS Facing DUT | R4: SmCo22(1:5) | S4: 9400
D5: Ratiometric PWM output | F5: =IF(DesignTool!$B$40=parametric_table!D5,parametric_table!A5,"0") -> 0 | G5: =_xlfn.IFNA(IF(VLOOKUP(F5,ParametricTableRange,MATCH("Operating Region Used",parametric_table!$A$1:$AV$1,0),FALSE)>0,F5,"0"),"0") -> 0 | H5: =IF(ROWS(H$2:H5)>COUNTIF(G$2:G203,"<>0"),"",IF(ISERROR(INDEX(G$2:G203,SMALL(IF(G$2:G203<>"0",ROW(G$2:G203)-ROW(G$2)+1),ROWS(H$2:H5)))),"",IF(INDEX(G$2:G203,SMALL(IF(G$2:G203<>"0",ROW(G$2:G203)-ROW(G$2)+1),ROWS(H$2:H5)))=0,"",INDEX(G$2:G203,SMALL(IF(G$2:G203<>"0",ROW(G$2:G203)-ROW(G$2)+1),ROWS(H$2:H5)))))) -> TMAG5124D | P5: SN Facing DUT | R5: SmCo24(1:5) | S5: 9800
D6: Ratiometric unipolar | F6: =IF(DesignTool!$B$40=parametric_table!D6,parametric_table!A6,"0") -> 0 | G6: =_xlfn.IFNA(IF(VLOOKUP(F6,ParametricTableRange,MATCH("Operating Region Used",parametric_table!$A$1:$AV$1,0),FALSE)>0,F6,"0"),"0") -> 0 | H6: =IF(ROWS(H$2:H6)>COUNTIF(G$2:G204,"<>0"),"",IF(ISERROR(INDEX(G$2:G204,SMALL(IF(G$2:G204<>"0",ROW(G$2:G204)-ROW(G$2)+1),ROWS(H$2:H6)))),"",IF(INDEX(G$2:G204,SMALL(IF(G$2:G204<>"0",ROW(G$2:G204)-ROW(G$2)+1),ROWS(H$2:H6)))=0,"",INDEX(G$2:G204,SMALL(IF(G$2:G204<>"0",ROW(G$2:G204)-ROW(G$2)+1),ROWS(H$2:H6)))))) -> TMAG5124E | P6: =IF(OR(Magnet_Shape="Cylinder",Magnet_Shape="Sphere"),"","NS 2 Facing DUT") ->  | R6: SmCo24 | S6: 9850
D7: Ratiometric bipolar | F7: =IF(DesignTool!$B$40=parametric_table!D7,parametric_table!A7,"0") -> 0 | G7: =_xlfn.IFNA(IF(VLOOKUP(F7,ParametricTableRange,MATCH("Operating Region Used",parametric_table!$A$1:$AV$1,0),FALSE)>0,F7,"0"),"0") -> 0 | H7: =IF(ROWS(H$2:H7)>COUNTIF(G$2:G205,"<>0"),"",IF(ISERROR(INDEX(G$2:G205,SMALL(IF(G$2:G205<>"0",ROW(G$2:G205)-ROW(G$2)+1),ROWS(H$2:H7)))),"",IF(INDEX(G$2:G205,SMALL(IF(G$2:G205<>"0",ROW(G$2:G205)-ROW(G$2)+1),ROWS(H$2:H7)))=0,"",INDEX(G$2:G205,SMALL(IF(G$2:G205<>"0",ROW(G$2:G205)-ROW(G$2)+1),ROWS(H$2:H7)))))) -> TMAG5124F | P7: =IF(OR(Magnet_Shape="Cylinder",Magnet_Shape="Sphere"),"","SN 2 Facing DUT") ->  | R7: SmCo26 | S7: 10350
D8: Bipolar | F8: =IF(DesignTool!$B$40=parametric_table!D8,parametric_table!A8,"0") -> 0 | G8: =_xlfn.IFNA(IF(VLOOKUP(F8,ParametricTableRange,MATCH("Operating Region Used",parametric_table!$A$1:$AV$1,0),FALSE)>0,F8,"0"),"0") -> 0 | H8: =IF(ROWS(H$2:H8)>COUNTIF(G$2:G206,"<>0"),"",IF(ISERROR(INDEX(G$2:G206,SMALL(IF(G$2:G206<>"0",ROW(G$2:G206)-ROW(G$2)+1),ROWS(H$2:H8)))),"",IF(INDEX(G$2:G206,SMALL(IF(G$2:G206<>"0",ROW(G$2:G206)-ROW(G$2)+1),ROWS(H$2:H8)))=0,"",INDEX(G$2:G206,SMALL(IF(G$2:G206<>"0",ROW(G$2:G206)-ROW(G$2)+1),ROWS(H$2:H8)))))) -> TMAG5124G | R8: SmCo28 | S8: 10550
D9: 3-Axis linear | F9: =IF(DesignTool!$B$40=parametric_table!D9,parametric_table!A9,"0") -> 0 | G9: =_xlfn.IFNA(IF(VLOOKUP(F9,ParametricTableRange,MATCH("Operating Region Used",parametric_table!$A$1:$AV$1,0),FALSE)>0,F9,"0"),"0") -> 0 | H9: =IF(ROWS(H$2:H9)>COUNTIF(G$2:G207,"<>0"),"",IF(ISERROR(INDEX(G$2:G207,SMALL(IF(G$2:G207<>"0",ROW(G$2:G207)-ROW(G$2)+1),ROWS(H$2:H9)))),"",IF(INDEX(G$2:G207,SMALL(IF(G$2:G207<>"0",ROW(G$2:G207)-ROW(G$2)+1),ROWS(H$2:H9)))=0,"",INDEX(G$2:G207,SMALL(IF(G$2:G207<>"0",ROW(G$2:G207)-ROW(G$2)+1),ROWS(H$2:H9)))))) -> TMAG5124H | R9: SmCo30 | S9: 10900
F10: =IF(DesignTool!$B$40=parametric_table!D10,parametric_table!A10,"0") -> 0 | G10: =_xlfn.IFNA(IF(VLOOKUP(F10,ParametricTableRange,MATCH("Operating Region Used",parametric_table!$A$1:$AV$1,0),FALSE)>0,F10,"0"),"0") -> 0 | H10: =IF(ROWS(H$2:H10)>COUNTIF(G$2:G208,"<>0"),"",IF(ISERROR(INDEX(G$2:G208,SMALL(IF(G$2:G208<>"0",ROW(G$2:G208)-ROW(G$2)+1),ROWS(H$2:H10)))),"",IF(INDEX(G$2:G208,SMALL(IF(G$2:G208<>"0",ROW(G$2:G208)-ROW(G$2)+1),ROWS(H$2:H10)))=0,"",INDEX(G$2:G208,SMALL(IF(G$2:G208<>"0",ROW(G$2:G208)-ROW(G$2)+1),ROWS(H$2:H10)))))) -> DRV5021A1 | R10: SmCo32 | S10: 11150
F11: =IF(DesignTool!$B$40=parametric_table!D11,parametric_table!A11,"0") -> 0 | G11: =_xlfn.IFNA(IF(VLOOKUP(F11,ParametricTableRange,MATCH("Operating Region Used",parametric_table!$A$1:$AV$1,0),FALSE)>0,F11,"0"),"0") -> 0 | H11: =IF(ROWS(H$2:H11)>COUNTIF(G$2:G209,"<>0"),"",IF(ISERROR(INDEX(G$2:G209,SMALL(IF(G$2:G209<>"0",ROW(G$2:G209)-ROW(G$2)+1),ROWS(H$2:H11)))),"",IF(INDEX(G$2:G209,SMALL(IF(G$2:G209<>"0",ROW(G$2:G209)-ROW(G$2)+1),ROWS(H$2:H11)))=0,"",INDEX(G$2:G209,SMALL(IF(G$2:G209<>"0",ROW(G$2:G209)-ROW(G$2)+1),ROWS(H$2:H11)))))) -> DRV5021A2 | R11: N35 | S11: 12000
D12: 2D Latch | F12: =IF(DesignTool!$B$40=parametric_table!D12,parametric_table!A12,"0") -> 0 | G12: =_xlfn.IFNA(IF(VLOOKUP(F12,ParametricTableRange,MATCH("Operating Region Used",parametric_table!$A$1:$AV$1,0),FALSE)>0,F12,"0"),"0") -> 0 | H12: =IF(ROWS(H$2:H12)>COUNTIF(G$2:G210,"<>0"),"",IF(ISERROR(INDEX(G$2:G210,SMALL(IF(G$2:G210<>"0",ROW(G$2:G210)-ROW(G$2)+1),ROWS(H$2:H12)))),"",IF(INDEX(G$2:G210,SMALL(IF(G$2:G210<>"0",ROW(G$2:G210)-ROW(G$2)+1),ROWS(H$2:H12)))=0,"",INDEX(G$2:G210,SMALL(IF(G$2:G210<>"0",ROW(G$2:G210)-ROW(G$2)+1),ROWS(H$2:H12)))))) -> DRV5021A3 | R12: N38 | S12: 12400
D13: 3-Axis linear | F13: =IF(DesignTool!$B$40=parametric_table!D13,parametric_table!A13,"0") -> 0 | G13: =_xlfn.IFNA(IF(VLOOKUP(F13,ParametricTableRange,MATCH("Operating Region Used",parametric_table!$A$1:$AV$1,0),FALSE)>0,F13,"0"),"0") -> 0 | H13: =IF(ROWS(H$2:H13)>COUNTIF(G$2:G211,"<>0"),"",IF(ISERROR(INDEX(G$2:G211,SMALL(IF(G$2:G211<>"0",ROW(G$2:G211)-ROW(G$2)+1),ROWS(H$2:H13)))),"",IF(INDEX(G$2:G211,SMALL(IF(G$2:G211<>"0",ROW(G$2:G211)-ROW(G$2)+1),ROWS(H$2:H13)))=0,"",INDEX(G$2:G211,SMALL(IF(G$2:G211<>"0",ROW(G$2:G211)-ROW(G$2)+1),ROWS(H$2:H13)))))) -> DRV5032DUDBZ | R13: N42 | S13: 13000
F14: =IF(DesignTool!$B$40=parametric_table!D14,parametric_table!A14,"0") -> 0 | G14: =_xlfn.IFNA(IF(VLOOKUP(F14,ParametricTableRange,MATCH("Operating Region Used",parametric_table!$A$1:$AV$1,0),FALSE)>0,F14,"0"),"0") -> 0 | H14: =IF(ROWS(H$2:H14)>COUNTIF(G$2:G212,"<>0"),"",IF(ISERROR(INDEX(G$2:G212,SMALL(IF(G$2:G212<>"0",ROW(G$2:G212)-ROW(G$2)+1),ROWS(H$2:H14)))),"",IF(INDEX(G$2:G212,SMALL(IF(G$2:G212<>"0",ROW(G$2:G212)-ROW(G$2)+1),ROWS(H$2:H14)))=0,"",INDEX(G$2:G212,SMALL(IF(G$2:G212<>"0",ROW(G$2:G212)-ROW(G$2)+1),ROWS(H$2:H14)))))) -> DRV5032DUDMR | R14: N45 | S14: 13500
F15: =IF(DesignTool!$B$40=parametric_table!D15,parametric_table!A15,"0") -> 0 | G15: =_xlfn.IFNA(IF(VLOOKUP(F15,ParametricTableRange,MATCH("Operating Region Used",parametric_table!$A$1:$AV$1,0),FALSE)>0,F15,"0"),"0") -> 0 | H15: =IF(ROWS(H$2:H15)>COUNTIF(G$2:G213,"<>0"),"",IF(ISERROR(INDEX(G$2:G213,SMALL(IF(G$2:G213<>"0",ROW(G$2:G213)-ROW(G$2)+1),ROWS(H$2:H15)))),"",IF(INDEX(G$2:G213,SMALL(IF(G$2:G213<>"0",ROW(G$2:G213)-ROW(G$2)+1),ROWS(H$2:H15)))=0,"",INDEX(G$2:G213,SMALL(IF(G$2:G213<>"0",ROW(G$2:G213)-ROW(G$2)+1),ROWS(H$2:H15)))))) -> DRV5032DULPG | R15: N48 | S15: 14000
F16: =IF(DesignTool!$B$40=parametric_table!D16,parametric_table!A16,"0") -> 0 | G16: =_xlfn.IFNA(IF(VLOOKUP(F16,ParametricTableRange,MATCH("Operating Region Used",parametric_table!$A$1:$AV$1,0),FALSE)>0,F16,"0"),"0") -> 0 | H16: =IF(ROWS(H$2:H16)>COUNTIF(G$2:G214,"<>0"),"",IF(ISERROR(INDEX(G$2:G214,SMALL(IF(G$2:G214<>"0",ROW(G$2:G214)-ROW(G$2)+1),ROWS(H$2:H16)))),"",IF(INDEX(G$2:G214,SMALL(IF(G$2:G214<>"0",ROW(G$2:G214)-ROW(G$2)+1),ROWS(H$2:H16)))=0,"",INDEX(G$2:G214,SMALL(IF(G$2:G214<>"0",ROW(G$2:G214)-ROW(G$2)+1),ROWS(H$2:H16)))))) -> DRV5032FDDMR | R16: N50 | S16: 14300
F17: =IF(DesignTool!$B$40=parametric_table!D17,parametric_table!A17,"0") -> 0 | G17: =_xlfn.IFNA(IF(VLOOKUP(F17,ParametricTableRange,MATCH("Operating Region Used",parametric_table!$A$1:$AV$1,0),FALSE)>0,F17,"0"),"0") -> 0 | H17: =IF(ROWS(H$2:H17)>COUNTIF(G$2:G215,"<>0"),"",IF(ISERROR(INDEX(G$2:G215,SMALL(IF(G$2:G215<>"0",ROW(G$2:G215)-ROW(G$2)+1),ROWS(H$2:H17)))),"",IF(INDEX(G$2:G215,SMALL(IF(G$2:G215<>"0",ROW(G$2:G215)-ROW(G$2)+1),ROWS(H$2:H17)))=0,"",INDEX(G$2:G215,SMALL(IF(G$2:G215<>"0",ROW(G$2:G215)-ROW(G$2)+1),ROWS(H$2:H17)))))) -> DRV5032FDLPG | R17: N52 | S17: 14600
F18: =IF(DesignTool!$B$40=parametric_table!D18,parametric_table!A18,"0") -> 0 | G18: =_xlfn.IFNA(IF(VLOOKUP(F18,ParametricTableRange,MATCH("Operating Region Used",parametric_table!$A$1:$AV$1,0),FALSE)>0,F18,"0"),"0") -> 0 | H18: =IF(ROWS(H$2:H18)>COUNTIF(G$2:G216,"<>0"),"",IF(ISERROR(INDEX(G$2:G216,SMALL(IF(G$2:G216<>"0",ROW(G$2:G216)-ROW(G$2)+1),ROWS(H$2:H18)))),"",IF(INDEX(G$2:G216,SMALL(IF(G$2:G216<>"0",ROW(G$2:G216)-ROW(G$2)+1),ROWS(H$2:H18)))=0,"",INDEX(G$2:G216,SMALL(IF(G$2:G216<>"0",ROW(G$2:G216)-ROW(G$2)+1),ROWS(H$2:H18)))))) -> DRV5023FAQDBZ | R18: Custom
F19: =IF(DesignTool!$B$40=parametric_table!D19,parametric_table!A19,"0") -> 0 | G19: =_xlfn.IFNA(IF(VLOOKUP(F19,ParametricTableRange,MATCH("Operating Region Used",parametric_table!$A$1:$AV$1,0),FALSE)>0,F19,"0"),"0") -> 0 | H19: =IF(ROWS(H$2:H19)>COUNTIF(G$2:G217,"<>0"),"",IF(ISERROR(INDEX(G$2:G217,SMALL(IF(G$2:G217<>"0",ROW(G$2:G217)-ROW(G$2)+1),ROWS(H$2:H19)))),"",IF(INDEX(G$2:G217,SMALL(IF(G$2:G217<>"0",ROW(G$2:G217)-ROW(G$2)+1),ROWS(H$2:H19)))=0,"",INDEX(G$2:G217,SMALL(IF(G$2:G217<>"0",ROW(G$2:G217)-ROW(G$2)+1),ROWS(H$2:H19)))))) -> DRV5023AJQDBZ
F20: =IF(DesignTool!$B$40=parametric_table!D20,parametric_table!A20,"0") -> 0 | G20: =_xlfn.IFNA(IF(VLOOKUP(F20,ParametricTableRange,MATCH("Operating Region Used",parametric_table!$A$1:$AV$1,0),FALSE)>0,F20,"0"),"0") -> 0 | H20: =IF(ROWS(H$2:H20)>COUNTIF(G$2:G218,"<>0"),"",IF(ISERROR(INDEX(G$2:G218,SMALL(IF(G$2:G218<>"0",ROW(G$2:G218)-ROW(G$2)+1),ROWS(H$2:H20)))),"",IF(INDEX(G$2:G218,SMALL(IF(G$2:G218<>"0",ROW(G$2:G218)-ROW(G$2)+1),ROWS(H$2:H20)))=0,"",INDEX(G$2:G218,SMALL(IF(G$2:G218<>"0",ROW(G$2:G218)-ROW(G$2)+1),ROWS(H$2:H20)))))) -> DRV5023AJQLPG
F21: =IF(DesignTool!$B$40=parametric_table!D21,parametric_table!A21,"0") -> TMAG5124A | G21: =_xlfn.IFNA(IF(VLOOKUP(F21,ParametricTableRange,MATCH("Operating Region Used",parametric_table!$A$1:$AV$1,0),FALSE)>0,F21,"0"),"0") -> TMAG5124A | H21: =IF(ROWS(H$2:H21)>COUNTIF(G$2:G219,"<>0"),"",IF(ISERROR(INDEX(G$2:G219,SMALL(IF(G$2:G219<>"0",ROW(G$2:G219)-ROW(G$2)+1),ROWS(H$2:H21)))),"",IF(INDEX(G$2:G219,SMALL(IF(G$2:G219<>"0",ROW(G$2:G219)-ROW(G$2)+1),ROWS(H$2:H21)))=0,"",INDEX(G$2:G219,SMALL(IF(G$2:G219<>"0",ROW(G$2:G219)-ROW(G$2)+1),ROWS(H$2:H21)))))) -> DRV5023BIQDBZ
F22: =IF(DesignTool!$B$40=parametric_table!D22,parametric_table!A22,"0") -> TMAG5124B | G22: =_xlfn.IFNA(IF(VLOOKUP(F22,ParametricTableRange,MATCH("Operating Region Used",parametric_table!$A$1:$AV$1,0),FALSE)>0,F22,"0"),"0") -> TMAG5124B | H22: =IF(ROWS(H$2:H22)>COUNTIF(G$2:G220,"<>0"),"",IF(ISERROR(INDEX(G$2:G220,SMALL(IF(G$2:G220<>"0",ROW(G$2:G220)-ROW(G$2)+1),ROWS(H$2:H22)))),"",IF(INDEX(G$2:G220,SMALL(IF(G$2:G220<>"0",ROW(G$2:G220)-ROW(G$2)+1),ROWS(H$2:H22)))=0,"",INDEX(G$2:G220,SMALL(IF(G$2:G220<>"0",ROW(G$2:G220)-ROW(G$2)+1),ROWS(H$2:H22)))))) -> DRV5023BIQLPG
F23: =IF(DesignTool!$B$40=parametric_table!D23,parametric_table!A23,"0") -> TMAG5124C | G23: =_xlfn.IFNA(IF(VLOOKUP(F23,ParametricTableRange,MATCH("Operating Region Used",parametric_table!$A$1:$AV$1,0),FALSE)>0,F23,"0"),"0") -> TMAG5124C | H23: =IF(ROWS(H$2:H23)>COUNTIF(G$2:G221,"<>0"),"",IF(ISERROR(INDEX(G$2:G221,SMALL(IF(G$2:G221<>"0",ROW(G$2:G221)-ROW(G$2)+1),ROWS(H$2:H23)))),"",IF(INDEX(G$2:G221,SMALL(IF(G$2:G221<>"0",ROW(G$2:G221)-ROW(G$2)+1),ROWS(H$2:H23)))=0,"",INDEX(G$2:G221,SMALL(IF(G$2:G221<>"0",ROW(G$2:G221)-ROW(G$2)+1),ROWS(H$2:H23)))))) -> 
F24: =IF(DesignTool!$B$40=parametric_table!D24,parametric_table!A24,"0") -> TMAG5124D | G24: =_xlfn.IFNA(IF(VLOOKUP(F24,ParametricTableRange,MATCH("Operating Region Used",parametric_table!$A$1:$AV$1,0),FALSE)>0,F24,"0"),"0") -> TMAG5124D | H24: =IF(ROWS(H$2:H24)>COUNTIF(G$2:G222,"<>0"),"",IF(ISERROR(INDEX(G$2:G222,SMALL(IF(G$2:G222<>"0",ROW(G$2:G222)-ROW(G$2)+1),ROWS(H$2:H24)))),"",IF(INDEX(G$2:G222,SMALL(IF(G$2:G222<>"0",ROW(G$2:G222)-ROW(G$2)+1),ROWS(H$2:H24)))=0,"",INDEX(G$2:G222,SMALL(IF(G$2:G222<>"0",ROW(G$2:G222)-ROW(G$2)+1),ROWS(H$2:H24)))))) -> 
F25: =IF(DesignTool!$B$40=parametric_table!D25,parametric_table!A25,"0") -> TMAG5124E | G25: =_xlfn.IFNA(IF(VLOOKUP(F25,ParametricTableRange,MATCH("Operating Region Used",parametric_table!$A$1:$AV$1,0),FALSE)>0,F25,"0"),"0") -> TMAG5124E | H25: =IF(ROWS(H$2:H25)>COUNTIF(G$2:G223,"<>0"),"",IF(ISERROR(INDEX(G$2:G223,SMALL(IF(G$2:G223<>"0",ROW(G$2:G223)-ROW(G$2)+1),ROWS(H$2:H25)))),"",IF(INDEX(G$2:G223,SMALL(IF(G$2:G223<>"0",ROW(G$2:G223)-ROW(G$2)+1),ROWS(H$2:H25)))=0,"",INDEX(G$2:G223,SMALL(IF(G$2:G223<>"0",ROW(G$2:G223)-ROW(G$2)+1),ROWS(H$2:H25)))))) -> 
F26: =IF(DesignTool!$B$40=parametric_table!D26,parametric_table!A26,"0") -> TMAG5124F | G26: =_xlfn.IFNA(IF(VLOOKUP(F26,ParametricTableRange,MATCH("Operating Region Used",parametric_table!$A$1:$AV$1,0),FALSE)>0,F26,"0"),"0") -> TMAG5124F | H26: =IF(ROWS(H$2:H26)>COUNTIF(G$2:G224,"<>0"),"",IF(ISERROR(INDEX(G$2:G224,SMALL(IF(G$2:G224<>"0",ROW(G$2:G224)-ROW(G$2)+1),ROWS(H$2:H26)))),"",IF(INDEX(G$2:G224,SMALL(IF(G$2:G224<>"0",ROW(G$2:G224)-ROW(G$2)+1),ROWS(H$2:H26)))=0,"",INDEX(G$2:G224,SMALL(IF(G$2:G224<>"0",ROW(G$2:G224)-ROW(G$2)+1),ROWS(H$2:H26)))))) -> 
F27: =IF(DesignTool!$B$40=parametric_table!D27,parametric_table!A27,"0") -> TMAG5124G | G27: =_xlfn.IFNA(IF(VLOOKUP(F27,ParametricTableRange,MATCH("Operating Region Used",parametric_table!$A$1:$AV$1,0),FALSE)>0,F27,"0"),"0") -> TMAG5124G | H27: =IF(ROWS(H$2:H27)>COUNTIF(G$2:G225,"<>0"),"",IF(ISERROR(INDEX(G$2:G225,SMALL(IF(G$2:G225<>"0",ROW(G$2:G225)-ROW(G$2)+1),ROWS(H$2:H27)))),"",IF(INDEX(G$2:G225,SMALL(IF(G$2:G225<>"0",ROW(G$2:G225)-ROW(G$2)+1),ROWS(H$2:H27)))=0,"",INDEX(G$2:G225,SMALL(IF(G$2:G225<>"0",ROW(G$2:G225)-ROW(G$2)+1),ROWS(H$2:H27)))))) -> 
F28: =IF(DesignTool!$B$40=parametric_table!D28,parametric_table!A28,"0") -> TMAG5124H | G28: =_xlfn.IFNA(IF(VLOOKUP(F28,ParametricTableRange,MATCH("Operating Region Used",parametric_table!$A$1:$AV$1,0),FALSE)>0,F28,"0"),"0") -> TMAG5124H | H28: =IF(ROWS(H$2:H28)>COUNTIF(G$2:G226,"<>0"),"",IF(ISERROR(INDEX(G$2:G226,SMALL(IF(G$2:G226<>"0",ROW(G$2:G226)-ROW(G$2)+1),ROWS(H$2:H28)))),"",IF(INDEX(G$2:G226,SMALL(IF(G$2:G226<>"0",ROW(G$2:G226)-ROW(G$2)+1),ROWS(H$2:H28)))=0,"",INDEX(G$2:G226,SMALL(IF(G$2:G226<>"0",ROW(G$2:G226)-ROW(G$2)+1),ROWS(H$2:H28)))))) -> 
F29: =IF(DesignTool!$B$40=parametric_table!D29,parametric_table!A29,"0") -> DRV5021A1 | G29: =_xlfn.IFNA(IF(VLOOKUP(F29,ParametricTableRange,MATCH("Operating Region Used",parametric_table!$A$1:$AV$1,0),FALSE)>0,F29,"0"),"0") -> DRV5021A1 | H29: =IF(ROWS(H$2:H29)>COUNTIF(G$2:G227,"<>0"),"",IF(ISERROR(INDEX(G$2:G227,SMALL(IF(G$2:G227<>"0",ROW(G$2:G227)-ROW(G$2)+1),ROWS(H$2:H29)))),"",IF(INDEX(G$2:G227,SMALL(IF(G$2:G227<>"0",ROW(G$2:G227)-ROW(G$2)+1),ROWS(H$2:H29)))=0,"",INDEX(G$2:G227,SMALL(IF(G$2:G227<>"0",ROW(G$2:G227)-ROW(G$2)+1),ROWS(H$2:H29)))))) -> 
F30: =IF(DesignTool!$B$40=parametric_table!D30,parametric_table!A30,"0") -> DRV5021A2 | G30: =_xlfn.IFNA(IF(VLOOKUP(F30,ParametricTableRange,MATCH("Operating Region Used",parametric_table!$A$1:$AV$1,0),FALSE)>0,F30,"0"),"0") -> DRV5021A2 | H30: =IF(ROWS(H$2:H30)>COUNTIF(G$2:G228,"<>0"),"",IF(ISERROR(INDEX(G$2:G228,SMALL(IF(G$2:G228<>"0",ROW(G$2:G228)-ROW(G$2)+1),ROWS(H$2:H30)))),"",IF(INDEX(G$2:G228,SMALL(IF(G$2:G228<>"0",ROW(G$2:G228)-ROW(G$2)+1),ROWS(H$2:H30)))=0,"",INDEX(G$2:G228,SMALL(IF(G$2:G228<>"0",ROW(G$2:G228)-ROW(G$2)+1),ROWS(H$2:H30)))))) -> 
F31: =IF(DesignTool!$B$40=parametric_table!D31,parametric_table!A31,"0") -> DRV5021A3 | G31: =_xlfn.IFNA(IF(VLOOKUP(F31,ParametricTableRange,MATCH("Operating Region Used",parametric_table!$A$1:$AV$1,0),FALSE)>0,F31,"0"),"0") -> DRV5021A3 | H31: =IF(ROWS(H$2:H31)>COUNTIF(G$2:G229,"<>0"),"",IF(ISERROR(INDEX(G$2:G229,SMALL(IF(G$2:G229<>"0",ROW(G$2:G229)-ROW(G$2)+1),ROWS(H$2:H31)))),"",IF(INDEX(G$2:G229,SMALL(IF(G$2:G229<>"0",ROW(G$2:G229)-ROW(G$2)+1),ROWS(H$2:H31)))=0,"",INDEX(G$2:G229,SMALL(IF(G$2:G229<>"0",ROW(G$2:G229)-ROW(G$2)+1),ROWS(H$2:H31)))))) -> 
F32: =IF(DesignTool!$B$40=parametric_table!D32,parametric_table!A32,"0") -> 0 | G32: =_xlfn.IFNA(IF(VLOOKUP(F32,ParametricTableRange,MATCH("Operating Region Used",parametric_table!$A$1:$AV$1,0),FALSE)>0,F32,"0"),"0") -> 0 | H32: =IF(ROWS(H$2:H32)>COUNTIF(G$2:G230,"<>0"),"",IF(ISERROR(INDEX(G$2:G230,SMALL(IF(G$2:G230<>"0",ROW(G$2:G230)-ROW(G$2)+1),ROWS(H$2:H32)))),"",IF(INDEX(G$2:G230,SMALL(IF(G$2:G230<>"0",ROW(G$2:G230)-ROW(G$2)+1),ROWS(H$2:H32)))=0,"",INDEX(G$2:G230,SMALL(IF(G$2:G230<>"0",ROW(G$2:G230)-ROW(G$2)+1),ROWS(H$2:H32)))))) -> 
F33: =IF(DesignTool!$B$40=parametric_table!D33,parametric_table!A33,"0") -> 0 | G33: =_xlfn.IFNA(IF(VLOOKUP(F33,ParametricTableRange,MATCH("Operating Region Used",parametric_table!$A$1:$AV$1,0),FALSE)>0,F33,"0"),"0") -> 0 | H33: =IF(ROWS(H$2:H33)>COUNTIF(G$2:G231,"<>0"),"",IF(ISERROR(INDEX(G$2:G231,SMALL(IF(G$2:G231<>"0",ROW(G$2:G231)-ROW(G$2)+1),ROWS(H$2:H33)))),"",IF(INDEX(G$2:G231,SMALL(IF(G$2:G231<>"0",ROW(G$2:G231)-ROW(G$2)+1),ROWS(H$2:H33)))=0,"",INDEX(G$2:G231,SMALL(IF(G$2:G231<>"0",ROW(G$2:G231)-ROW(G$2)+1),ROWS(H$2:H33)))))) -> 
F34: =IF(DesignTool!$B$40=parametric_table!D34,parametric_table!A34,"0") -> 0 | G34: =_xlfn.IFNA(IF(VLOOKUP(F34,ParametricTableRange,MATCH("Operating Region Used",parametric_table!$A$1:$AV$1,0),FALSE)>0,F34,"0"),"0") -> 0 | H34: =IF(ROWS(H$2:H34)>COUNTIF(G$2:G232,"<>0"),"",IF(ISERROR(INDEX(G$2:G232,SMALL(IF(G$2:G232<>"0",ROW(G$2:G232)-ROW(G$2)+1),ROWS(H$2:H34)))),"",IF(INDEX(G$2:G232,SMALL(IF(G$2:G232<>"0",ROW(G$2:G232)-ROW(G$2)+1),ROWS(H$2:H34)))=0,"",INDEX(G$2:G232,SMALL(IF(G$2:G232<>"0",ROW(G$2:G232)-ROW(G$2)+1),ROWS(H$2:H34)))))) -> 
F35: =IF(DesignTool!$B$40=parametric_table!D35,parametric_table!A35,"0") -> 0 | G35: =_xlfn.IFNA(IF(VLOOKUP(F35,ParametricTableRange,MATCH("Operating Region Used",parametric_table!$A$1:$AV$1,0),FALSE)>0,F35,"0"),"0") -> 0 | H35: =IF(ROWS(H$2:H35)>COUNTIF(G$2:G233,"<>0"),"",IF(ISERROR(INDEX(G$2:G233,SMALL(IF(G$2:G233<>"0",ROW(G$2:G233)-ROW(G$2)+1),ROWS(H$2:H35)))),"",IF(INDEX(G$2:G233,SMALL(IF(G$2:G233<>"0",ROW(G$2:G233)-ROW(G$2)+1),ROWS(H$2:H35)))=0,"",INDEX(G$2:G233,SMALL(IF(G$2:G233<>"0",ROW(G$2:G233)-ROW(G$2)+1),ROWS(H$2:H35)))))) -> 
F36: =IF(DesignTool!$B$40=parametric_table!D36,parametric_table!A36,"0") -> 0 | G36: =_xlfn.IFNA(IF(VLOOKUP(F36,ParametricTableRange,MATCH("Operating Region Used",parametric_table!$A$1:$AV$1,0),FALSE)>0,F36,"0"),"0") -> 0 | H36: =IF(ROWS(H$2:H36)>COUNTIF(G$2:G234,"<>0"),"",IF(ISERROR(INDEX(G$2:G234,SMALL(IF(G$2:G234<>"0",ROW(G$2:G234)-ROW(G$2)+1),ROWS(H$2:H36)))),"",IF(INDEX(G$2:G234,SMALL(IF(G$2:G234<>"0",ROW(G$2:G234)-ROW(G$2)+1),ROWS(H$2:H36)))=0,"",INDEX(G$2:G234,SMALL(IF(G$2:G234<>"0",ROW(G$2:G234)-ROW(G$2)+1),ROWS(H$2:H36)))))) -> 
F37: =IF(DesignTool!$B$40=parametric_table!D37,parametric_table!A37,"0") -> 0 | G37: =_xlfn.IFNA(IF(VLOOKUP(F37,ParametricTableRange,MATCH("Operating Region Used",parametric_table!$A$1:$AV$1,0),FALSE)>0,F37,"0"),"0") -> 0 | H37: =IF(ROWS(H$2:H37)>COUNTIF(G$2:G235,"<>0"),"",IF(ISERROR(INDEX(G$2:G235,SMALL(IF(G$2:G235<>"0",ROW(G$2:G235)-ROW(G$2)+1),ROWS(H$2:H37)))),"",IF(INDEX(G$2:G235,SMALL(IF(G$2:G235<>"0",ROW(G$2:G235)-ROW(G$2)+1),ROWS(H$2:H37)))=0,"",INDEX(G$2:G235,SMALL(IF(G$2:G235<>"0",ROW(G$2:G235)-ROW(G$2)+1),ROWS(H$2:H37)))))) -> 
F38: =IF(DesignTool!$B$40=parametric_table!D38,parametric_table!A38,"0") -> 0 | G38: =_xlfn.IFNA(IF(VLOOKUP(F38,ParametricTableRange,MATCH("Operating Region Used",parametric_table!$A$1:$AV$1,0),FALSE)>0,F38,"0"),"0") -> 0 | H38: =IF(ROWS(H$2:H38)>COUNTIF(G$2:G236,"<>0"),"",IF(ISERROR(INDEX(G$2:G236,SMALL(IF(G$2:G236<>"0",ROW(G$2:G236)-ROW(G$2)+1),ROWS(H$2:H38)))),"",IF(INDEX(G$2:G236,SMALL(IF(G$2:G236<>"0",ROW(G$2:G236)-ROW(G$2)+1),ROWS(H$2:H38)))=0,"",INDEX(G$2:G236,SMALL(IF(G$2:G236<>"0",ROW(G$2:G236)-ROW(G$2)+1),ROWS(H$2:H38)))))) -> 
F39: =IF(DesignTool!$B$40=parametric_table!D39,parametric_table!A39,"0") -> 0 | G39: =_xlfn.IFNA(IF(VLOOKUP(F39,ParametricTableRange,MATCH("Operating Region Used",parametric_table!$A$1:$AV$1,0),FALSE)>0,F39,"0"),"0") -> 0 | H39: =IF(ROWS(H$2:H39)>COUNTIF(G$2:G237,"<>0"),"",IF(ISERROR(INDEX(G$2:G237,SMALL(IF(G$2:G237<>"0",ROW(G$2:G237)-ROW(G$2)+1),ROWS(H$2:H39)))),"",IF(INDEX(G$2:G237,SMALL(IF(G$2:G237<>"0",ROW(G$2:G237)-ROW(G$2)+1),ROWS(H$2:H39)))=0,"",INDEX(G$2:G237,SMALL(IF(G$2:G237<>"0",ROW(G$2:G237)-ROW(G$2)+1),ROWS(H$2:H39)))))) -> 
F40: =IF(DesignTool!$B$40=parametric_table!D40,parametric_table!A40,"0") -> DRV5032DUDBZ | G40: =_xlfn.IFNA(IF(VLOOKUP(F40,ParametricTableRange,MATCH("Operating Region Used",parametric_table!$A$1:$AV$1,0),FALSE)>0,F40,"0"),"0") -> DRV5032DUDBZ | H40: =IF(ROWS(H$2:H40)>COUNTIF(G$2:G238,"<>0"),"",IF(ISERROR(INDEX(G$2:G238,SMALL(IF(G$2:G238<>"0",ROW(G$2:G238)-ROW(G$2)+1),ROWS(H$2:H40)))),"",IF(INDEX(G$2:G238,SMALL(IF(G$2:G238<>"0",ROW(G$2:G238)-ROW(G$2)+1),ROWS(H$2:H40)))=0,"",INDEX(G$2:G238,SMALL(IF(G$2:G238<>"0",ROW(G$2:G238)-ROW(G$2)+1),ROWS(H$2:H40)))))) -> 
F41: =IF(DesignTool!$B$40=parametric_table!D41,parametric_table!A41,"0") -> DRV5032DUDMR | G41: =_xlfn.IFNA(IF(VLOOKUP(F41,ParametricTableRange,MATCH("Operating Region Used",parametric_table!$A$1:$AV$1,0),FALSE)>0,F41,"0"),"0") -> DRV5032DUDMR | H41: =IF(ROWS(H$2:H41)>COUNTIF(G$2:G239,"<>0"),"",IF(ISERROR(INDEX(G$2:G239,SMALL(IF(G$2:G239<>"0",ROW(G$2:G239)-ROW(G$2)+1),ROWS(H$2:H41)))),"",IF(INDEX(G$2:G239,SMALL(IF(G$2:G239<>"0",ROW(G$2:G239)-ROW(G$2)+1),ROWS(H$2:H41)))=0,"",INDEX(G$2:G239,SMALL(IF(G$2:G239<>"0",ROW(G$2:G239)-ROW(G$2)+1),ROWS(H$2:H41)))))) -> 
F42: =IF(DesignTool!$B$40=parametric_table!D42,parametric_table!A42,"0") -> DRV5032DULPG | G42: =_xlfn.IFNA(IF(VLOOKUP(F42,ParametricTableRange,MATCH("Operating Region Used",parametric_table!$A$1:$AV$1,0),FALSE)>0,F42,"0"),"0") -> DRV5032DULPG | H42: =IF(ROWS(H$2:H42)>COUNTIF(G$2:G240,"<>0"),"",IF(ISERROR(INDEX(G$2:G240,SMALL(IF(G$2:G240<>"0",ROW(G$2:G240)-ROW(G$2)+1),ROWS(H$2:H42)))),"",IF(INDEX(G$2:G240,SMALL(IF(G$2:G240<>"0",ROW(G$2:G240)-ROW(G$2)+1),ROWS(H$2:H42)))=0,"",INDEX(G$2:G240,SMALL(IF(G$2:G240<>"0",ROW(G$2:G240)-ROW(G$2)+1),ROWS(H$2:H42)))))) -> 
F43: =IF(DesignTool!$B$40=parametric_table!D43,parametric_table!A43,"0") -> 0 | G43: =_xlfn.IFNA(IF(VLOOKUP(F43,ParametricTableRange,MATCH("Operating Region Used",parametric_table!$A$1:$AV$1,0),FALSE)>0,F43,"0"),"0") -> 0 | H43: =IF(ROWS(H$2:H43)>COUNTIF(G$2:G241,"<>0"),"",IF(ISERROR(INDEX(G$2:G241,SMALL(IF(G$2:G241<>"0",ROW(G$2:G241)-ROW(G$2)+1),ROWS(H$2:H43)))),"",IF(INDEX(G$2:G241,SMALL(IF(G$2:G241<>"0",ROW(G$2:G241)-ROW(G$2)+1),ROWS(H$2:H43)))=0,"",INDEX(G$2:G241,SMALL(IF(G$2:G241<>"0",ROW(G$2:G241)-ROW(G$2)+1),ROWS(H$2:H43)))))) -> 
F44: =IF(DesignTool!$B$40=parametric_table!D44,parametric_table!A44,"0") -> 0 | G44: =_xlfn.IFNA(IF(VLOOKUP(F44,ParametricTableRange,MATCH("Operating Region Used",parametric_table!$A$1:$AV$1,0),FALSE)>0,F44,"0"),"0") -> 0 | H44: =IF(ROWS(H$2:H44)>COUNTIF(G$2:G242,"<>0"),"",IF(ISERROR(INDEX(G$2:G242,SMALL(IF(G$2:G242<>"0",ROW(G$2:G242)-ROW(G$2)+1),ROWS(H$2:H44)))),"",IF(INDEX(G$2:G242,SMALL(IF(G$2:G242<>"0",ROW(G$2:G242)-ROW(G$2)+1),ROWS(H$2:H44)))=0,"",INDEX(G$2:G242,SMALL(IF(G$2:G242<>"0",ROW(G$2:G242)-ROW(G$2)+1),ROWS(H$2:H44)))))) -> 
F45: =IF(DesignTool!$B$40=parametric_table!D45,parametric_table!A45,"0") -> 0 | G45: =_xlfn.IFNA(IF(VLOOKUP(F45,ParametricTableRange,MATCH("Operating Region Used",parametric_table!$A$1:$AV$1,0),FALSE)>0,F45,"0"),"0") -> 0 | H45: =IF(ROWS(H$2:H45)>COUNTIF(G$2:G243,"<>0"),"",IF(ISERROR(INDEX(G$2:G243,SMALL(IF(G$2:G243<>"0",ROW(G$2:G243)-ROW(G$2)+1),ROWS(H$2:H45)))),"",IF(INDEX(G$2:G243,SMALL(IF(G$2:G243<>"0",ROW(G$2:G243)-ROW(G$2)+1),ROWS(H$2:H45)))=0,"",INDEX(G$2:G243,SMALL(IF(G$2:G243<>"0",ROW(G$2:G243)-ROW(G$2)+1),ROWS(H$2:H45)))))) -> 
F46: =IF(DesignTool!$B$40=parametric_table!D46,parametric_table!A46,"0") -> 0 | G46: =_xlfn.IFNA(IF(VLOOKUP(F46,ParametricTableRange,MATCH("Operating Region Used",parametric_table!$A$1:$AV$1,0),FALSE)>0,F46,"0"),"0") -> 0 | H46: =IF(ROWS(H$2:H46)>COUNTIF(G$2:G244,"<>0"),"",IF(ISERROR(INDEX(G$2:G244,SMALL(IF(G$2:G244<>"0",ROW(G$2:G244)-ROW(G$2)+1),ROWS(H$2:H46)))),"",IF(INDEX(G$2:G244,SMALL(IF(G$2:G244<>"0",ROW(G$2:G244)-ROW(G$2)+1),ROWS(H$2:H46)))=0,"",INDEX(G$2:G244,SMALL(IF(G$2:G244<>"0",ROW(G$2:G244)-ROW(G$2)+1),ROWS(H$2:H46)))))) -> 
F47: =IF(DesignTool!$B$40=parametric_table!D47,parametric_table!A47,"0") -> 0 | G47: =_xlfn.IFNA(IF(VLOOKUP(F47,ParametricTableRange,MATCH("Operating Region Used",parametric_table!$A$1:$AV$1,0),FALSE)>0,F47,"0"),"0") -> 0 | H47: =IF(ROWS(H$2:H47)>COUNTIF(G$2:G245,"<>0"),"",IF(ISERROR(INDEX(G$2:G245,SMALL(IF(G$2:G245<>"0",ROW(G$2:G245)-ROW(G$2)+1),ROWS(H$2:H47)))),"",IF(INDEX(G$2:G245,SMALL(IF(G$2:G245<>"0",ROW(G$2:G245)-ROW(G$2)+1),ROWS(H$2:H47)))=0,"",INDEX(G$2:G245,SMALL(IF(G$2:G245<>"0",ROW(G$2:G245)-ROW(G$2)+1),ROWS(H$2:H47)))))) -> 
F48: =IF(DesignTool!$B$40=parametric_table!D48,parametric_table!A48,"0") -> 0 | G48: =_xlfn.IFNA(IF(VLOOKUP(F48,ParametricTableRange,MATCH("Operating Region Used",parametric_table!$A$1:$AV$1,0),FALSE)>0,F48,"0"),"0") -> 0 | H48: =IF(ROWS(H$2:H48)>COUNTIF(G$2:G246,"<>0"),"",IF(ISERROR(INDEX(G$2:G246,SMALL(IF(G$2:G246<>"0",ROW(G$2:G246)-ROW(G$2)+1),ROWS(H$2:H48)))),"",IF(INDEX(G$2:G246,SMALL(IF(G$2:G246<>"0",ROW(G$2:G246)-ROW(G$2)+1),ROWS(H$2:H48)))=0,"",INDEX(G$2:G246,SMALL(IF(G$2:G246<>"0",ROW(G$2:G246)-ROW(G$2)+1),ROWS(H$2:H48)))))) -> 
F49: =IF(DesignTool!$B$40=parametric_table!D49,parametric_table!A49,"0") -> 0 | G49: =_xlfn.IFNA(IF(VLOOKUP(F49,ParametricTableRange,MATCH("Operating Region Used",parametric_table!$A$1:$AV$1,0),FALSE)>0,F49,"0"),"0") -> 0 | H49: =IF(ROWS(H$2:H49)>COUNTIF(G$2:G247,"<>0"),"",IF(ISERROR(INDEX(G$2:G247,SMALL(IF(G$2:G247<>"0",ROW(G$2:G247)-ROW(G$2)+1),ROWS(H$2:H49)))),"",IF(INDEX(G$2:G247,SMALL(IF(G$2:G247<>"0",ROW(G$2:G247)-ROW(G$2)+1),ROWS(H$2:H49)))=0,"",INDEX(G$2:G247,SMALL(IF(G$2:G247<>"0",ROW(G$2:G247)-ROW(G$2)+1),ROWS(H$2:H49)))))) -> 
F50: =IF(DesignTool!$B$40=parametric_table!D50,parametric_table!A50,"0") -> DRV5032FDDMR | G50: =_xlfn.IFNA(IF(VLOOKUP(F50,ParametricTableRange,MATCH("Operating Region Used",parametric_table!$A$1:$AV$1,0),FALSE)>0,F50,"0"),"0") -> DRV5032FDDMR | H50: =IF(ROWS(H$2:H50)>COUNTIF(G$2:G248,"<>0"),"",IF(ISERROR(INDEX(G$2:G248,SMALL(IF(G$2:G248<>"0",ROW(G$2:G248)-ROW(G$2)+1),ROWS(H$2:H50)))),"",IF(INDEX(G$2:G248,SMALL(IF(G$2:G248<>"0",ROW(G$2:G248)-ROW(G$2)+1),ROWS(H$2:H50)))=0,"",INDEX(G$2:G248,SMALL(IF(G$2:G248<>"0",ROW(G$2:G248)-ROW(G$2)+1),ROWS(H$2:H50)))))) -> 
F51: =IF(DesignTool!$B$40=parametric_table!D51,parametric_table!A51,"0") -> DRV5032FDLPG | G51: =_xlfn.IFNA(IF(VLOOKUP(F51,ParametricTableRange,MATCH("Operating Region Used",parametric_table!$A$1:$AV$1,0),FALSE)>0,F51,"0"),"0") -> DRV5032FDLPG | H51: =IF(ROWS(H$2:H51)>COUNTIF(G$2:G249,"<>0"),"",IF(ISERROR(INDEX(G$2:G249,SMALL(IF(G$2:G249<>"0",ROW(G$2:G249)-ROW(G$2)+1),ROWS(H$2:H51)))),"",IF(INDEX(G$2:G249,SMALL(IF(G$2:G249<>"0",ROW(G$2:G249)-ROW(G$2)+1),ROWS(H$2:H51)))=0,"",INDEX(G$2:G249,SMALL(IF(G$2:G249<>"0",ROW(G$2:G249)-ROW(G$2)+1),ROWS(H$2:H51)))))) -> 
F52: =IF(DesignTool!$B$40=parametric_table!D52,parametric_table!A52,"0") -> 0 | G52: =_xlfn.IFNA(IF(VLOOKUP(F52,ParametricTableRange,MATCH("Operating Region Used",parametric_table!$A$1:$AV$1,0),FALSE)>0,F52,"0"),"0") -> 0 | H52: =IF(ROWS(H$2:H52)>COUNTIF(G$2:G250,"<>0"),"",IF(ISERROR(INDEX(G$2:G250,SMALL(IF(G$2:G250<>"0",ROW(G$2:G250)-ROW(G$2)+1),ROWS(H$2:H52)))),"",IF(INDEX(G$2:G250,SMALL(IF(G$2:G250<>"0",ROW(G$2:G250)-ROW(G$2)+1),ROWS(H$2:H52)))=0,"",INDEX(G$2:G250,SMALL(IF(G$2:G250<>"0",ROW(G$2:G250)-ROW(G$2)+1),ROWS(H$2:H52)))))) -> 
F53: =IF(DesignTool!$B$40=parametric_table!D53,parametric_table!A53,"0") -> 0 | G53: =_xlfn.IFNA(IF(VLOOKUP(F53,ParametricTableRange,MATCH("Operating Region Used",parametric_table!$A$1:$AV$1,0),FALSE)>0,F53,"0"),"0") -> 0 | H53: =IF(ROWS(H$2:H53)>COUNTIF(G$2:G251,"<>0"),"",IF(ISERROR(INDEX(G$2:G251,SMALL(IF(G$2:G251<>"0",ROW(G$2:G251)-ROW(G$2)+1),ROWS(H$2:H53)))),"",IF(INDEX(G$2:G251,SMALL(IF(G$2:G251<>"0",ROW(G$2:G251)-ROW(G$2)+1),ROWS(H$2:H53)))=0,"",INDEX(G$2:G251,SMALL(IF(G$2:G251<>"0",ROW(G$2:G251)-ROW(G$2)+1),ROWS(H$2:H53)))))) -> 
F54: =IF(DesignTool!$B$40=parametric_table!D54,parametric_table!A54,"0") -> 0 | G54: =_xlfn.IFNA(IF(VLOOKUP(F54,ParametricTableRange,MATCH("Operating Region Used",parametric_table!$A$1:$AV$1,0),FALSE)>0,F54,"0"),"0") -> 0 | H54: =IF(ROWS(H$2:H54)>COUNTIF(G$2:G252,"<>0"),"",IF(ISERROR(INDEX(G$2:G252,SMALL(IF(G$2:G252<>"0",ROW(G$2:G252)-ROW(G$2)+1),ROWS(H$2:H54)))),"",IF(INDEX(G$2:G252,SMALL(IF(G$2:G252<>"0",ROW(G$2:G252)-ROW(G$2)+1),ROWS(H$2:H54)))=0,"",INDEX(G$2:G252,SMALL(IF(G$2:G252<>"0",ROW(G$2:G252)-ROW(G$2)+1),ROWS(H$2:H54)))))) -> 
F55: =IF(DesignTool!$B$40=parametric_table!D55,parametric_table!A55,"0") -> 0 | G55: =_xlfn.IFNA(IF(VLOOKUP(F55,ParametricTableRange,MATCH("Operating Region Used",parametric_table!$A$1:$AV$1,0),FALSE)>0,F55,"0"),"0") -> 0 | H55: =IF(ROWS(H$2:H55)>COUNTIF(G$2:G253,"<>0"),"",IF(ISERROR(INDEX(G$2:G253,SMALL(IF(G$2:G253<>"0",ROW(G$2:G253)-ROW(G$2)+1),ROWS(H$2:H55)))),"",IF(INDEX(G$2:G253,SMALL(IF(G$2:G253<>"0",ROW(G$2:G253)-ROW(G$2)+1),ROWS(H$2:H55)))=0,"",INDEX(G$2:G253,SMALL(IF(G$2:G253<>"0",ROW(G$2:G253)-ROW(G$2)+1),ROWS(H$2:H55)))))) -> 
F56: =IF(DesignTool!$B$40=parametric_table!D56,parametric_table!A56,"0") -> 0 | G56: =_xlfn.IFNA(IF(VLOOKUP(F56,ParametricTableRange,MATCH("Operating Region Used",parametric_table!$A$1:$AV$1,0),FALSE)>0,F56,"0"),"0") -> 0 | H56: =IF(ROWS(H$2:H56)>COUNTIF(G$2:G254,"<>0"),"",IF(ISERROR(INDEX(G$2:G254,SMALL(IF(G$2:G254<>"0",ROW(G$2:G254)-ROW(G$2)+1),ROWS(H$2:H56)))),"",IF(INDEX(G$2:G254,SMALL(IF(G$2:G254<>"0",ROW(G$2:G254)-ROW(G$2)+1),ROWS(H$2:H56)))=0,"",INDEX(G$2:G254,SMALL(IF(G$2:G254<>"0",ROW(G$2:G254)-ROW(G$2)+1),ROWS(H$2:H56)))))) -> 
F57: =IF(DesignTool!$B$40=parametric_table!D57,parametric_table!A57,"0") -> DRV5023FAQDBZ | G57: =_xlfn.IFNA(IF(VLOOKUP(F57,ParametricTableRange,MATCH("Operating Region Used",parametric_table!$A$1:$AV$1,0),FALSE)>0,F57,"0"),"0") -> DRV5023FAQDBZ | H57: =IF(ROWS(H$2:H57)>COUNTIF(G$2:G255,"<>0"),"",IF(ISERROR(INDEX(G$2:G255,SMALL(IF(G$2:G255<>"0",ROW(G$2:G255)-ROW(G$2)+1),ROWS(H$2:H57)))),"",IF(INDEX(G$2:G255,SMALL(IF(G$2:G255<>"0",ROW(G$2:G255)-ROW(G$2)+1),ROWS(H$2:H57)))=0,"",INDEX(G$2:G255,SMALL(IF(G$2:G255<>"0",ROW(G$2:G255)-ROW(G$2)+1),ROWS(H$2:H57)))))) -> 
F58: =IF(DesignTool!$B$40=parametric_table!D58,parametric_table!A58,"0") -> DRV5023AJQDBZ | G58: =_xlfn.IFNA(IF(VLOOKUP(F58,ParametricTableRange,MATCH("Operating Region Used",parametric_table!$A$1:$AV$1,0),FALSE)>0,F58,"0"),"0") -> DRV5023AJQDBZ | H58: =IF(ROWS(H$2:H58)>COUNTIF(G$2:G256,"<>0"),"",IF(ISERROR(INDEX(G$2:G256,SMALL(IF(G$2:G256<>"0",ROW(G$2:G256)-ROW(G$2)+1),ROWS(H$2:H58)))),"",IF(INDEX(G$2:G256,SMALL(IF(G$2:G256<>"0",ROW(G$2:G256)-ROW(G$2)+1),ROWS(H$2:H58)))=0,"",INDEX(G$2:G256,SMALL(IF(G$2:G256<>"0",ROW(G$2:G256)-ROW(G$2)+1),ROWS(H$2:H58)))))) -> 
F59: =IF(DesignTool!$B$40=parametric_table!D59,parametric_table!A59,"0") -> DRV5023AJQLPG | G59: =_xlfn.IFNA(IF(VLOOKUP(F59,ParametricTableRange,MATCH("Operating Region Used",parametric_table!$A$1:$AV$1,0),FALSE)>0,F59,"0"),"0") -> DRV5023AJQLPG | H59: =IF(ROWS(H$2:H59)>COUNTIF(G$2:G257,"<>0"),"",IF(ISERROR(INDEX(G$2:G257,SMALL(IF(G$2:G257<>"0",ROW(G$2:G257)-ROW(G$2)+1),ROWS(H$2:H59)))),"",IF(INDEX(G$2:G257,SMALL(IF(G$2:G257<>"0",ROW(G$2:G257)-ROW(G$2)+1),ROWS(H$2:H59)))=0,"",INDEX(G$2:G257,SMALL(IF(G$2:G257<>"0",ROW(G$2:G257)-ROW(G$2)+1),ROWS(H$2:H59)))))) -> 
F60: =IF(DesignTool!$B$40=parametric_table!D60,parametric_table!A60,"0") -> DRV5023BIQDBZ | G60: =_xlfn.IFNA(IF(VLOOKUP(F60,ParametricTableRange,MATCH("Operating Region Used",parametric_table!$A$1:$AV$1,0),FALSE)>0,F60,"0"),"0") -> DRV5023BIQDBZ | H60: =IF(ROWS(H$2:H60)>COUNTIF(G$2:G258,"<>0"),"",IF(ISERROR(INDEX(G$2:G258,SMALL(IF(G$2:G258<>"0",ROW(G$2:G258)-ROW(G$2)+1),ROWS(H$2:H60)))),"",IF(INDEX(G$2:G258,SMALL(IF(G$2:G258<>"0",ROW(G$2:G258)-ROW(G$2)+1),ROWS(H$2:H60)))=0,"",INDEX(G$2:G258,SMALL(IF(G$2:G258<>"0",ROW(G$2:G258)-ROW(G$2)+1),ROWS(H$2:H60)))))) -> 
F61: =IF(DesignTool!$B$40=parametric_table!D61,parametric_table!A61,"0") -> DRV5023BIQLPG | G61: =_xlfn.IFNA(IF(VLOOKUP(F61,ParametricTableRange,MATCH("Operating Region Used",parametric_table!$A$1:$AV$1,0),FALSE)>0,F61,"0"),"0") -> DRV5023BIQLPG | H61: =IF(ROWS(H$2:H61)>COUNTIF(G$2:G259,"<>0"),"",IF(ISERROR(INDEX(G$2:G259,SMALL(IF(G$2:G259<>"0",ROW(G$2:G259)-ROW(G$2)+1),ROWS(H$2:H61)))),"",IF(INDEX(G$2:G259,SMALL(IF(G$2:G259<>"0",ROW(G$2:G259)-ROW(G$2)+1),ROWS(H$2:H61)))=0,"",INDEX(G$2:G259,SMALL(IF(G$2:G259<>"0",ROW(G$2:G259)-ROW(G$2)+1),ROWS(H$2:H61)))))) -> 
F62: =IF(DesignTool!$B$40=parametric_table!D62,parametric_table!A62,"0") -> 0 | G62: =_xlfn.IFNA(IF(VLOOKUP(F62,ParametricTableRange,MATCH("Operating Region Used",parametric_table!$A$1:$AV$1,0),FALSE)>0,F62,"0"),"0") -> 0 | H62: =IF(ROWS(H$2:H62)>COUNTIF(G$2:G260,"<>0"),"",IF(ISERROR(INDEX(G$2:G260,SMALL(IF(G$2:G260<>"0",ROW(G$2:G260)-ROW(G$2)+1),ROWS(H$2:H62)))),"",IF(INDEX(G$2:G260,SMALL(IF(G$2:G260<>"0",ROW(G$2:G260)-ROW(G$2)+1),ROWS(H$2:H62)))=0,"",INDEX(G$2:G260,SMALL(IF(G$2:G260<>"0",ROW(G$2:G260)-ROW(G$2)+1),ROWS(H$2:H62)))))) -> 
F63: =IF(DesignTool!$B$40=parametric_table!D63,parametric_table!A63,"0") -> 0 | G63: =_xlfn.IFNA(IF(VLOOKUP(F63,ParametricTableRange,MATCH("Operating Region Used",parametric_table!$A$1:$AV$1,0),FALSE)>0,F63,"0"),"0") -> 0 | H63: =IF(ROWS(H$2:H63)>COUNTIF(G$2:G261,"<>0"),"",IF(ISERROR(INDEX(G$2:G261,SMALL(IF(G$2:G261<>"0",ROW(G$2:G261)-ROW(G$2)+1),ROWS(H$2:H63)))),"",IF(INDEX(G$2:G261,SMALL(IF(G$2:G261<>"0",ROW(G$2:G261)-ROW(G$2)+1),ROWS(H$2:H63)))=0,"",INDEX(G$2:G261,SMALL(IF(G$2:G261<>"0",ROW(G$2:G261)-ROW(G$2)+1),ROWS(H$2:H63)))))) -> 
F64: =IF(DesignTool!$B$40=parametric_table!D64,parametric_table!A64,"0") -> 0 | G64: =_xlfn.IFNA(IF(VLOOKUP(F64,ParametricTableRange,MATCH("Operating Region Used",parametric_table!$A$1:$AV$1,0),FALSE)>0,F64,"0"),"0") -> 0 | H64: =IF(ROWS(H$2:H64)>COUNTIF(G$2:G262,"<>0"),"",IF(ISERROR(INDEX(G$2:G262,SMALL(IF(G$2:G262<>"0",ROW(G$2:G262)-ROW(G$2)+1),ROWS(H$2:H64)))),"",IF(INDEX(G$2:G262,SMALL(IF(G$2:G262<>"0",ROW(G$2:G262)-ROW(G$2)+1),ROWS(H$2:H64)))=0,"",INDEX(G$2:G262,SMALL(IF(G$2:G262<>"0",ROW(G$2:G262)-ROW(G$2)+1),ROWS(H$2:H64)))))) -> 
F65: =IF(DesignTool!$B$40=parametric_table!D65,parametric_table!A65,"0") -> 0 | G65: =_xlfn.IFNA(IF(VLOOKUP(F65,ParametricTableRange,MATCH("Operating Region Used",parametric_table!$A$1:$AV$1,0),FALSE)>0,F65,"0"),"0") -> 0 | H65: =IF(ROWS(H$2:H65)>COUNTIF(G$2:G263,"<>0"),"",IF(ISERROR(INDEX(G$2:G263,SMALL(IF(G$2:G263<>"0",ROW(G$2:G263)-ROW(G$2)+1),ROWS(H$2:H65)))),"",IF(INDEX(G$2:G263,SMALL(IF(G$2:G263<>"0",ROW(G$2:G263)-ROW(G$2)+1),ROWS(H$2:H65)))=0,"",INDEX(G$2:G263,SMALL(IF(G$2:G263<>"0",ROW(G$2:G263)-ROW(G$2)+1),ROWS(H$2:H65)))))) -> 
F66: =IF(DesignTool!$B$40=parametric_table!D66,parametric_table!A66,"0") -> 0 | G66: =_xlfn.IFNA(IF(VLOOKUP(F66,ParametricTableRange,MATCH("Operating Region Used",parametric_table!$A$1:$AV$1,0),FALSE)>0,F66,"0"),"0") -> 0 | H66: =IF(ROWS(H$2:H66)>COUNTIF(G$2:G264,"<>0"),"",IF(ISERROR(INDEX(G$2:G264,SMALL(IF(G$2:G264<>"0",ROW(G$2:G264)-ROW(G$2)+1),ROWS(H$2:H66)))),"",IF(INDEX(G$2:G264,SMALL(IF(G$2:G264<>"0",ROW(G$2:G264)-ROW(G$2)+1),ROWS(H$2:H66)))=0,"",INDEX(G$2:G264,SMALL(IF(G$2:G264<>"0",ROW(G$2:G264)-ROW(G$2)+1),ROWS(H$2:H66)))))) -> 
F67: =IF(DesignTool!$B$40=parametric_table!D67,parametric_table!A67,"0") -> 0 | G67: =_xlfn.IFNA(IF(VLOOKUP(F67,ParametricTableRange,MATCH("Operating Region Used",parametric_table!$A$1:$AV$1,0),FALSE)>0,F67,"0"),"0") -> 0 | H67: =IF(ROWS(H$2:H67)>COUNTIF(G$2:G265,"<>0"),"",IF(ISERROR(INDEX(G$2:G265,SMALL(IF(G$2:G265<>"0",ROW(G$2:G265)-ROW(G$2)+1),ROWS(H$2:H67)))),"",IF(INDEX(G$2:G265,SMALL(IF(G$2:G265<>"0",ROW(G$2:G265)-ROW(G$2)+1),ROWS(H$2:H67)))=0,"",INDEX(G$2:G265,SMALL(IF(G$2:G265<>"0",ROW(G$2:G265)-ROW(G$2)+1),ROWS(H$2:H67)))))) -> 
F68: =IF(DesignTool!$B$40=parametric_table!D68,parametric_table!A68,"0") -> 0 | G68: =_xlfn.IFNA(IF(VLOOKUP(F68,ParametricTableRange,MATCH("Operating Region Used",parametric_table!$A$1:$AV$1,0),FALSE)>0,F68,"0"),"0") -> 0 | H68: =IF(ROWS(H$2:H68)>COUNTIF(G$2:G266,"<>0"),"",IF(ISERROR(INDEX(G$2:G266,SMALL(IF(G$2:G266<>"0",ROW(G$2:G266)-ROW(G$2)+1),ROWS(H$2:H68)))),"",IF(INDEX(G$2:G266,SMALL(IF(G$2:G266<>"0",ROW(G$2:G266)-ROW(G$2)+1),ROWS(H$2:H68)))=0,"",INDEX(G$2:G266,SMALL(IF(G$2:G266<>"0",ROW(G$2:G266)-ROW(G$2)+1),ROWS(H$2:H68)))))) -> 
F69: =IF(DesignTool!$B$40=parametric_table!D69,parametric_table!A69,"0") -> 0 | G69: =_xlfn.IFNA(IF(VLOOKUP(F69,ParametricTableRange,MATCH("Operating Region Used",parametric_table!$A$1:$AV$1,0),FALSE)>0,F69,"0"),"0") -> 0 | H69: =IF(ROWS(H$2:H69)>COUNTIF(G$2:G267,"<>0"),"",IF(ISERROR(INDEX(G$2:G267,SMALL(IF(G$2:G267<>"0",ROW(G$2:G267)-ROW(G$2)+1),ROWS(H$2:H69)))),"",IF(INDEX(G$2:G267,SMALL(IF(G$2:G267<>"0",ROW(G$2:G267)-ROW(G$2)+1),ROWS(H$2:H69)))=0,"",INDEX(G$2:G267,SMALL(IF(G$2:G267<>"0",ROW(G$2:G267)-ROW(G$2)+1),ROWS(H$2:H69)))))) -> 
F70: =IF(DesignTool!$B$40=parametric_table!D70,parametric_table!A70,"0") -> 0 | G70: =_xlfn.IFNA(IF(VLOOKUP(F70,ParametricTableRange,MATCH("Operating Region Used",parametric_table!$A$1:$AV$1,0),FALSE)>0,F70,"0"),"0") -> 0 | H70: =IF(ROWS(H$2:H70)>COUNTIF(G$2:G268,"<>0"),"",IF(ISERROR(INDEX(G$2:G268,SMALL(IF(G$2:G268<>"0",ROW(G$2:G268)-ROW(G$2)+1),ROWS(H$2:H70)))),"",IF(INDEX(G$2:G268,SMALL(IF(G$2:G268<>"0",ROW(G$2:G268)-ROW(G$2)+1),ROWS(H$2:H70)))=0,"",INDEX(G$2:G268,SMALL(IF(G$2:G268<>"0",ROW(G$2:G268)-ROW(G$2)+1),ROWS(H$2:H70)))))) -> 
F71: =IF(DesignTool!$B$40=parametric_table!D71,parametric_table!A71,"0") -> 0 | G71: =_xlfn.IFNA(IF(VLOOKUP(F71,ParametricTableRange,MATCH("Operating Region Used",parametric_table!$A$1:$AV$1,0),FALSE)>0,F71,"0"),"0") -> 0 | H71: =IF(ROWS(H$2:H71)>COUNTIF(G$2:G269,"<>0"),"",IF(ISERROR(INDEX(G$2:G269,SMALL(IF(G$2:G269<>"0",ROW(G$2:G269)-ROW(G$2)+1),ROWS(H$2:H71)))),"",IF(INDEX(G$2:G269,SMALL(IF(G$2:G269<>"0",ROW(G$2:G269)-ROW(G$2)+1),ROWS(H$2:H71)))=0,"",INDEX(G$2:G269,SMALL(IF(G$2:G269<>"0",ROW(G$2:G269)-ROW(G$2)+1),ROWS(H$2:H71)))))) -> 
F72: =IF(DesignTool!$B$40=parametric_table!D72,parametric_table!A72,"0") -> 0 | G72: =_xlfn.IFNA(IF(VLOOKUP(F72,ParametricTableRange,MATCH("Operating Region Used",parametric_table!$A$1:$AV$1,0),FALSE)>0,F72,"0"),"0") -> 0 | H72: =IF(ROWS(H$2:H72)>COUNTIF(G$2:G270,"<>0"),"",IF(ISERROR(INDEX(G$2:G270,SMALL(IF(G$2:G270<>"0",ROW(G$2:G270)-ROW(G$2)+1),ROWS(H$2:H72)))),"",IF(INDEX(G$2:G270,SMALL(IF(G$2:G270<>"0",ROW(G$2:G270)-ROW(G$2)+1),ROWS(H$2:H72)))=0,"",INDEX(G$2:G270,SMALL(IF(G$2:G270<>"0",ROW(G$2:G270)-ROW(G$2)+1),ROWS(H$2:H72)))))) -> 
F73: =IF(DesignTool!$B$40=parametric_table!D73,parametric_table!A73,"0") -> 0 | G73: =_xlfn.IFNA(IF(VLOOKUP(F73,ParametricTableRange,MATCH("Operating Region Used",parametric_table!$A$1:$AV$1,0),FALSE)>0,F73,"0"),"0") -> 0 | H73: =IF(ROWS(H$2:H73)>COUNTIF(G$2:G271,"<>0"),"",IF(ISERROR(INDEX(G$2:G271,SMALL(IF(G$2:G271<>"0",ROW(G$2:G271)-ROW(G$2)+1),ROWS(H$2:H73)))),"",IF(INDEX(G$2:G271,SMALL(IF(G$2:G271<>"0",ROW(G$2:G271)-ROW(G$2)+1),ROWS(H$2:H73)))=0,"",INDEX(G$2:G271,SMALL(IF(G$2:G271<>"0",ROW(G$2:G271)-ROW(G$2)+1),ROWS(H$2:H73)))))) -> 
F74: =IF(DesignTool!$B$40=parametric_table!D74,parametric_table!A74,"0") -> 0 | G74: =_xlfn.IFNA(IF(VLOOKUP(F74,ParametricTableRange,MATCH("Operating Region Used",parametric_table!$A$1:$AV$1,0),FALSE)>0,F74,"0"),"0") -> 0 | H74: =IF(ROWS(H$2:H74)>COUNTIF(G$2:G272,"<>0"),"",IF(ISERROR(INDEX(G$2:G272,SMALL(IF(G$2:G272<>"0",ROW(G$2:G272)-ROW(G$2)+1),ROWS(H$2:H74)))),"",IF(INDEX(G$2:G272,SMALL(IF(G$2:G272<>"0",ROW(G$2:G272)-ROW(G$2)+1),ROWS(H$2:H74)))=0,"",INDEX(G$2:G272,SMALL(IF(G$2:G272<>"0",ROW(G$2:G272)-ROW(G$2)+1),ROWS(H$2:H74)))))) -> 
F75: =IF(DesignTool!$B$40=parametric_table!D75,parametric_table!A75,"0") -> 0 | G75: =_xlfn.IFNA(IF(VLOOKUP(F75,ParametricTableRange,MATCH("Operating Region Used",parametric_table!$A$1:$AV$1,0),FALSE)>0,F75,"0"),"0") -> 0 | H75: =IF(ROWS(H$2:H75)>COUNTIF(G$2:G273,"<>0"),"",IF(ISERROR(INDEX(G$2:G273,SMALL(IF(G$2:G273<>"0",ROW(G$2:G273)-ROW(G$2)+1),ROWS(H$2:H75)))),"",IF(INDEX(G$2:G273,SMALL(IF(G$2:G273<>"0",ROW(G$2:G273)-ROW(G$2)+1),ROWS(H$2:H75)))=0,"",INDEX(G$2:G273,SMALL(IF(G$2:G273<>"0",ROW(G$2:G273)-ROW(G$2)+1),ROWS(H$2:H75)))))) -> 
F76: =IF(DesignTool!$B$40=parametric_table!D76,parametric_table!A76,"0") -> 0 | G76: =_xlfn.IFNA(IF(VLOOKUP(F76,ParametricTableRange,MATCH("Operating Region Used",parametric_table!$A$1:$AV$1,0),FALSE)>0,F76,"0"),"0") -> 0 | H76: =IF(ROWS(H$2:H76)>COUNTIF(G$2:G274,"<>0"),"",IF(ISERROR(INDEX(G$2:G274,SMALL(IF(G$2:G274<>"0",ROW(G$2:G274)-ROW(G$2)+1),ROWS(H$2:H76)))),"",IF(INDEX(G$2:G274,SMALL(IF(G$2:G274<>"0",ROW(G$2:G274)-ROW(G$2)+1),ROWS(H$2:H76)))=0,"",INDEX(G$2:G274,SMALL(IF(G$2:G274<>"0",ROW(G$2:G274)-ROW(G$2)+1),ROWS(H$2:H76)))))) -> 
F77: =IF(DesignTool!$B$40=parametric_table!D77,parametric_table!A77,"0") -> 0 | G77: =_xlfn.IFNA(IF(VLOOKUP(F77,ParametricTableRange,MATCH("Operating Region Used",parametric_table!$A$1:$AV$1,0),FALSE)>0,F77,"0"),"0") -> 0 | H77: =IF(ROWS(H$2:H77)>COUNTIF(G$2:G275,"<>0"),"",IF(ISERROR(INDEX(G$2:G275,SMALL(IF(G$2:G275<>"0",ROW(G$2:G275)-ROW(G$2)+1),ROWS(H$2:H77)))),"",IF(INDEX(G$2:G275,SMALL(IF(G$2:G275<>"0",ROW(G$2:G275)-ROW(G$2)+1),ROWS(H$2:H77)))=0,"",INDEX(G$2:G275,SMALL(IF(G$2:G275<>"0",ROW(G$2:G275)-ROW(G$2)+1),ROWS(H$2:H77)))))) -> 
F78: =IF(DesignTool!$B$40=parametric_table!D78,parametric_table!A78,"0") -> 0 | G78: =_xlfn.IFNA(IF(VLOOKUP(F78,ParametricTableRange,MATCH("Operating Region Used",parametric_table!$A$1:$AV$1,0),FALSE)>0,F78,"0"),"0") -> 0 | H78: =IF(ROWS(H$2:H78)>COUNTIF(G$2:G276,"<>0"),"",IF(ISERROR(INDEX(G$2:G276,SMALL(IF(G$2:G276<>"0",ROW(G$2:G276)-ROW(G$2)+1),ROWS(H$2:H78)))),"",IF(INDEX(G$2:G276,SMALL(IF(G$2:G276<>"0",ROW(G$2:G276)-ROW(G$2)+1),ROWS(H$2:H78)))=0,"",INDEX(G$2:G276,SMALL(IF(G$2:G276<>"0",ROW(G$2:G276)-ROW(G$2)+1),ROWS(H$2:H78)))))) -> 
F79: =IF(DesignTool!$B$40=parametric_table!D79,parametric_table!A79,"0") -> 0 | G79: =_xlfn.IFNA(IF(VLOOKUP(F79,ParametricTableRange,MATCH("Operating Region Used",parametric_table!$A$1:$AV$1,0),FALSE)>0,F79,"0"),"0") -> 0 | H79: =IF(ROWS(H$2:H79)>COUNTIF(G$2:G277,"<>0"),"",IF(ISERROR(INDEX(G$2:G277,SMALL(IF(G$2:G277<>"0",ROW(G$2:G277)-ROW(G$2)+1),ROWS(H$2:H79)))),"",IF(INDEX(G$2:G277,SMALL(IF(G$2:G277<>"0",ROW(G$2:G277)-ROW(G$2)+1),ROWS(H$2:H79)))=0,"",INDEX(G$2:G277,SMALL(IF(G$2:G277<>"0",ROW(G$2:G277)-ROW(G$2)+1),ROWS(H$2:H79)))))) -> 
F80: =IF(DesignTool!$B$40=parametric_table!D80,parametric_table!A80,"0") -> 0 | G80: =_xlfn.IFNA(IF(VLOOKUP(F80,ParametricTableRange,MATCH("Operating Region Used",parametric_table!$A$1:$AV$1,0),FALSE)>0,F80,"0"),"0") -> 0 | H80: =IF(ROWS(H$2:H80)>COUNTIF(G$2:G278,"<>0"),"",IF(ISERROR(INDEX(G$2:G278,SMALL(IF(G$2:G278<>"0",ROW(G$2:G278)-ROW(G$2)+1),ROWS(H$2:H80)))),"",IF(INDEX(G$2:G278,SMALL(IF(G$2:G278<>"0",ROW(G$2:G278)-ROW(G$2)+1),ROWS(H$2:H80)))=0,"",INDEX(G$2:G278,SMALL(IF(G$2:G278<>"0",ROW(G$2:G278)-ROW(G$2)+1),ROWS(H$2:H80)))))) -> 
F81: =IF(DesignTool!$B$40=parametric_table!D81,parametric_table!A81,"0") -> 0 | G81: =_xlfn.IFNA(IF(VLOOKUP(F81,ParametricTableRange,MATCH("Operating Region Used",parametric_table!$A$1:$AV$1,0),FALSE)>0,F81,"0"),"0") -> 0 | H81: =IF(ROWS(H$2:H81)>COUNTIF(G$2:G279,"<>0"),"",IF(ISERROR(INDEX(G$2:G279,SMALL(IF(G$2:G279<>"0",ROW(G$2:G279)-ROW(G$2)+1),ROWS(H$2:H81)))),"",IF(INDEX(G$2:G279,SMALL(IF(G$2:G279<>"0",ROW(G$2:G279)-ROW(G$2)+1),ROWS(H$2:H81)))=0,"",INDEX(G$2:G279,SMALL(IF(G$2:G279<>"0",ROW(G$2:G279)-ROW(G$2)+1),ROWS(H$2:H81)))))) -> 
F82: =IF(DesignTool!$B$40=parametric_table!D82,parametric_table!A82,"0") -> 0 | G82: =_xlfn.IFNA(IF(VLOOKUP(F82,ParametricTableRange,MATCH("Operating Region Used",parametric_table!$A$1:$AV$1,0),FALSE)>0,F82,"0"),"0") -> 0 | H82: =IF(ROWS(H$2:H82)>COUNTIF(G$2:G280,"<>0"),"",IF(ISERROR(INDEX(G$2:G280,SMALL(IF(G$2:G280<>"0",ROW(G$2:G280)-ROW(G$2)+1),ROWS(H$2:H82)))),"",IF(INDEX(G$2:G280,SMALL(IF(G$2:G280<>"0",ROW(G$2:G280)-ROW(G$2)+1),ROWS(H$2:H82)))=0,"",INDEX(G$2:G280,SMALL(IF(G$2:G280<>"0",ROW(G$2:G280)-ROW(G$2)+1),ROWS(H$2:H82)))))) -> 
F83: =IF(DesignTool!$B$40=parametric_table!D83,parametric_table!A83,"0") -> 0 | G83: =_xlfn.IFNA(IF(VLOOKUP(F83,ParametricTableRange,MATCH("Operating Region Used",parametric_table!$A$1:$AV$1,0),FALSE)>0,F83,"0"),"0") -> 0 | H83: =IF(ROWS(H$2:H83)>COUNTIF(G$2:G281,"<>0"),"",IF(ISERROR(INDEX(G$2:G281,SMALL(IF(G$2:G281<>"0",ROW(G$2:G281)-ROW(G$2)+1),ROWS(H$2:H83)))),"",IF(INDEX(G$2:G281,SMALL(IF(G$2:G281<>"0",ROW(G$2:G281)-ROW(G$2)+1),ROWS(H$2:H83)))=0,"",INDEX(G$2:G281,SMALL(IF(G$2:G281<>"0",ROW(G$2:G281)-ROW(G$2)+1),ROWS(H$2:H83)))))) -> 
F84: =IF(DesignTool!$B$40=parametric_table!D84,parametric_table!A84,"0") -> 0 | G84: =_xlfn.IFNA(IF(VLOOKUP(F84,ParametricTableRange,MATCH("Operating Region Used",parametric_table!$A$1:$AV$1,0),FALSE)>0,F84,"0"),"0") -> 0 | H84: =IF(ROWS(H$2:H84)>COUNTIF(G$2:G282,"<>0"),"",IF(ISERROR(INDEX(G$2:G282,SMALL(IF(G$2:G282<>"0",ROW(G$2:G282)-ROW(G$2)+1),ROWS(H$2:H84)))),"",IF(INDEX(G$2:G282,SMALL(IF(G$2:G282<>"0",ROW(G$2:G282)-ROW(G$2)+1),ROWS(H$2:H84)))=0,"",INDEX(G$2:G282,SMALL(IF(G$2:G282<>"0",ROW(G$2:G282)-ROW(G$2)+1),ROWS(H$2:H84)))))) -> 
F85: =IF(DesignTool!$B$40=parametric_table!D85,parametric_table!A85,"0") -> 0 | G85: =_xlfn.IFNA(IF(VLOOKUP(F85,ParametricTableRange,MATCH("Operating Region Used",parametric_table!$A$1:$AV$1,0),FALSE)>0,F85,"0"),"0") -> 0 | H85: =IF(ROWS(H$2:H85)>COUNTIF(G$2:G283,"<>0"),"",IF(ISERROR(INDEX(G$2:G283,SMALL(IF(G$2:G283<>"0",ROW(G$2:G283)-ROW(G$2)+1),ROWS(H$2:H85)))),"",IF(INDEX(G$2:G283,SMALL(IF(G$2:G283<>"0",ROW(G$2:G283)-ROW(G$2)+1),ROWS(H$2:H85)))=0,"",INDEX(G$2:G283,SMALL(IF(G$2:G283<>"0",ROW(G$2:G283)-ROW(G$2)+1),ROWS(H$2:H85)))))) -> 
F86: =IF(DesignTool!$B$40=parametric_table!D86,parametric_table!A86,"0") -> 0 | G86: =_xlfn.IFNA(IF(VLOOKUP(F86,ParametricTableRange,MATCH("Operating Region Used",parametric_table!$A$1:$AV$1,0),FALSE)>0,F86,"0"),"0") -> 0 | H86: =IF(ROWS(H$2:H86)>COUNTIF(G$2:G284,"<>0"),"",IF(ISERROR(INDEX(G$2:G284,SMALL(IF(G$2:G284<>"0",ROW(G$2:G284)-ROW(G$2)+1),ROWS(H$2:H86)))),"",IF(INDEX(G$2:G284,SMALL(IF(G$2:G284<>"0",ROW(G$2:G284)-ROW(G$2)+1),ROWS(H$2:H86)))=0,"",INDEX(G$2:G284,SMALL(IF(G$2:G284<>"0",ROW(G$2:G284)-ROW(G$2)+1),ROWS(H$2:H86)))))) -> 
F87: =IF(DesignTool!$B$40=parametric_table!D87,parametric_table!A87,"0") -> 0 | G87: =_xlfn.IFNA(IF(VLOOKUP(F87,ParametricTableRange,MATCH("Operating Region Used",parametric_table!$A$1:$AV$1,0),FALSE)>0,F87,"0"),"0") -> 0 | H87: =IF(ROWS(H$2:H87)>COUNTIF(G$2:G285,"<>0"),"",IF(ISERROR(INDEX(G$2:G285,SMALL(IF(G$2:G285<>"0",ROW(G$2:G285)-ROW(G$2)+1),ROWS(H$2:H87)))),"",IF(INDEX(G$2:G285,SMALL(IF(G$2:G285<>"0",ROW(G$2:G285)-ROW(G$2)+1),ROWS(H$2:H87)))=0,"",INDEX(G$2:G285,SMALL(IF(G$2:G285<>"0",ROW(G$2:G285)-ROW(G$2)+1),ROWS(H$2:H87)))))) -> 
F88: =IF(DesignTool!$B$40=parametric_table!D88,parametric_table!A88,"0") -> 0 | G88: =_xlfn.IFNA(IF(VLOOKUP(F88,ParametricTableRange,MATCH("Operating Region Used",parametric_table!$A$1:$AV$1,0),FALSE)>0,F88,"0"),"0") -> 0 | H88: =IF(ROWS(H$2:H88)>COUNTIF(G$2:G286,"<>0"),"",IF(ISERROR(INDEX(G$2:G286,SMALL(IF(G$2:G286<>"0",ROW(G$2:G286)-ROW(G$2)+1),ROWS(H$2:H88)))),"",IF(INDEX(G$2:G286,SMALL(IF(G$2:G286<>"0",ROW(G$2:G286)-ROW(G$2)+1),ROWS(H$2:H88)))=0,"",INDEX(G$2:G286,SMALL(IF(G$2:G286<>"0",ROW(G$2:G286)-ROW(G$2)+1),ROWS(H$2:H88)))))) -> 
F89: =IF(DesignTool!$B$40=parametric_table!D89,parametric_table!A89,"0") -> 0 | G89: =_xlfn.IFNA(IF(VLOOKUP(F89,ParametricTableRange,MATCH("Operating Region Used",parametric_table!$A$1:$AV$1,0),FALSE)>0,F89,"0"),"0") -> 0 | H89: =IF(ROWS(H$2:H89)>COUNTIF(G$2:G287,"<>0"),"",IF(ISERROR(INDEX(G$2:G287,SMALL(IF(G$2:G287<>"0",ROW(G$2:G287)-ROW(G$2)+1),ROWS(H$2:H89)))),"",IF(INDEX(G$2:G287,SMALL(IF(G$2:G287<>"0",ROW(G$2:G287)-ROW(G$2)+1),ROWS(H$2:H89)))=0,"",INDEX(G$2:G287,SMALL(IF(G$2:G287<>"0",ROW(G$2:G287)-ROW(G$2)+1),ROWS(H$2:H89)))))) -> 
F90: =IF(DesignTool!$B$40=parametric_table!D90,parametric_table!A90,"0") -> 0 | G90: =_xlfn.IFNA(IF(VLOOKUP(F90,ParametricTableRange,MATCH("Operating Region Used",parametric_table!$A$1:$AV$1,0),FALSE)>0,F90,"0"),"0") -> 0 | H90: =IF(ROWS(H$2:H90)>COUNTIF(G$2:G288,"<>0"),"",IF(ISERROR(INDEX(G$2:G288,SMALL(IF(G$2:G288<>"0",ROW(G$2:G288)-ROW(G$2)+1),ROWS(H$2:H90)))),"",IF(INDEX(G$2:G288,SMALL(IF(G$2:G288<>"0",ROW(G$2:G288)-ROW(G$2)+1),ROWS(H$2:H90)))=0,"",INDEX(G$2:G288,SMALL(IF(G$2:G288<>"0",ROW(G$2:G288)-ROW(G$2)+1),ROWS(H$2:H90)))))) -> 
F91: =IF(DesignTool!$B$40=parametric_table!D91,parametric_table!A91,"0") -> 0 | G91: =_xlfn.IFNA(IF(VLOOKUP(F91,ParametricTableRange,MATCH("Operating Region Used",parametric_table!$A$1:$AV$1,0),FALSE)>0,F91,"0"),"0") -> 0 | H91: =IF(ROWS(H$2:H91)>COUNTIF(G$2:G289,"<>0"),"",IF(ISERROR(INDEX(G$2:G289,SMALL(IF(G$2:G289<>"0",ROW(G$2:G289)-ROW(G$2)+1),ROWS(H$2:H91)))),"",IF(INDEX(G$2:G289,SMALL(IF(G$2:G289<>"0",ROW(G$2:G289)-ROW(G$2)+1),ROWS(H$2:H91)))=0,"",INDEX(G$2:G289,SMALL(IF(G$2:G289<>"0",ROW(G$2:G289)-ROW(G$2)+1),ROWS(H$2:H91)))))) -> 
F92: =IF(DesignTool!$B$40=parametric_table!D92,parametric_table!A92,"0") -> 0 | G92: =_xlfn.IFNA(IF(VLOOKUP(F92,ParametricTableRange,MATCH("Operating Region Used",parametric_table!$A$1:$AV$1,0),FALSE)>0,F92,"0"),"0") -> 0 | H92: =IF(ROWS(H$2:H92)>COUNTIF(G$2:G290,"<>0"),"",IF(ISERROR(INDEX(G$2:G290,SMALL(IF(G$2:G290<>"0",ROW(G$2:G290)-ROW(G$2)+1),ROWS(H$2:H92)))),"",IF(INDEX(G$2:G290,SMALL(IF(G$2:G290<>"0",ROW(G$2:G290)-ROW(G$2)+1),ROWS(H$2:H92)))=0,"",INDEX(G$2:G290,SMALL(IF(G$2:G290<>"0",ROW(G$2:G290)-ROW(G$2)+1),ROWS(H$2:H92)))))) -> 
F93: =IF(DesignTool!$B$40=parametric_table!D93,parametric_table!A93,"0") -> 0 | G93: =_xlfn.IFNA(IF(VLOOKUP(F93,ParametricTableRange,MATCH("Operating Region Used",parametric_table!$A$1:$AV$1,0),FALSE)>0,F93,"0"),"0") -> 0 | H93: =IF(ROWS(H$2:H93)>COUNTIF(G$2:G291,"<>0"),"",IF(ISERROR(INDEX(G$2:G291,SMALL(IF(G$2:G291<>"0",ROW(G$2:G291)-ROW(G$2)+1),ROWS(H$2:H93)))),"",IF(INDEX(G$2:G291,SMALL(IF(G$2:G291<>"0",ROW(G$2:G291)-ROW(G$2)+1),ROWS(H$2:H93)))=0,"",INDEX(G$2:G291,SMALL(IF(G$2:G291<>"0",ROW(G$2:G291)-ROW(G$2)+1),ROWS(H$2:H93)))))) -> 
F94: =IF(DesignTool!$B$40=parametric_table!D94,parametric_table!A94,"0") -> 0 | G94: =_xlfn.IFNA(IF(VLOOKUP(F94,ParametricTableRange,MATCH("Operating Region Used",parametric_table!$A$1:$AV$1,0),FALSE)>0,F94,"0"),"0") -> 0 | H94: =IF(ROWS(H$2:H94)>COUNTIF(G$2:G292,"<>0"),"",IF(ISERROR(INDEX(G$2:G292,SMALL(IF(G$2:G292<>"0",ROW(G$2:G292)-ROW(G$2)+1),ROWS(H$2:H94)))),"",IF(INDEX(G$2:G292,SMALL(IF(G$2:G292<>"0",ROW(G$2:G292)-ROW(G$2)+1),ROWS(H$2:H94)))=0,"",INDEX(G$2:G292,SMALL(IF(G$2:G292<>"0",ROW(G$2:G292)-ROW(G$2)+1),ROWS(H$2:H94)))))) -> 
F95: =IF(DesignTool!$B$40=parametric_table!D95,parametric_table!A95,"0") -> 0 | G95: =_xlfn.IFNA(IF(VLOOKUP(F95,ParametricTableRange,MATCH("Operating Region Used",parametric_table!$A$1:$AV$1,0),FALSE)>0,F95,"0"),"0") -> 0 | H95: =IF(ROWS(H$2:H95)>COUNTIF(G$2:G293,"<>0"),"",IF(ISERROR(INDEX(G$2:G293,SMALL(IF(G$2:G293<>"0",ROW(G$2:G293)-ROW(G$2)+1),ROWS(H$2:H95)))),"",IF(INDEX(G$2:G293,SMALL(IF(G$2:G293<>"0",ROW(G$2:G293)-ROW(G$2)+1),ROWS(H$2:H95)))=0,"",INDEX(G$2:G293,SMALL(IF(G$2:G293<>"0",ROW(G$2:G293)-ROW(G$2)+1),ROWS(H$2:H95)))))) -> 
F96: =IF(DesignTool!$B$40=parametric_table!D96,parametric_table!A96,"0") -> 0 | G96: =_xlfn.IFNA(IF(VLOOKUP(F96,ParametricTableRange,MATCH("Operating Region Used",parametric_table!$A$1:$AV$1,0),FALSE)>0,F96,"0"),"0") -> 0 | H96: =IF(ROWS(H$2:H96)>COUNTIF(G$2:G294,"<>0"),"",IF(ISERROR(INDEX(G$2:G294,SMALL(IF(G$2:G294<>"0",ROW(G$2:G294)-ROW(G$2)+1),ROWS(H$2:H96)))),"",IF(INDEX(G$2:G294,SMALL(IF(G$2:G294<>"0",ROW(G$2:G294)-ROW(G$2)+1),ROWS(H$2:H96)))=0,"",INDEX(G$2:G294,SMALL(IF(G$2:G294<>"0",ROW(G$2:G294)-ROW(G$2)+1),ROWS(H$2:H96)))))) -> 
F97: =IF(DesignTool!$B$40=parametric_table!D97,parametric_table!A97,"0") -> 0 | G97: =_xlfn.IFNA(IF(VLOOKUP(F97,ParametricTableRange,MATCH("Operating Region Used",parametric_table!$A$1:$AV$1,0),FALSE)>0,F97,"0"),"0") -> 0 | H97: =IF(ROWS(H$2:H97)>COUNTIF(G$2:G295,"<>0"),"",IF(ISERROR(INDEX(G$2:G295,SMALL(IF(G$2:G295<>"0",ROW(G$2:G295)-ROW(G$2)+1),ROWS(H$2:H97)))),"",IF(INDEX(G$2:G295,SMALL(IF(G$2:G295<>"0",ROW(G$2:G295)-ROW(G$2)+1),ROWS(H$2:H97)))=0,"",INDEX(G$2:G295,SMALL(IF(G$2:G295<>"0",ROW(G$2:G295)-ROW(G$2)+1),ROWS(H$2:H97)))))) -> 
F98: =IF(DesignTool!$B$40=parametric_table!D98,parametric_table!A98,"0") -> 0 | G98: =_xlfn.IFNA(IF(VLOOKUP(F98,ParametricTableRange,MATCH("Operating Region Used",parametric_table!$A$1:$AV$1,0),FALSE)>0,F98,"0"),"0") -> 0 | H98: =IF(ROWS(H$2:H98)>COUNTIF(G$2:G296,"<>0"),"",IF(ISERROR(INDEX(G$2:G296,SMALL(IF(G$2:G296<>"0",ROW(G$2:G296)-ROW(G$2)+1),ROWS(H$2:H98)))),"",IF(INDEX(G$2:G296,SMALL(IF(G$2:G296<>"0",ROW(G$2:G296)-ROW(G$2)+1),ROWS(H$2:H98)))=0,"",INDEX(G$2:G296,SMALL(IF(G$2:G296<>"0",ROW(G$2:G296)-ROW(G$2)+1),ROWS(H$2:H98)))))) -> 
F99: =IF(DesignTool!$B$40=parametric_table!D99,parametric_table!A99,"0") -> 0 | G99: =_xlfn.IFNA(IF(VLOOKUP(F99,ParametricTableRange,MATCH("Operating Region Used",parametric_table!$A$1:$AV$1,0),FALSE)>0,F99,"0"),"0") -> 0 | H99: =IF(ROWS(H$2:H99)>COUNTIF(G$2:G297,"<>0"),"",IF(ISERROR(INDEX(G$2:G297,SMALL(IF(G$2:G297<>"0",ROW(G$2:G297)-ROW(G$2)+1),ROWS(H$2:H99)))),"",IF(INDEX(G$2:G297,SMALL(IF(G$2:G297<>"0",ROW(G$2:G297)-ROW(G$2)+1),ROWS(H$2:H99)))=0,"",INDEX(G$2:G297,SMALL(IF(G$2:G297<>"0",ROW(G$2:G297)-ROW(G$2)+1),ROWS(H$2:H99)))))) -> 
F100: =IF(DesignTool!$B$40=parametric_table!D100,parametric_table!A100,"0") -> 0 | G100: =_xlfn.IFNA(IF(VLOOKUP(F100,ParametricTableRange,MATCH("Operating Region Used",parametric_table!$A$1:$AV$1,0),FALSE)>0,F100,"0"),"0") -> 0 | H100: =IF(ROWS(H$2:H100)>COUNTIF(G$2:G298,"<>0"),"",IF(ISERROR(INDEX(G$2:G298,SMALL(IF(G$2:G298<>"0",ROW(G$2:G298)-ROW(G$2)+1),ROWS(H$2:H100)))),"",IF(INDEX(G$2:G298,SMALL(IF(G$2:G298<>"0",ROW(G$2:G298)-ROW(G$2)+1),ROWS(H$2:H100)))=0,"",INDEX(G$2:G298,SMALL(IF(G$2:G298<>"0",ROW(G$2:G298)-ROW(G$2)+1),ROWS(H$2:H100)))))) -> 
F101: =IF(DesignTool!$B$40=parametric_table!D101,parametric_table!A101,"0") -> 0 | G101: =_xlfn.IFNA(IF(VLOOKUP(F101,ParametricTableRange,MATCH("Operating Region Used",parametric_table!$A$1:$AV$1,0),FALSE)>0,F101,"0"),"0") -> 0 | H101: =IF(ROWS(H$2:H101)>COUNTIF(G$2:G299,"<>0"),"",IF(ISERROR(INDEX(G$2:G299,SMALL(IF(G$2:G299<>"0",ROW(G$2:G299)-ROW(G$2)+1),ROWS(H$2:H101)))),"",IF(INDEX(G$2:G299,SMALL(IF(G$2:G299<>"0",ROW(G$2:G299)-ROW(G$2)+1),ROWS(H$2:H101)))=0,"",INDEX(G$2:G299,SMALL(IF(G$2:G299<>"0",ROW(G$2:G299)-ROW(G$2)+1),ROWS(H$2:H101)))))) -> 
F102: =IF(DesignTool!$B$40=parametric_table!D102,parametric_table!A102,"0") -> 0 | G102: =_xlfn.IFNA(IF(VLOOKUP(F102,ParametricTableRange,MATCH("Operating Region Used",parametric_table!$A$1:$AV$1,0),FALSE)>0,F102,"0"),"0") -> 0 | H102: =IF(ROWS(H$2:H102)>COUNTIF(G$2:G300,"<>0"),"",IF(ISERROR(INDEX(G$2:G300,SMALL(IF(G$2:G300<>"0",ROW(G$2:G300)-ROW(G$2)+1),ROWS(H$2:H102)))),"",IF(INDEX(G$2:G300,SMALL(IF(G$2:G300<>"0",ROW(G$2:G300)-ROW(G$2)+1),ROWS(H$2:H102)))=0,"",INDEX(G$2:G300,SMALL(IF(G$2:G300<>"0",ROW(G$2:G300)-ROW(G$2)+1),ROWS(H$2:H102)))))) -> 
F103: =IF(DesignTool!$B$40=parametric_table!D103,parametric_table!A103,"0") -> 0 | G103: =_xlfn.IFNA(IF(VLOOKUP(F103,ParametricTableRange,MATCH("Operating Region Used",parametric_table!$A$1:$AV$1,0),FALSE)>0,F103,"0"),"0") -> 0 | H103: =IF(ROWS(H$2:H103)>COUNTIF(G$2:G301,"<>0"),"",IF(ISERROR(INDEX(G$2:G301,SMALL(IF(G$2:G301<>"0",ROW(G$2:G301)-ROW(G$2)+1),ROWS(H$2:H103)))),"",IF(INDEX(G$2:G301,SMALL(IF(G$2:G301<>"0",ROW(G$2:G301)-ROW(G$2)+1),ROWS(H$2:H103)))=0,"",INDEX(G$2:G301,SMALL(IF(G$2:G301<>"0",ROW(G$2:G301)-ROW(G$2)+1),ROWS(H$2:H103)))))) -> 
F104: =IF(DesignTool!$B$40=parametric_table!D104,parametric_table!A104,"0") -> 0 | G104: =_xlfn.IFNA(IF(VLOOKUP(F104,ParametricTableRange,MATCH("Operating Region Used",parametric_table!$A$1:$AV$1,0),FALSE)>0,F104,"0"),"0") -> 0 | H104: =IF(ROWS(H$2:H104)>COUNTIF(G$2:G302,"<>0"),"",IF(ISERROR(INDEX(G$2:G302,SMALL(IF(G$2:G302<>"0",ROW(G$2:G302)-ROW(G$2)+1),ROWS(H$2:H104)))),"",IF(INDEX(G$2:G302,SMALL(IF(G$2:G302<>"0",ROW(G$2:G302)-ROW(G$2)+1),ROWS(H$2:H104)))=0,"",INDEX(G$2:G302,SMALL(IF(G$2:G302<>"0",ROW(G$2:G302)-ROW(G$2)+1),ROWS(H$2:H104)))))) -> 
F105: =IF(DesignTool!$B$40=parametric_table!D105,parametric_table!A105,"0") -> 0 | G105: =_xlfn.IFNA(IF(VLOOKUP(F105,ParametricTableRange,MATCH("Operating Region Used",parametric_table!$A$1:$AV$1,0),FALSE)>0,F105,"0"),"0") -> 0 | H105: =IF(ROWS(H$2:H105)>COUNTIF(G$2:G303,"<>0"),"",IF(ISERROR(INDEX(G$2:G303,SMALL(IF(G$2:G303<>"0",ROW(G$2:G303)-ROW(G$2)+1),ROWS(H$2:H105)))),"",IF(INDEX(G$2:G303,SMALL(IF(G$2:G303<>"0",ROW(G$2:G303)-ROW(G$2)+1),ROWS(H$2:H105)))=0,"",INDEX(G$2:G303,SMALL(IF(G$2:G303<>"0",ROW(G$2:G303)-ROW(G$2)+1),ROWS(H$2:H105)))))) -> 
F106: =IF(DesignTool!$B$40=parametric_table!D106,parametric_table!A106,"0") -> 0 | G106: =_xlfn.IFNA(IF(VLOOKUP(F106,ParametricTableRange,MATCH("Operating Region Used",parametric_table!$A$1:$AV$1,0),FALSE)>0,F106,"0"),"0") -> 0 | H106: =IF(ROWS(H$2:H106)>COUNTIF(G$2:G304,"<>0"),"",IF(ISERROR(INDEX(G$2:G304,SMALL(IF(G$2:G304<>"0",ROW(G$2:G304)-ROW(G$2)+1),ROWS(H$2:H106)))),"",IF(INDEX(G$2:G304,SMALL(IF(G$2:G304<>"0",ROW(G$2:G304)-ROW(G$2)+1),ROWS(H$2:H106)))=0,"",INDEX(G$2:G304,SMALL(IF(G$2:G304<>"0",ROW(G$2:G304)-ROW(G$2)+1),ROWS(H$2:H106)))))) -> 
F107: =IF(DesignTool!$B$40=parametric_table!D107,parametric_table!A107,"0") -> 0 | G107: =_xlfn.IFNA(IF(VLOOKUP(F107,ParametricTableRange,MATCH("Operating Region Used",parametric_table!$A$1:$AV$1,0),FALSE)>0,F107,"0"),"0") -> 0 | H107: =IF(ROWS(H$2:H107)>COUNTIF(G$2:G305,"<>0"),"",IF(ISERROR(INDEX(G$2:G305,SMALL(IF(G$2:G305<>"0",ROW(G$2:G305)-ROW(G$2)+1),ROWS(H$2:H107)))),"",IF(INDEX(G$2:G305,SMALL(IF(G$2:G305<>"0",ROW(G$2:G305)-ROW(G$2)+1),ROWS(H$2:H107)))=0,"",INDEX(G$2:G305,SMALL(IF(G$2:G305<>"0",ROW(G$2:G305)-ROW(G$2)+1),ROWS(H$2:H107)))))) -> 
F108: =IF(DesignTool!$B$40=parametric_table!D108,parametric_table!A108,"0") -> 0 | G108: =_xlfn.IFNA(IF(VLOOKUP(F108,ParametricTableRange,MATCH("Operating Region Used",parametric_table!$A$1:$AV$1,0),FALSE)>0,F108,"0"),"0") -> 0 | H108: =IF(ROWS(H$2:H108)>COUNTIF(G$2:G306,"<>0"),"",IF(ISERROR(INDEX(G$2:G306,SMALL(IF(G$2:G306<>"0",ROW(G$2:G306)-ROW(G$2)+1),ROWS(H$2:H108)))),"",IF(INDEX(G$2:G306,SMALL(IF(G$2:G306<>"0",ROW(G$2:G306)-ROW(G$2)+1),ROWS(H$2:H108)))=0,"",INDEX(G$2:G306,SMALL(IF(G$2:G306<>"0",ROW(G$2:G306)-ROW(G$2)+1),ROWS(H$2:H108)))))) -> 
F109: =IF(DesignTool!$B$40=parametric_table!D109,parametric_table!A109,"0") -> 0 | G109: =_xlfn.IFNA(IF(VLOOKUP(F109,ParametricTableRange,MATCH("Operating Region Used",parametric_table!$A$1:$AV$1,0),FALSE)>0,F109,"0"),"0") -> 0 | H109: =IF(ROWS(H$2:H109)>COUNTIF(G$2:G307,"<>0"),"",IF(ISERROR(INDEX(G$2:G307,SMALL(IF(G$2:G307<>"0",ROW(G$2:G307)-ROW(G$2)+1),ROWS(H$2:H109)))),"",IF(INDEX(G$2:G307,SMALL(IF(G$2:G307<>"0",ROW(G$2:G307)-ROW(G$2)+1),ROWS(H$2:H109)))=0,"",INDEX(G$2:G307,SMALL(IF(G$2:G307<>"0",ROW(G$2:G307)-ROW(G$2)+1),ROWS(H$2:H109)))))) -> 
F110: =IF(DesignTool!$B$40=parametric_table!D110,parametric_table!A110,"0") -> 0 | G110: =_xlfn.IFNA(IF(VLOOKUP(F110,ParametricTableRange,MATCH("Operating Region Used",parametric_table!$A$1:$AV$1,0),FALSE)>0,F110,"0"),"0") -> 0 | H110: =IF(ROWS(H$2:H110)>COUNTIF(G$2:G308,"<>0"),"",IF(ISERROR(INDEX(G$2:G308,SMALL(IF(G$2:G308<>"0",ROW(G$2:G308)-ROW(G$2)+1),ROWS(H$2:H110)))),"",IF(INDEX(G$2:G308,SMALL(IF(G$2:G308<>"0",ROW(G$2:G308)-ROW(G$2)+1),ROWS(H$2:H110)))=0,"",INDEX(G$2:G308,SMALL(IF(G$2:G308<>"0",ROW(G$2:G308)-ROW(G$2)+1),ROWS(H$2:H110)))))) -> 
F111: =IF(DesignTool!$B$40=parametric_table!D111,parametric_table!A111,"0") -> 0 | G111: =_xlfn.IFNA(IF(VLOOKUP(F111,ParametricTableRange,MATCH("Operating Region Used",parametric_table!$A$1:$AV$1,0),FALSE)>0,F111,"0"),"0") -> 0 | H111: =IF(ROWS(H$2:H111)>COUNTIF(G$2:G309,"<>0"),"",IF(ISERROR(INDEX(G$2:G309,SMALL(IF(G$2:G309<>"0",ROW(G$2:G309)-ROW(G$2)+1),ROWS(H$2:H111)))),"",IF(INDEX(G$2:G309,SMALL(IF(G$2:G309<>"0",ROW(G$2:G309)-ROW(G$2)+1),ROWS(H$2:H111)))=0,"",INDEX(G$2:G309,SMALL(IF(G$2:G309<>"0",ROW(G$2:G309)-ROW(G$2)+1),ROWS(H$2:H111)))))) -> 
F112: =IF(DesignTool!$B$40=parametric_table!D112,parametric_table!A112,"0") -> 0 | G112: =_xlfn.IFNA(IF(VLOOKUP(F112,ParametricTableRange,MATCH("Operating Region Used",parametric_table!$A$1:$AV$1,0),FALSE)>0,F112,"0"),"0") -> 0 | H112: =IF(ROWS(H$2:H112)>COUNTIF(G$2:G310,"<>0"),"",IF(ISERROR(INDEX(G$2:G310,SMALL(IF(G$2:G310<>"0",ROW(G$2:G310)-ROW(G$2)+1),ROWS(H$2:H112)))),"",IF(INDEX(G$2:G310,SMALL(IF(G$2:G310<>"0",ROW(G$2:G310)-ROW(G$2)+1),ROWS(H$2:H112)))=0,"",INDEX(G$2:G310,SMALL(IF(G$2:G310<>"0",ROW(G$2:G310)-ROW(G$2)+1),ROWS(H$2:H112)))))) -> 
F113: =IF(DesignTool!$B$40=parametric_table!D113,parametric_table!A113,"0") -> 0 | G113: =_xlfn.IFNA(IF(VLOOKUP(F113,ParametricTableRange,MATCH("Operating Region Used",parametric_table!$A$1:$AV$1,0),FALSE)>0,F113,"0"),"0") -> 0 | H113: =IF(ROWS(H$2:H113)>COUNTIF(G$2:G311,"<>0"),"",IF(ISERROR(INDEX(G$2:G311,SMALL(IF(G$2:G311<>"0",ROW(G$2:G311)-ROW(G$2)+1),ROWS(H$2:H113)))),"",IF(INDEX(G$2:G311,SMALL(IF(G$2:G311<>"0",ROW(G$2:G311)-ROW(G$2)+1),ROWS(H$2:H113)))=0,"",INDEX(G$2:G311,SMALL(IF(G$2:G311<>"0",ROW(G$2:G311)-ROW(G$2)+1),ROWS(H$2:H113)))))) -> 
F114: =IF(DesignTool!$B$40=parametric_table!D114,parametric_table!A114,"0") -> 0 | G114: =_xlfn.IFNA(IF(VLOOKUP(F114,ParametricTableRange,MATCH("Operating Region Used",parametric_table!$A$1:$AV$1,0),FALSE)>0,F114,"0"),"0") -> 0 | H114: =IF(ROWS(H$2:H114)>COUNTIF(G$2:G312,"<>0"),"",IF(ISERROR(INDEX(G$2:G312,SMALL(IF(G$2:G312<>"0",ROW(G$2:G312)-ROW(G$2)+1),ROWS(H$2:H114)))),"",IF(INDEX(G$2:G312,SMALL(IF(G$2:G312<>"0",ROW(G$2:G312)-ROW(G$2)+1),ROWS(H$2:H114)))=0,"",INDEX(G$2:G312,SMALL(IF(G$2:G312<>"0",ROW(G$2:G312)-ROW(G$2)+1),ROWS(H$2:H114)))))) -> 
F115: =IF(DesignTool!$B$40=parametric_table!D115,parametric_table!A115,"0") -> 0 | G115: =_xlfn.IFNA(IF(VLOOKUP(F115,ParametricTableRange,MATCH("Operating Region Used",parametric_table!$A$1:$AV$1,0),FALSE)>0,F115,"0"),"0") -> 0 | H115: =IF(ROWS(H$2:H115)>COUNTIF(G$2:G313,"<>0"),"",IF(ISERROR(INDEX(G$2:G313,SMALL(IF(G$2:G313<>"0",ROW(G$2:G313)-ROW(G$2)+1),ROWS(H$2:H115)))),"",IF(INDEX(G$2:G313,SMALL(IF(G$2:G313<>"0",ROW(G$2:G313)-ROW(G$2)+1),ROWS(H$2:H115)))=0,"",INDEX(G$2:G313,SMALL(IF(G$2:G313<>"0",ROW(G$2:G313)-ROW(G$2)+1),ROWS(H$2:H115)))))) -> 
F116: =IF(DesignTool!$B$40=parametric_table!D116,parametric_table!A116,"0") -> 0 | G116: =_xlfn.IFNA(IF(VLOOKUP(F116,ParametricTableRange,MATCH("Operating Region Used",parametric_table!$A$1:$AV$1,0),FALSE)>0,F116,"0"),"0") -> 0 | H116: =IF(ROWS(H$2:H116)>COUNTIF(G$2:G314,"<>0"),"",IF(ISERROR(INDEX(G$2:G314,SMALL(IF(G$2:G314<>"0",ROW(G$2:G314)-ROW(G$2)+1),ROWS(H$2:H116)))),"",IF(INDEX(G$2:G314,SMALL(IF(G$2:G314<>"0",ROW(G$2:G314)-ROW(G$2)+1),ROWS(H$2:H116)))=0,"",INDEX(G$2:G314,SMALL(IF(G$2:G314<>"0",ROW(G$2:G314)-ROW(G$2)+1),ROWS(H$2:H116)))))) -> 
F117: =IF(DesignTool!$B$40=parametric_table!D117,parametric_table!A117,"0") -> 0 | G117: =_xlfn.IFNA(IF(VLOOKUP(F117,ParametricTableRange,MATCH("Operating Region Used",parametric_table!$A$1:$AV$1,0),FALSE)>0,F117,"0"),"0") -> 0 | H117: =IF(ROWS(H$2:H117)>COUNTIF(G$2:G315,"<>0"),"",IF(ISERROR(INDEX(G$2:G315,SMALL(IF(G$2:G315<>"0",ROW(G$2:G315)-ROW(G$2)+1),ROWS(H$2:H117)))),"",IF(INDEX(G$2:G315,SMALL(IF(G$2:G315<>"0",ROW(G$2:G315)-ROW(G$2)+1),ROWS(H$2:H117)))=0,"",INDEX(G$2:G315,SMALL(IF(G$2:G315<>"0",ROW(G$2:G315)-ROW(G$2)+1),ROWS(H$2:H117)))))) -> 
F118: =IF(DesignTool!$B$40=parametric_table!D118,parametric_table!A118,"0") -> 0 | G118: =_xlfn.IFNA(IF(VLOOKUP(F118,ParametricTableRange,MATCH("Operating Region Used",parametric_table!$A$1:$AV$1,0),FALSE)>0,F118,"0"),"0") -> 0 | H118: =IF(ROWS(H$2:H118)>COUNTIF(G$2:G316,"<>0"),"",IF(ISERROR(INDEX(G$2:G316,SMALL(IF(G$2:G316<>"0",ROW(G$2:G316)-ROW(G$2)+1),ROWS(H$2:H118)))),"",IF(INDEX(G$2:G316,SMALL(IF(G$2:G316<>"0",ROW(G$2:G316)-ROW(G$2)+1),ROWS(H$2:H118)))=0,"",INDEX(G$2:G316,SMALL(IF(G$2:G316<>"0",ROW(G$2:G316)-ROW(G$2)+1),ROWS(H$2:H118)))))) -> 
F119: =IF(DesignTool!$B$40=parametric_table!D119,parametric_table!A119,"0") -> 0 | G119: =_xlfn.IFNA(IF(VLOOKUP(F119,ParametricTableRange,MATCH("Operating Region Used",parametric_table!$A$1:$AV$1,0),FALSE)>0,F119,"0"),"0") -> 0 | H119: =IF(ROWS(H$2:H119)>COUNTIF(G$2:G317,"<>0"),"",IF(ISERROR(INDEX(G$2:G317,SMALL(IF(G$2:G317<>"0",ROW(G$2:G317)-ROW(G$2)+1),ROWS(H$2:H119)))),"",IF(INDEX(G$2:G317,SMALL(IF(G$2:G317<>"0",ROW(G$2:G317)-ROW(G$2)+1),ROWS(H$2:H119)))=0,"",INDEX(G$2:G317,SMALL(IF(G$2:G317<>"0",ROW(G$2:G317)-ROW(G$2)+1),ROWS(H$2:H119)))))) -> 
F120: =IF(DesignTool!$B$40=parametric_table!D120,parametric_table!A120,"0") -> 0 | G120: =_xlfn.IFNA(IF(VLOOKUP(F120,ParametricTableRange,MATCH("Operating Region Used",parametric_table!$A$1:$AV$1,0),FALSE)>0,F120,"0"),"0") -> 0 | H120: =IF(ROWS(H$2:H120)>COUNTIF(G$2:G318,"<>0"),"",IF(ISERROR(INDEX(G$2:G318,SMALL(IF(G$2:G318<>"0",ROW(G$2:G318)-ROW(G$2)+1),ROWS(H$2:H120)))),"",IF(INDEX(G$2:G318,SMALL(IF(G$2:G318<>"0",ROW(G$2:G318)-ROW(G$2)+1),ROWS(H$2:H120)))=0,"",INDEX(G$2:G318,SMALL(IF(G$2:G318<>"0",ROW(G$2:G318)-ROW(G$2)+1),ROWS(H$2:H120)))))) -> 
F121: =IF(DesignTool!$B$40=parametric_table!D121,parametric_table!A121,"0") -> 0 | G121: =_xlfn.IFNA(IF(VLOOKUP(F121,ParametricTableRange,MATCH("Operating Region Used",parametric_table!$A$1:$AV$1,0),FALSE)>0,F121,"0"),"0") -> 0 | H121: =IF(ROWS(H$2:H121)>COUNTIF(G$2:G319,"<>0"),"",IF(ISERROR(INDEX(G$2:G319,SMALL(IF(G$2:G319<>"0",ROW(G$2:G319)-ROW(G$2)+1),ROWS(H$2:H121)))),"",IF(INDEX(G$2:G319,SMALL(IF(G$2:G319<>"0",ROW(G$2:G319)-ROW(G$2)+1),ROWS(H$2:H121)))=0,"",INDEX(G$2:G319,SMALL(IF(G$2:G319<>"0",ROW(G$2:G319)-ROW(G$2)+1),ROWS(H$2:H121)))))) -> 
F122: =IF(DesignTool!$B$40=parametric_table!D122,parametric_table!A122,"0") -> 0 | G122: =_xlfn.IFNA(IF(VLOOKUP(F122,ParametricTableRange,MATCH("Operating Region Used",parametric_table!$A$1:$AV$1,0),FALSE)>0,F122,"0"),"0") -> 0 | H122: =IF(ROWS(H$2:H122)>COUNTIF(G$2:G320,"<>0"),"",IF(ISERROR(INDEX(G$2:G320,SMALL(IF(G$2:G320<>"0",ROW(G$2:G320)-ROW(G$2)+1),ROWS(H$2:H122)))),"",IF(INDEX(G$2:G320,SMALL(IF(G$2:G320<>"0",ROW(G$2:G320)-ROW(G$2)+1),ROWS(H$2:H122)))=0,"",INDEX(G$2:G320,SMALL(IF(G$2:G320<>"0",ROW(G$2:G320)-ROW(G$2)+1),ROWS(H$2:H122)))))) -> 
F123: =IF(DesignTool!$B$40=parametric_table!D123,parametric_table!A123,"0") -> 0 | G123: =_xlfn.IFNA(IF(VLOOKUP(F123,ParametricTableRange,MATCH("Operating Region Used",parametric_table!$A$1:$AV$1,0),FALSE)>0,F123,"0"),"0") -> 0 | H123: =IF(ROWS(H$2:H123)>COUNTIF(G$2:G321,"<>0"),"",IF(ISERROR(INDEX(G$2:G321,SMALL(IF(G$2:G321<>"0",ROW(G$2:G321)-ROW(G$2)+1),ROWS(H$2:H123)))),"",IF(INDEX(G$2:G321,SMALL(IF(G$2:G321<>"0",ROW(G$2:G321)-ROW(G$2)+1),ROWS(H$2:H123)))=0,"",INDEX(G$2:G321,SMALL(IF(G$2:G321<>"0",ROW(G$2:G321)-ROW(G$2)+1),ROWS(H$2:H123)))))) -> 
F124: =IF(DesignTool!$B$40=parametric_table!D124,parametric_table!A124,"0") -> 0 | G124: =_xlfn.IFNA(IF(VLOOKUP(F124,ParametricTableRange,MATCH("Operating Region Used",parametric_table!$A$1:$AV$1,0),FALSE)>0,F124,"0"),"0") -> 0 | H124: =IF(ROWS(H$2:H124)>COUNTIF(G$2:G322,"<>0"),"",IF(ISERROR(INDEX(G$2:G322,SMALL(IF(G$2:G322<>"0",ROW(G$2:G322)-ROW(G$2)+1),ROWS(H$2:H124)))),"",IF(INDEX(G$2:G322,SMALL(IF(G$2:G322<>"0",ROW(G$2:G322)-ROW(G$2)+1),ROWS(H$2:H124)))=0,"",INDEX(G$2:G322,SMALL(IF(G$2:G322<>"0",ROW(G$2:G322)-ROW(G$2)+1),ROWS(H$2:H124)))))) -> 
F125: =IF(DesignTool!$B$40=parametric_table!D125,parametric_table!A125,"0") -> 0 | G125: =_xlfn.IFNA(IF(VLOOKUP(F125,ParametricTableRange,MATCH("Operating Region Used",parametric_table!$A$1:$AV$1,0),FALSE)>0,F125,"0"),"0") -> 0 | H125: =IF(ROWS(H$2:H125)>COUNTIF(G$2:G323,"<>0"),"",IF(ISERROR(INDEX(G$2:G323,SMALL(IF(G$2:G323<>"0",ROW(G$2:G323)-ROW(G$2)+1),ROWS(H$2:H125)))),"",IF(INDEX(G$2:G323,SMALL(IF(G$2:G323<>"0",ROW(G$2:G323)-ROW(G$2)+1),ROWS(H$2:H125)))=0,"",INDEX(G$2:G323,SMALL(IF(G$2:G323<>"0",ROW(G$2:G323)-ROW(G$2)+1),ROWS(H$2:H125)))))) -> 
F126: =IF(DesignTool!$B$40=parametric_table!D126,parametric_table!A126,"0") -> 0 | G126: =_xlfn.IFNA(IF(VLOOKUP(F126,ParametricTableRange,MATCH("Operating Region Used",parametric_table!$A$1:$AV$1,0),FALSE)>0,F126,"0"),"0") -> 0 | H126: =IF(ROWS(H$2:H126)>COUNTIF(G$2:G324,"<>0"),"",IF(ISERROR(INDEX(G$2:G324,SMALL(IF(G$2:G324<>"0",ROW(G$2:G324)-ROW(G$2)+1),ROWS(H$2:H126)))),"",IF(INDEX(G$2:G324,SMALL(IF(G$2:G324<>"0",ROW(G$2:G324)-ROW(G$2)+1),ROWS(H$2:H126)))=0,"",INDEX(G$2:G324,SMALL(IF(G$2:G324<>"0",ROW(G$2:G324)-ROW(G$2)+1),ROWS(H$2:H126)))))) -> 
F127: =IF(DesignTool!$B$40=parametric_table!D127,parametric_table!A127,"0") -> 0 | G127: =_xlfn.IFNA(IF(VLOOKUP(F127,ParametricTableRange,MATCH("Operating Region Used",parametric_table!$A$1:$AV$1,0),FALSE)>0,F127,"0"),"0") -> 0 | H127: =IF(ROWS(H$2:H127)>COUNTIF(G$2:G325,"<>0"),"",IF(ISERROR(INDEX(G$2:G325,SMALL(IF(G$2:G325<>"0",ROW(G$2:G325)-ROW(G$2)+1),ROWS(H$2:H127)))),"",IF(INDEX(G$2:G325,SMALL(IF(G$2:G325<>"0",ROW(G$2:G325)-ROW(G$2)+1),ROWS(H$2:H127)))=0,"",INDEX(G$2:G325,SMALL(IF(G$2:G325<>"0",ROW(G$2:G325)-ROW(G$2)+1),ROWS(H$2:H127)))))) -> 
F128: =IF(DesignTool!$B$40=parametric_table!D128,parametric_table!A128,"0") -> 0 | G128: =_xlfn.IFNA(IF(VLOOKUP(F128,ParametricTableRange,MATCH("Operating Region Used",parametric_table!$A$1:$AV$1,0),FALSE)>0,F128,"0"),"0") -> 0 | H128: =IF(ROWS(H$2:H128)>COUNTIF(G$2:G326,"<>0"),"",IF(ISERROR(INDEX(G$2:G326,SMALL(IF(G$2:G326<>"0",ROW(G$2:G326)-ROW(G$2)+1),ROWS(H$2:H128)))),"",IF(INDEX(G$2:G326,SMALL(IF(G$2:G326<>"0",ROW(G$2:G326)-ROW(G$2)+1),ROWS(H$2:H128)))=0,"",INDEX(G$2:G326,SMALL(IF(G$2:G326<>"0",ROW(G$2:G326)-ROW(G$2)+1),ROWS(H$2:H128)))))) -> 
F129: =IF(DesignTool!$B$40=parametric_table!D129,parametric_table!A129,"0") -> 0 | G129: =_xlfn.IFNA(IF(VLOOKUP(F129,ParametricTableRange,MATCH("Operating Region Used",parametric_table!$A$1:$AV$1,0),FALSE)>0,F129,"0"),"0") -> 0 | H129: =IF(ROWS(H$2:H129)>COUNTIF(G$2:G327,"<>0"),"",IF(ISERROR(INDEX(G$2:G327,SMALL(IF(G$2:G327<>"0",ROW(G$2:G327)-ROW(G$2)+1),ROWS(H$2:H129)))),"",IF(INDEX(G$2:G327,SMALL(IF(G$2:G327<>"0",ROW(G$2:G327)-ROW(G$2)+1),ROWS(H$2:H129)))=0,"",INDEX(G$2:G327,SMALL(IF(G$2:G327<>"0",ROW(G$2:G327)-ROW(G$2)+1),ROWS(H$2:H129)))))) -> 
F130: =IF(DesignTool!$B$40=parametric_table!D130,parametric_table!A130,"0") -> 0 | G130: =_xlfn.IFNA(IF(VLOOKUP(F130,ParametricTableRange,MATCH("Operating Region Used",parametric_table!$A$1:$AV$1,0),FALSE)>0,F130,"0"),"0") -> 0 | H130: =IF(ROWS(H$2:H130)>COUNTIF(G$2:G328,"<>0"),"",IF(ISERROR(INDEX(G$2:G328,SMALL(IF(G$2:G328<>"0",ROW(G$2:G328)-ROW(G$2)+1),ROWS(H$2:H130)))),"",IF(INDEX(G$2:G328,SMALL(IF(G$2:G328<>"0",ROW(G$2:G328)-ROW(G$2)+1),ROWS(H$2:H130)))=0,"",INDEX(G$2:G328,SMALL(IF(G$2:G328<>"0",ROW(G$2:G328)-ROW(G$2)+1),ROWS(H$2:H130)))))) -> 
F131: =IF(DesignTool!$B$40=parametric_table!D131,parametric_table!A131,"0") -> 0 | G131: =_xlfn.IFNA(IF(VLOOKUP(F131,ParametricTableRange,MATCH("Operating Region Used",parametric_table!$A$1:$AV$1,0),FALSE)>0,F131,"0"),"0") -> 0 | H131: =IF(ROWS(H$2:H131)>COUNTIF(G$2:G329,"<>0"),"",IF(ISERROR(INDEX(G$2:G329,SMALL(IF(G$2:G329<>"0",ROW(G$2:G329)-ROW(G$2)+1),ROWS(H$2:H131)))),"",IF(INDEX(G$2:G329,SMALL(IF(G$2:G329<>"0",ROW(G$2:G329)-ROW(G$2)+1),ROWS(H$2:H131)))=0,"",INDEX(G$2:G329,SMALL(IF(G$2:G329<>"0",ROW(G$2:G329)-ROW(G$2)+1),ROWS(H$2:H131)))))) -> 
F132: =IF(DesignTool!$B$40=parametric_table!D132,parametric_table!A132,"0") -> 0 | G132: =_xlfn.IFNA(IF(VLOOKUP(F132,ParametricTableRange,MATCH("Operating Region Used",parametric_table!$A$1:$AV$1,0),FALSE)>0,F132,"0"),"0") -> 0 | H132: =IF(ROWS(H$2:H132)>COUNTIF(G$2:G330,"<>0"),"",IF(ISERROR(INDEX(G$2:G330,SMALL(IF(G$2:G330<>"0",ROW(G$2:G330)-ROW(G$2)+1),ROWS(H$2:H132)))),"",IF(INDEX(G$2:G330,SMALL(IF(G$2:G330<>"0",ROW(G$2:G330)-ROW(G$2)+1),ROWS(H$2:H132)))=0,"",INDEX(G$2:G330,SMALL(IF(G$2:G330<>"0",ROW(G$2:G330)-ROW(G$2)+1),ROWS(H$2:H132)))))) -> 
F133: =IF(DesignTool!$B$40=parametric_table!D133,parametric_table!A133,"0") -> 0 | G133: =_xlfn.IFNA(IF(VLOOKUP(F133,ParametricTableRange,MATCH("Operating Region Used",parametric_table!$A$1:$AV$1,0),FALSE)>0,F133,"0"),"0") -> 0 | H133: =IF(ROWS(H$2:H133)>COUNTIF(G$2:G331,"<>0"),"",IF(ISERROR(INDEX(G$2:G331,SMALL(IF(G$2:G331<>"0",ROW(G$2:G331)-ROW(G$2)+1),ROWS(H$2:H133)))),"",IF(INDEX(G$2:G331,SMALL(IF(G$2:G331<>"0",ROW(G$2:G331)-ROW(G$2)+1),ROWS(H$2:H133)))=0,"",INDEX(G$2:G331,SMALL(IF(G$2:G331<>"0",ROW(G$2:G331)-ROW(G$2)+1),ROWS(H$2:H133)))))) -> 
F134: =IF(DesignTool!$B$40=parametric_table!D134,parametric_table!A134,"0") -> 0 | G134: =_xlfn.IFNA(IF(VLOOKUP(F134,ParametricTableRange,MATCH("Operating Region Used",parametric_table!$A$1:$AV$1,0),FALSE)>0,F134,"0"),"0") -> 0 | H134: =IF(ROWS(H$2:H134)>COUNTIF(G$2:G332,"<>0"),"",IF(ISERROR(INDEX(G$2:G332,SMALL(IF(G$2:G332<>"0",ROW(G$2:G332)-ROW(G$2)+1),ROWS(H$2:H134)))),"",IF(INDEX(G$2:G332,SMALL(IF(G$2:G332<>"0",ROW(G$2:G332)-ROW(G$2)+1),ROWS(H$2:H134)))=0,"",INDEX(G$2:G332,SMALL(IF(G$2:G332<>"0",ROW(G$2:G332)-ROW(G$2)+1),ROWS(H$2:H134)))))) -> 
F135: =IF(DesignTool!$B$40=parametric_table!D135,parametric_table!A135,"0") -> 0 | G135: =_xlfn.IFNA(IF(VLOOKUP(F135,ParametricTableRange,MATCH("Operating Region Used",parametric_table!$A$1:$AV$1,0),FALSE)>0,F135,"0"),"0") -> 0 | H135: =IF(ROWS(H$2:H135)>COUNTIF(G$2:G333,"<>0"),"",IF(ISERROR(INDEX(G$2:G333,SMALL(IF(G$2:G333<>"0",ROW(G$2:G333)-ROW(G$2)+1),ROWS(H$2:H135)))),"",IF(INDEX(G$2:G333,SMALL(IF(G$2:G333<>"0",ROW(G$2:G333)-ROW(G$2)+1),ROWS(H$2:H135)))=0,"",INDEX(G$2:G333,SMALL(IF(G$2:G333<>"0",ROW(G$2:G333)-ROW(G$2)+1),ROWS(H$2:H135)))))) -> 
F136: =IF(DesignTool!$B$40=parametric_table!D136,parametric_table!A136,"0") -> 0 | G136: =_xlfn.IFNA(IF(VLOOKUP(F136,ParametricTableRange,MATCH("Operating Region Used",parametric_table!$A$1:$AV$1,0),FALSE)>0,F136,"0"),"0") -> 0 | H136: =IF(ROWS(H$2:H136)>COUNTIF(G$2:G334,"<>0"),"",IF(ISERROR(INDEX(G$2:G334,SMALL(IF(G$2:G334<>"0",ROW(G$2:G334)-ROW(G$2)+1),ROWS(H$2:H136)))),"",IF(INDEX(G$2:G334,SMALL(IF(G$2:G334<>"0",ROW(G$2:G334)-ROW(G$2)+1),ROWS(H$2:H136)))=0,"",INDEX(G$2:G334,SMALL(IF(G$2:G334<>"0",ROW(G$2:G334)-ROW(G$2)+1),ROWS(H$2:H136)))))) -> 
F137: =IF(DesignTool!$B$40=parametric_table!D137,parametric_table!A137,"0") -> 0 | G137: =_xlfn.IFNA(IF(VLOOKUP(F137,ParametricTableRange,MATCH("Operating Region Used",parametric_table!$A$1:$AV$1,0),FALSE)>0,F137,"0"),"0") -> 0 | H137: =IF(ROWS(H$2:H137)>COUNTIF(G$2:G335,"<>0"),"",IF(ISERROR(INDEX(G$2:G335,SMALL(IF(G$2:G335<>"0",ROW(G$2:G335)-ROW(G$2)+1),ROWS(H$2:H137)))),"",IF(INDEX(G$2:G335,SMALL(IF(G$2:G335<>"0",ROW(G$2:G335)-ROW(G$2)+1),ROWS(H$2:H137)))=0,"",INDEX(G$2:G335,SMALL(IF(G$2:G335<>"0",ROW(G$2:G335)-ROW(G$2)+1),ROWS(H$2:H137)))))) -> 
F138: =IF(DesignTool!$B$40=parametric_table!D138,parametric_table!A138,"0") -> 0 | G138: =_xlfn.IFNA(IF(VLOOKUP(F138,ParametricTableRange,MATCH("Operating Region Used",parametric_table!$A$1:$AV$1,0),FALSE)>0,F138,"0"),"0") -> 0 | H138: =IF(ROWS(H$2:H138)>COUNTIF(G$2:G336,"<>0"),"",IF(ISERROR(INDEX(G$2:G336,SMALL(IF(G$2:G336<>"0",ROW(G$2:G336)-ROW(G$2)+1),ROWS(H$2:H138)))),"",IF(INDEX(G$2:G336,SMALL(IF(G$2:G336<>"0",ROW(G$2:G336)-ROW(G$2)+1),ROWS(H$2:H138)))=0,"",INDEX(G$2:G336,SMALL(IF(G$2:G336<>"0",ROW(G$2:G336)-ROW(G$2)+1),ROWS(H$2:H138)))))) -> 
F139: =IF(DesignTool!$B$40=parametric_table!D139,parametric_table!A139,"0") -> 0 | G139: =_xlfn.IFNA(IF(VLOOKUP(F139,ParametricTableRange,MATCH("Operating Region Used",parametric_table!$A$1:$AV$1,0),FALSE)>0,F139,"0"),"0") -> 0 | H139: =IF(ROWS(H$2:H139)>COUNTIF(G$2:G337,"<>0"),"",IF(ISERROR(INDEX(G$2:G337,SMALL(IF(G$2:G337<>"0",ROW(G$2:G337)-ROW(G$2)+1),ROWS(H$2:H139)))),"",IF(INDEX(G$2:G337,SMALL(IF(G$2:G337<>"0",ROW(G$2:G337)-ROW(G$2)+1),ROWS(H$2:H139)))=0,"",INDEX(G$2:G337,SMALL(IF(G$2:G337<>"0",ROW(G$2:G337)-ROW(G$2)+1),ROWS(H$2:H139)))))) -> 
F140: =IF(DesignTool!$B$40=parametric_table!D140,parametric_table!A140,"0") -> 0 | G140: =_xlfn.IFNA(IF(VLOOKUP(F140,ParametricTableRange,MATCH("Operating Region Used",parametric_table!$A$1:$AV$1,0),FALSE)>0,F140,"0"),"0") -> 0 | H140: =IF(ROWS(H$2:H140)>COUNTIF(G$2:G338,"<>0"),"",IF(ISERROR(INDEX(G$2:G338,SMALL(IF(G$2:G338<>"0",ROW(G$2:G338)-ROW(G$2)+1),ROWS(H$2:H140)))),"",IF(INDEX(G$2:G338,SMALL(IF(G$2:G338<>"0",ROW(G$2:G338)-ROW(G$2)+1),ROWS(H$2:H140)))=0,"",INDEX(G$2:G338,SMALL(IF(G$2:G338<>"0",ROW(G$2:G338)-ROW(G$2)+1),ROWS(H$2:H140)))))) -> 
F141: =IF(DesignTool!$B$40=parametric_table!D141,parametric_table!A141,"0") -> 0 | G141: =_xlfn.IFNA(IF(VLOOKUP(F141,ParametricTableRange,MATCH("Operating Region Used",parametric_table!$A$1:$AV$1,0),FALSE)>0,F141,"0"),"0") -> 0 | H141: =IF(ROWS(H$2:H141)>COUNTIF(G$2:G339,"<>0"),"",IF(ISERROR(INDEX(G$2:G339,SMALL(IF(G$2:G339<>"0",ROW(G$2:G339)-ROW(G$2)+1),ROWS(H$2:H141)))),"",IF(INDEX(G$2:G339,SMALL(IF(G$2:G339<>"0",ROW(G$2:G339)-ROW(G$2)+1),ROWS(H$2:H141)))=0,"",INDEX(G$2:G339,SMALL(IF(G$2:G339<>"0",ROW(G$2:G339)-ROW(G$2)+1),ROWS(H$2:H141)))))) -> 
F142: =IF(DesignTool!$B$40=parametric_table!D142,parametric_table!A142,"0") -> 0 | G142: =_xlfn.IFNA(IF(VLOOKUP(F142,ParametricTableRange,MATCH("Operating Region Used",parametric_table!$A$1:$AV$1,0),FALSE)>0,F142,"0"),"0") -> 0 | H142: =IF(ROWS(H$2:H142)>COUNTIF(G$2:G340,"<>0"),"",IF(ISERROR(INDEX(G$2:G340,SMALL(IF(G$2:G340<>"0",ROW(G$2:G340)-ROW(G$2)+1),ROWS(H$2:H142)))),"",IF(INDEX(G$2:G340,SMALL(IF(G$2:G340<>"0",ROW(G$2:G340)-ROW(G$2)+1),ROWS(H$2:H142)))=0,"",INDEX(G$2:G340,SMALL(IF(G$2:G340<>"0",ROW(G$2:G340)-ROW(G$2)+1),ROWS(H$2:H142)))))) -> 
F143: =IF(DesignTool!$B$40=parametric_table!D143,parametric_table!A143,"0") -> 0 | G143: =_xlfn.IFNA(IF(VLOOKUP(F143,ParametricTableRange,MATCH("Operating Region Used",parametric_table!$A$1:$AV$1,0),FALSE)>0,F143,"0"),"0") -> 0 | H143: =IF(ROWS(H$2:H143)>COUNTIF(G$2:G341,"<>0"),"",IF(ISERROR(INDEX(G$2:G341,SMALL(IF(G$2:G341<>"0",ROW(G$2:G341)-ROW(G$2)+1),ROWS(H$2:H143)))),"",IF(INDEX(G$2:G341,SMALL(IF(G$2:G341<>"0",ROW(G$2:G341)-ROW(G$2)+1),ROWS(H$2:H143)))=0,"",INDEX(G$2:G341,SMALL(IF(G$2:G341<>"0",ROW(G$2:G341)-ROW(G$2)+1),ROWS(H$2:H143)))))) -> 
F144: =IF(DesignTool!$B$40=parametric_table!D144,parametric_table!A144,"0") -> 0 | G144: =_xlfn.IFNA(IF(VLOOKUP(F144,ParametricTableRange,MATCH("Operating Region Used",parametric_table!$A$1:$AV$1,0),FALSE)>0,F144,"0"),"0") -> 0 | H144: =IF(ROWS(H$2:H144)>COUNTIF(G$2:G342,"<>0"),"",IF(ISERROR(INDEX(G$2:G342,SMALL(IF(G$2:G342<>"0",ROW(G$2:G342)-ROW(G$2)+1),ROWS(H$2:H144)))),"",IF(INDEX(G$2:G342,SMALL(IF(G$2:G342<>"0",ROW(G$2:G342)-ROW(G$2)+1),ROWS(H$2:H144)))=0,"",INDEX(G$2:G342,SMALL(IF(G$2:G342<>"0",ROW(G$2:G342)-ROW(G$2)+1),ROWS(H$2:H144)))))) -> 
F145: =IF(DesignTool!$B$40=parametric_table!D145,parametric_table!A145,"0") -> 0 | G145: =_xlfn.IFNA(IF(VLOOKUP(F145,ParametricTableRange,MATCH("Operating Region Used",parametric_table!$A$1:$AV$1,0),FALSE)>0,F145,"0"),"0") -> 0 | H145: =IF(ROWS(H$2:H145)>COUNTIF(G$2:G343,"<>0"),"",IF(ISERROR(INDEX(G$2:G343,SMALL(IF(G$2:G343<>"0",ROW(G$2:G343)-ROW(G$2)+1),ROWS(H$2:H145)))),"",IF(INDEX(G$2:G343,SMALL(IF(G$2:G343<>"0",ROW(G$2:G343)-ROW(G$2)+1),ROWS(H$2:H145)))=0,"",INDEX(G$2:G343,SMALL(IF(G$2:G343<>"0",ROW(G$2:G343)-ROW(G$2)+1),ROWS(H$2:H145)))))) -> 
F146: =IF(DesignTool!$B$40=parametric_table!D146,parametric_table!A146,"0") -> 0 | G146: =_xlfn.IFNA(IF(VLOOKUP(F146,ParametricTableRange,MATCH("Operating Region Used",parametric_table!$A$1:$AV$1,0),FALSE)>0,F146,"0"),"0") -> 0 | H146: =IF(ROWS(H$2:H146)>COUNTIF(G$2:G344,"<>0"),"",IF(ISERROR(INDEX(G$2:G344,SMALL(IF(G$2:G344<>"0",ROW(G$2:G344)-ROW(G$2)+1),ROWS(H$2:H146)))),"",IF(INDEX(G$2:G344,SMALL(IF(G$2:G344<>"0",ROW(G$2:G344)-ROW(G$2)+1),ROWS(H$2:H146)))=0,"",INDEX(G$2:G344,SMALL(IF(G$2:G344<>"0",ROW(G$2:G344)-ROW(G$2)+1),ROWS(H$2:H146)))))) -> 
F147: =IF(DesignTool!$B$40=parametric_table!D147,parametric_table!A147,"0") -> 0 | G147: =_xlfn.IFNA(IF(VLOOKUP(F147,ParametricTableRange,MATCH("Operating Region Used",parametric_table!$A$1:$AV$1,0),FALSE)>0,F147,"0"),"0") -> 0 | H147: =IF(ROWS(H$2:H147)>COUNTIF(G$2:G345,"<>0"),"",IF(ISERROR(INDEX(G$2:G345,SMALL(IF(G$2:G345<>"0",ROW(G$2:G345)-ROW(G$2)+1),ROWS(H$2:H147)))),"",IF(INDEX(G$2:G345,SMALL(IF(G$2:G345<>"0",ROW(G$2:G345)-ROW(G$2)+1),ROWS(H$2:H147)))=0,"",INDEX(G$2:G345,SMALL(IF(G$2:G345<>"0",ROW(G$2:G345)-ROW(G$2)+1),ROWS(H$2:H147)))))) -> 
F148: =IF(DesignTool!$B$40=parametric_table!D148,parametric_table!A148,"0") -> 0 | G148: =_xlfn.IFNA(IF(VLOOKUP(F148,ParametricTableRange,MATCH("Operating Region Used",parametric_table!$A$1:$AV$1,0),FALSE)>0,F148,"0"),"0") -> 0 | H148: =IF(ROWS(H$2:H148)>COUNTIF(G$2:G346,"<>0"),"",IF(ISERROR(INDEX(G$2:G346,SMALL(IF(G$2:G346<>"0",ROW(G$2:G346)-ROW(G$2)+1),ROWS(H$2:H148)))),"",IF(INDEX(G$2:G346,SMALL(IF(G$2:G346<>"0",ROW(G$2:G346)-ROW(G$2)+1),ROWS(H$2:H148)))=0,"",INDEX(G$2:G346,SMALL(IF(G$2:G346<>"0",ROW(G$2:G346)-ROW(G$2)+1),ROWS(H$2:H148)))))) -> 
F149: =IF(DesignTool!$B$40=parametric_table!D149,parametric_table!A149,"0") -> 0 | G149: =_xlfn.IFNA(IF(VLOOKUP(F149,ParametricTableRange,MATCH("Operating Region Used",parametric_table!$A$1:$AV$1,0),FALSE)>0,F149,"0"),"0") -> 0 | H149: =IF(ROWS(H$2:H149)>COUNTIF(G$2:G347,"<>0"),"",IF(ISERROR(INDEX(G$2:G347,SMALL(IF(G$2:G347<>"0",ROW(G$2:G347)-ROW(G$2)+1),ROWS(H$2:H149)))),"",IF(INDEX(G$2:G347,SMALL(IF(G$2:G347<>"0",ROW(G$2:G347)-ROW(G$2)+1),ROWS(H$2:H149)))=0,"",INDEX(G$2:G347,SMALL(IF(G$2:G347<>"0",ROW(G$2:G347)-ROW(G$2)+1),ROWS(H$2:H149)))))) -> 
F150: =IF(DesignTool!$B$40=parametric_table!D150,parametric_table!A150,"0") -> 0 | G150: =_xlfn.IFNA(IF(VLOOKUP(F150,ParametricTableRange,MATCH("Operating Region Used",parametric_table!$A$1:$AV$1,0),FALSE)>0,F150,"0"),"0") -> 0 | H150: =IF(ROWS(H$2:H150)>COUNTIF(G$2:G348,"<>0"),"",IF(ISERROR(INDEX(G$2:G348,SMALL(IF(G$2:G348<>"0",ROW(G$2:G348)-ROW(G$2)+1),ROWS(H$2:H150)))),"",IF(INDEX(G$2:G348,SMALL(IF(G$2:G348<>"0",ROW(G$2:G348)-ROW(G$2)+1),ROWS(H$2:H150)))=0,"",INDEX(G$2:G348,SMALL(IF(G$2:G348<>"0",ROW(G$2:G348)-ROW(G$2)+1),ROWS(H$2:H150)))))) -> 
F151: =IF(DesignTool!$B$40=parametric_table!D151,parametric_table!A151,"0") -> 0 | G151: =_xlfn.IFNA(IF(VLOOKUP(F151,ParametricTableRange,MATCH("Operating Region Used",parametric_table!$A$1:$AV$1,0),FALSE)>0,F151,"0"),"0") -> 0 | H151: =IF(ROWS(H$2:H151)>COUNTIF(G$2:G349,"<>0"),"",IF(ISERROR(INDEX(G$2:G349,SMALL(IF(G$2:G349<>"0",ROW(G$2:G349)-ROW(G$2)+1),ROWS(H$2:H151)))),"",IF(INDEX(G$2:G349,SMALL(IF(G$2:G349<>"0",ROW(G$2:G349)-ROW(G$2)+1),ROWS(H$2:H151)))=0,"",INDEX(G$2:G349,SMALL(IF(G$2:G349<>"0",ROW(G$2:G349)-ROW(G$2)+1),ROWS(H$2:H151)))))) -> 
F152: =IF(DesignTool!$B$40=parametric_table!D152,parametric_table!A152,"0") -> 0 | G152: =_xlfn.IFNA(IF(VLOOKUP(F152,ParametricTableRange,MATCH("Operating Region Used",parametric_table!$A$1:$AV$1,0),FALSE)>0,F152,"0"),"0") -> 0 | H152: =IF(ROWS(H$2:H152)>COUNTIF(G$2:G350,"<>0"),"",IF(ISERROR(INDEX(G$2:G350,SMALL(IF(G$2:G350<>"0",ROW(G$2:G350)-ROW(G$2)+1),ROWS(H$2:H152)))),"",IF(INDEX(G$2:G350,SMALL(IF(G$2:G350<>"0",ROW(G$2:G350)-ROW(G$2)+1),ROWS(H$2:H152)))=0,"",INDEX(G$2:G350,SMALL(IF(G$2:G350<>"0",ROW(G$2:G350)-ROW(G$2)+1),ROWS(H$2:H152)))))) -> 
F153: =IF(DesignTool!$B$40=parametric_table!D153,parametric_table!A153,"0") -> 0 | G153: =_xlfn.IFNA(IF(VLOOKUP(F153,ParametricTableRange,MATCH("Operating Region Used",parametric_table!$A$1:$AV$1,0),FALSE)>0,F153,"0"),"0") -> 0 | H153: =IF(ROWS(H$2:H153)>COUNTIF(G$2:G351,"<>0"),"",IF(ISERROR(INDEX(G$2:G351,SMALL(IF(G$2:G351<>"0",ROW(G$2:G351)-ROW(G$2)+1),ROWS(H$2:H153)))),"",IF(INDEX(G$2:G351,SMALL(IF(G$2:G351<>"0",ROW(G$2:G351)-ROW(G$2)+1),ROWS(H$2:H153)))=0,"",INDEX(G$2:G351,SMALL(IF(G$2:G351<>"0",ROW(G$2:G351)-ROW(G$2)+1),ROWS(H$2:H153)))))) -> 
F154: =IF(DesignTool!$B$40=parametric_table!D154,parametric_table!A154,"0") -> 0 | G154: =_xlfn.IFNA(IF(VLOOKUP(F154,ParametricTableRange,MATCH("Operating Region Used",parametric_table!$A$1:$AV$1,0),FALSE)>0,F154,"0"),"0") -> 0 | H154: =IF(ROWS(H$2:H154)>COUNTIF(G$2:G352,"<>0"),"",IF(ISERROR(INDEX(G$2:G352,SMALL(IF(G$2:G352<>"0",ROW(G$2:G352)-ROW(G$2)+1),ROWS(H$2:H154)))),"",IF(INDEX(G$2:G352,SMALL(IF(G$2:G352<>"0",ROW(G$2:G352)-ROW(G$2)+1),ROWS(H$2:H154)))=0,"",INDEX(G$2:G352,SMALL(IF(G$2:G352<>"0",ROW(G$2:G352)-ROW(G$2)+1),ROWS(H$2:H154)))))) -> 
F155: =IF(DesignTool!$B$40=parametric_table!D155,parametric_table!A155,"0") -> 0 | G155: =_xlfn.IFNA(IF(VLOOKUP(F155,ParametricTableRange,MATCH("Operating Region Used",parametric_table!$A$1:$AV$1,0),FALSE)>0,F155,"0"),"0") -> 0 | H155: =IF(ROWS(H$2:H155)>COUNTIF(G$2:G353,"<>0"),"",IF(ISERROR(INDEX(G$2:G353,SMALL(IF(G$2:G353<>"0",ROW(G$2:G353)-ROW(G$2)+1),ROWS(H$2:H155)))),"",IF(INDEX(G$2:G353,SMALL(IF(G$2:G353<>"0",ROW(G$2:G353)-ROW(G$2)+1),ROWS(H$2:H155)))=0,"",INDEX(G$2:G353,SMALL(IF(G$2:G353<>"0",ROW(G$2:G353)-ROW(G$2)+1),ROWS(H$2:H155)))))) -> 
F156: =IF(DesignTool!$B$40=parametric_table!D156,parametric_table!A156,"0") -> 0 | G156: =_xlfn.IFNA(IF(VLOOKUP(F156,ParametricTableRange,MATCH("Operating Region Used",parametric_table!$A$1:$AV$1,0),FALSE)>0,F156,"0"),"0") -> 0 | H156: =IF(ROWS(H$2:H156)>COUNTIF(G$2:G354,"<>0"),"",IF(ISERROR(INDEX(G$2:G354,SMALL(IF(G$2:G354<>"0",ROW(G$2:G354)-ROW(G$2)+1),ROWS(H$2:H156)))),"",IF(INDEX(G$2:G354,SMALL(IF(G$2:G354<>"0",ROW(G$2:G354)-ROW(G$2)+1),ROWS(H$2:H156)))=0,"",INDEX(G$2:G354,SMALL(IF(G$2:G354<>"0",ROW(G$2:G354)-ROW(G$2)+1),ROWS(H$2:H156)))))) -> 
F157: =IF(DesignTool!$B$40=parametric_table!D157,parametric_table!A157,"0") -> 0 | G157: =_xlfn.IFNA(IF(VLOOKUP(F157,ParametricTableRange,MATCH("Operating Region Used",parametric_table!$A$1:$AV$1,0),FALSE)>0,F157,"0"),"0") -> 0 | H157: =IF(ROWS(H$2:H157)>COUNTIF(G$2:G355,"<>0"),"",IF(ISERROR(INDEX(G$2:G355,SMALL(IF(G$2:G355<>"0",ROW(G$2:G355)-ROW(G$2)+1),ROWS(H$2:H157)))),"",IF(INDEX(G$2:G355,SMALL(IF(G$2:G355<>"0",ROW(G$2:G355)-ROW(G$2)+1),ROWS(H$2:H157)))=0,"",INDEX(G$2:G355,SMALL(IF(G$2:G355<>"0",ROW(G$2:G355)-ROW(G$2)+1),ROWS(H$2:H157)))))) -> 
F158: =IF(DesignTool!$B$40=parametric_table!D158,parametric_table!A158,"0") -> 0 | G158: =_xlfn.IFNA(IF(VLOOKUP(F158,ParametricTableRange,MATCH("Operating Region Used",parametric_table!$A$1:$AV$1,0),FALSE)>0,F158,"0"),"0") -> 0 | H158: =IF(ROWS(H$2:H158)>COUNTIF(G$2:G356,"<>0"),"",IF(ISERROR(INDEX(G$2:G356,SMALL(IF(G$2:G356<>"0",ROW(G$2:G356)-ROW(G$2)+1),ROWS(H$2:H158)))),"",IF(INDEX(G$2:G356,SMALL(IF(G$2:G356<>"0",ROW(G$2:G356)-ROW(G$2)+1),ROWS(H$2:H158)))=0,"",INDEX(G$2:G356,SMALL(IF(G$2:G356<>"0",ROW(G$2:G356)-ROW(G$2)+1),ROWS(H$2:H158)))))) -> 
F159: =IF(DesignTool!$B$40=parametric_table!D159,parametric_table!A159,"0") -> 0 | G159: =_xlfn.IFNA(IF(VLOOKUP(F159,ParametricTableRange,MATCH("Operating Region Used",parametric_table!$A$1:$AV$1,0),FALSE)>0,F159,"0"),"0") -> 0 | H159: =IF(ROWS(H$2:H159)>COUNTIF(G$2:G357,"<>0"),"",IF(ISERROR(INDEX(G$2:G357,SMALL(IF(G$2:G357<>"0",ROW(G$2:G357)-ROW(G$2)+1),ROWS(H$2:H159)))),"",IF(INDEX(G$2:G357,SMALL(IF(G$2:G357<>"0",ROW(G$2:G357)-ROW(G$2)+1),ROWS(H$2:H159)))=0,"",INDEX(G$2:G357,SMALL(IF(G$2:G357<>"0",ROW(G$2:G357)-ROW(G$2)+1),ROWS(H$2:H159)))))) -> 
F160: =IF(DesignTool!$B$40=parametric_table!D160,parametric_table!A160,"0") -> 0 | G160: =_xlfn.IFNA(IF(VLOOKUP(F160,ParametricTableRange,MATCH("Operating Region Used",parametric_table!$A$1:$AV$1,0),FALSE)>0,F160,"0"),"0") -> 0 | H160: =IF(ROWS(H$2:H160)>COUNTIF(G$2:G358,"<>0"),"",IF(ISERROR(INDEX(G$2:G358,SMALL(IF(G$2:G358<>"0",ROW(G$2:G358)-ROW(G$2)+1),ROWS(H$2:H160)))),"",IF(INDEX(G$2:G358,SMALL(IF(G$2:G358<>"0",ROW(G$2:G358)-ROW(G$2)+1),ROWS(H$2:H160)))=0,"",INDEX(G$2:G358,SMALL(IF(G$2:G358<>"0",ROW(G$2:G358)-ROW(G$2)+1),ROWS(H$2:H160)))))) -> 
F161: =IF(DesignTool!$B$40=parametric_table!D161,parametric_table!A161,"0") -> 0 | G161: =_xlfn.IFNA(IF(VLOOKUP(F161,ParametricTableRange,MATCH("Operating Region Used",parametric_table!$A$1:$AV$1,0),FALSE)>0,F161,"0"),"0") -> 0 | H161: =IF(ROWS(H$2:H161)>COUNTIF(G$2:G359,"<>0"),"",IF(ISERROR(INDEX(G$2:G359,SMALL(IF(G$2:G359<>"0",ROW(G$2:G359)-ROW(G$2)+1),ROWS(H$2:H161)))),"",IF(INDEX(G$2:G359,SMALL(IF(G$2:G359<>"0",ROW(G$2:G359)-ROW(G$2)+1),ROWS(H$2:H161)))=0,"",INDEX(G$2:G359,SMALL(IF(G$2:G359<>"0",ROW(G$2:G359)-ROW(G$2)+1),ROWS(H$2:H161)))))) -> 
F162: =IF(DesignTool!$B$40=parametric_table!D162,parametric_table!A162,"0") -> 0 | G162: =_xlfn.IFNA(IF(VLOOKUP(F162,ParametricTableRange,MATCH("Operating Region Used",parametric_table!$A$1:$AV$1,0),FALSE)>0,F162,"0"),"0") -> 0 | H162: =IF(ROWS(H$2:H162)>COUNTIF(G$2:G360,"<>0"),"",IF(ISERROR(INDEX(G$2:G360,SMALL(IF(G$2:G360<>"0",ROW(G$2:G360)-ROW(G$2)+1),ROWS(H$2:H162)))),"",IF(INDEX(G$2:G360,SMALL(IF(G$2:G360<>"0",ROW(G$2:G360)-ROW(G$2)+1),ROWS(H$2:H162)))=0,"",INDEX(G$2:G360,SMALL(IF(G$2:G360<>"0",ROW(G$2:G360)-ROW(G$2)+1),ROWS(H$2:H162)))))) -> 
F163: =IF(DesignTool!$B$40=parametric_table!D163,parametric_table!A163,"0") -> 0 | G163: =_xlfn.IFNA(IF(VLOOKUP(F163,ParametricTableRange,MATCH("Operating Region Used",parametric_table!$A$1:$AV$1,0),FALSE)>0,F163,"0"),"0") -> 0 | H163: =IF(ROWS(H$2:H163)>COUNTIF(G$2:G361,"<>0"),"",IF(ISERROR(INDEX(G$2:G361,SMALL(IF(G$2:G361<>"0",ROW(G$2:G361)-ROW(G$2)+1),ROWS(H$2:H163)))),"",IF(INDEX(G$2:G361,SMALL(IF(G$2:G361<>"0",ROW(G$2:G361)-ROW(G$2)+1),ROWS(H$2:H163)))=0,"",INDEX(G$2:G361,SMALL(IF(G$2:G361<>"0",ROW(G$2:G361)-ROW(G$2)+1),ROWS(H$2:H163)))))) -> 
F164: =IF(DesignTool!$B$40=parametric_table!D164,parametric_table!A164,"0") -> 0 | G164: =_xlfn.IFNA(IF(VLOOKUP(F164,ParametricTableRange,MATCH("Operating Region Used",parametric_table!$A$1:$AV$1,0),FALSE)>0,F164,"0"),"0") -> 0 | H164: =IF(ROWS(H$2:H164)>COUNTIF(G$2:G362,"<>0"),"",IF(ISERROR(INDEX(G$2:G362,SMALL(IF(G$2:G362<>"0",ROW(G$2:G362)-ROW(G$2)+1),ROWS(H$2:H164)))),"",IF(INDEX(G$2:G362,SMALL(IF(G$2:G362<>"0",ROW(G$2:G362)-ROW(G$2)+1),ROWS(H$2:H164)))=0,"",INDEX(G$2:G362,SMALL(IF(G$2:G362<>"0",ROW(G$2:G362)-ROW(G$2)+1),ROWS(H$2:H164)))))) -> 
F165: =IF(DesignTool!$B$40=parametric_table!D165,parametric_table!A165,"0") -> 0 | G165: =_xlfn.IFNA(IF(VLOOKUP(F165,ParametricTableRange,MATCH("Operating Region Used",parametric_table!$A$1:$AV$1,0),FALSE)>0,F165,"0"),"0") -> 0 | H165: =IF(ROWS(H$2:H165)>COUNTIF(G$2:G363,"<>0"),"",IF(ISERROR(INDEX(G$2:G363,SMALL(IF(G$2:G363<>"0",ROW(G$2:G363)-ROW(G$2)+1),ROWS(H$2:H165)))),"",IF(INDEX(G$2:G363,SMALL(IF(G$2:G363<>"0",ROW(G$2:G363)-ROW(G$2)+1),ROWS(H$2:H165)))=0,"",INDEX(G$2:G363,SMALL(IF(G$2:G363<>"0",ROW(G$2:G363)-ROW(G$2)+1),ROWS(H$2:H165)))))) -> 
F166: =IF(DesignTool!$B$40=parametric_table!D166,parametric_table!A166,"0") -> 0 | G166: =_xlfn.IFNA(IF(VLOOKUP(F166,ParametricTableRange,MATCH("Operating Region Used",parametric_table!$A$1:$AV$1,0),FALSE)>0,F166,"0"),"0") -> 0 | H166: =IF(ROWS(H$2:H166)>COUNTIF(G$2:G364,"<>0"),"",IF(ISERROR(INDEX(G$2:G364,SMALL(IF(G$2:G364<>"0",ROW(G$2:G364)-ROW(G$2)+1),ROWS(H$2:H166)))),"",IF(INDEX(G$2:G364,SMALL(IF(G$2:G364<>"0",ROW(G$2:G364)-ROW(G$2)+1),ROWS(H$2:H166)))=0,"",INDEX(G$2:G364,SMALL(IF(G$2:G364<>"0",ROW(G$2:G364)-ROW(G$2)+1),ROWS(H$2:H166)))))) -> 
F167: =IF(DesignTool!$B$40=parametric_table!D167,parametric_table!A167,"0") -> 0 | G167: =_xlfn.IFNA(IF(VLOOKUP(F167,ParametricTableRange,MATCH("Operating Region Used",parametric_table!$A$1:$AV$1,0),FALSE)>0,F167,"0"),"0") -> 0 | H167: =IF(ROWS(H$2:H167)>COUNTIF(G$2:G365,"<>0"),"",IF(ISERROR(INDEX(G$2:G365,SMALL(IF(G$2:G365<>"0",ROW(G$2:G365)-ROW(G$2)+1),ROWS(H$2:H167)))),"",IF(INDEX(G$2:G365,SMALL(IF(G$2:G365<>"0",ROW(G$2:G365)-ROW(G$2)+1),ROWS(H$2:H167)))=0,"",INDEX(G$2:G365,SMALL(IF(G$2:G365<>"0",ROW(G$2:G365)-ROW(G$2)+1),ROWS(H$2:H167)))))) -> 
F168: =IF(DesignTool!$B$40=parametric_table!D168,parametric_table!A168,"0") -> 0 | G168: =_xlfn.IFNA(IF(VLOOKUP(F168,ParametricTableRange,MATCH("Operating Region Used",parametric_table!$A$1:$AV$1,0),FALSE)>0,F168,"0"),"0") -> 0 | H168: =IF(ROWS(H$2:H168)>COUNTIF(G$2:G366,"<>0"),"",IF(ISERROR(INDEX(G$2:G366,SMALL(IF(G$2:G366<>"0",ROW(G$2:G366)-ROW(G$2)+1),ROWS(H$2:H168)))),"",IF(INDEX(G$2:G366,SMALL(IF(G$2:G366<>"0",ROW(G$2:G366)-ROW(G$2)+1),ROWS(H$2:H168)))=0,"",INDEX(G$2:G366,SMALL(IF(G$2:G366<>"0",ROW(G$2:G366)-ROW(G$2)+1),ROWS(H$2:H168)))))) -> 
F169: =IF(DesignTool!$B$40=parametric_table!D169,parametric_table!A169,"0") -> 0 | G169: =_xlfn.IFNA(IF(VLOOKUP(F169,ParametricTableRange,MATCH("Operating Region Used",parametric_table!$A$1:$AV$1,0),FALSE)>0,F169,"0"),"0") -> 0 | H169: =IF(ROWS(H$2:H169)>COUNTIF(G$2:G367,"<>0"),"",IF(ISERROR(INDEX(G$2:G367,SMALL(IF(G$2:G367<>"0",ROW(G$2:G367)-ROW(G$2)+1),ROWS(H$2:H169)))),"",IF(INDEX(G$2:G367,SMALL(IF(G$2:G367<>"0",ROW(G$2:G367)-ROW(G$2)+1),ROWS(H$2:H169)))=0,"",INDEX(G$2:G367,SMALL(IF(G$2:G367<>"0",ROW(G$2:G367)-ROW(G$2)+1),ROWS(H$2:H169)))))) -> 
F170: =IF(DesignTool!$B$40=parametric_table!D170,parametric_table!A170,"0") -> 0 | G170: =_xlfn.IFNA(IF(VLOOKUP(F170,ParametricTableRange,MATCH("Operating Region Used",parametric_table!$A$1:$AV$1,0),FALSE)>0,F170,"0"),"0") -> 0 | H170: =IF(ROWS(H$2:H170)>COUNTIF(G$2:G368,"<>0"),"",IF(ISERROR(INDEX(G$2:G368,SMALL(IF(G$2:G368<>"0",ROW(G$2:G368)-ROW(G$2)+1),ROWS(H$2:H170)))),"",IF(INDEX(G$2:G368,SMALL(IF(G$2:G368<>"0",ROW(G$2:G368)-ROW(G$2)+1),ROWS(H$2:H170)))=0,"",INDEX(G$2:G368,SMALL(IF(G$2:G368<>"0",ROW(G$2:G368)-ROW(G$2)+1),ROWS(H$2:H170)))))) -> 
F171: =IF(DesignTool!$B$40=parametric_table!D171,parametric_table!A171,"0") -> 0 | G171: =_xlfn.IFNA(IF(VLOOKUP(F171,ParametricTableRange,MATCH("Operating Region Used",parametric_table!$A$1:$AV$1,0),FALSE)>0,F171,"0"),"0") -> 0 | H171: =IF(ROWS(H$2:H171)>COUNTIF(G$2:G369,"<>0"),"",IF(ISERROR(INDEX(G$2:G369,SMALL(IF(G$2:G369<>"0",ROW(G$2:G369)-ROW(G$2)+1),ROWS(H$2:H171)))),"",IF(INDEX(G$2:G369,SMALL(IF(G$2:G369<>"0",ROW(G$2:G369)-ROW(G$2)+1),ROWS(H$2:H171)))=0,"",INDEX(G$2:G369,SMALL(IF(G$2:G369<>"0",ROW(G$2:G369)-ROW(G$2)+1),ROWS(H$2:H171)))))) -> 
F172: =IF(DesignTool!$B$40=parametric_table!D172,parametric_table!A172,"0") -> 0 | G172: =_xlfn.IFNA(IF(VLOOKUP(F172,ParametricTableRange,MATCH("Operating Region Used",parametric_table!$A$1:$AV$1,0),FALSE)>0,F172,"0"),"0") -> 0 | H172: =IF(ROWS(H$2:H172)>COUNTIF(G$2:G370,"<>0"),"",IF(ISERROR(INDEX(G$2:G370,SMALL(IF(G$2:G370<>"0",ROW(G$2:G370)-ROW(G$2)+1),ROWS(H$2:H172)))),"",IF(INDEX(G$2:G370,SMALL(IF(G$2:G370<>"0",ROW(G$2:G370)-ROW(G$2)+1),ROWS(H$2:H172)))=0,"",INDEX(G$2:G370,SMALL(IF(G$2:G370<>"0",ROW(G$2:G370)-ROW(G$2)+1),ROWS(H$2:H172)))))) -> 
F173: =IF(DesignTool!$B$40=parametric_table!D173,parametric_table!A173,"0") -> 0 | G173: =_xlfn.IFNA(IF(VLOOKUP(F173,ParametricTableRange,MATCH("Operating Region Used",parametric_table!$A$1:$AV$1,0),FALSE)>0,F173,"0"),"0") -> 0 | H173: =IF(ROWS(H$2:H173)>COUNTIF(G$2:G371,"<>0"),"",IF(ISERROR(INDEX(G$2:G371,SMALL(IF(G$2:G371<>"0",ROW(G$2:G371)-ROW(G$2)+1),ROWS(H$2:H173)))),"",IF(INDEX(G$2:G371,SMALL(IF(G$2:G371<>"0",ROW(G$2:G371)-ROW(G$2)+1),ROWS(H$2:H173)))=0,"",INDEX(G$2:G371,SMALL(IF(G$2:G371<>"0",ROW(G$2:G371)-ROW(G$2)+1),ROWS(H$2:H173)))))) -> 
F174: =IF(DesignTool!$B$40=parametric_table!D174,parametric_table!A174,"0") -> 0 | G174: =_xlfn.IFNA(IF(VLOOKUP(F174,ParametricTableRange,MATCH("Operating Region Used",parametric_table!$A$1:$AV$1,0),FALSE)>0,F174,"0"),"0") -> 0 | H174: =IF(ROWS(H$2:H174)>COUNTIF(G$2:G372,"<>0"),"",IF(ISERROR(INDEX(G$2:G372,SMALL(IF(G$2:G372<>"0",ROW(G$2:G372)-ROW(G$2)+1),ROWS(H$2:H174)))),"",IF(INDEX(G$2:G372,SMALL(IF(G$2:G372<>"0",ROW(G$2:G372)-ROW(G$2)+1),ROWS(H$2:H174)))=0,"",INDEX(G$2:G372,SMALL(IF(G$2:G372<>"0",ROW(G$2:G372)-ROW(G$2)+1),ROWS(H$2:H174)))))) -> 
F175: =IF(DesignTool!$B$40=parametric_table!D175,parametric_table!A175,"0") -> 0 | G175: =_xlfn.IFNA(IF(VLOOKUP(F175,ParametricTableRange,MATCH("Operating Region Used",parametric_table!$A$1:$AV$1,0),FALSE)>0,F175,"0"),"0") -> 0 | H175: =IF(ROWS(H$2:H175)>COUNTIF(G$2:G373,"<>0"),"",IF(ISERROR(INDEX(G$2:G373,SMALL(IF(G$2:G373<>"0",ROW(G$2:G373)-ROW(G$2)+1),ROWS(H$2:H175)))),"",IF(INDEX(G$2:G373,SMALL(IF(G$2:G373<>"0",ROW(G$2:G373)-ROW(G$2)+1),ROWS(H$2:H175)))=0,"",INDEX(G$2:G373,SMALL(IF(G$2:G373<>"0",ROW(G$2:G373)-ROW(G$2)+1),ROWS(H$2:H175)))))) -> 
F176: =IF(DesignTool!$B$40=parametric_table!D176,parametric_table!A176,"0") -> 0 | G176: =_xlfn.IFNA(IF(VLOOKUP(F176,ParametricTableRange,MATCH("Operating Region Used",parametric_table!$A$1:$AV$1,0),FALSE)>0,F176,"0"),"0") -> 0 | H176: =IF(ROWS(H$2:H176)>COUNTIF(G$2:G374,"<>0"),"",IF(ISERROR(INDEX(G$2:G374,SMALL(IF(G$2:G374<>"0",ROW(G$2:G374)-ROW(G$2)+1),ROWS(H$2:H176)))),"",IF(INDEX(G$2:G374,SMALL(IF(G$2:G374<>"0",ROW(G$2:G374)-ROW(G$2)+1),ROWS(H$2:H176)))=0,"",INDEX(G$2:G374,SMALL(IF(G$2:G374<>"0",ROW(G$2:G374)-ROW(G$2)+1),ROWS(H$2:H176)))))) -> 
F177: =IF(DesignTool!$B$40=parametric_table!D177,parametric_table!A177,"0") -> 0 | G177: =_xlfn.IFNA(IF(VLOOKUP(F177,ParametricTableRange,MATCH("Operating Region Used",parametric_table!$A$1:$AV$1,0),FALSE)>0,F177,"0"),"0") -> 0 | H177: =IF(ROWS(H$2:H177)>COUNTIF(G$2:G375,"<>0"),"",IF(ISERROR(INDEX(G$2:G375,SMALL(IF(G$2:G375<>"0",ROW(G$2:G375)-ROW(G$2)+1),ROWS(H$2:H177)))),"",IF(INDEX(G$2:G375,SMALL(IF(G$2:G375<>"0",ROW(G$2:G375)-ROW(G$2)+1),ROWS(H$2:H177)))=0,"",INDEX(G$2:G375,SMALL(IF(G$2:G375<>"0",ROW(G$2:G375)-ROW(G$2)+1),ROWS(H$2:H177)))))) -> 
F178: =IF(DesignTool!$B$40=parametric_table!D178,parametric_table!A178,"0") -> 0 | G178: =_xlfn.IFNA(IF(VLOOKUP(F178,ParametricTableRange,MATCH("Operating Region Used",parametric_table!$A$1:$AV$1,0),FALSE)>0,F178,"0"),"0") -> 0 | H178: =IF(ROWS(H$2:H178)>COUNTIF(G$2:G376,"<>0"),"",IF(ISERROR(INDEX(G$2:G376,SMALL(IF(G$2:G376<>"0",ROW(G$2:G376)-ROW(G$2)+1),ROWS(H$2:H178)))),"",IF(INDEX(G$2:G376,SMALL(IF(G$2:G376<>"0",ROW(G$2:G376)-ROW(G$2)+1),ROWS(H$2:H178)))=0,"",INDEX(G$2:G376,SMALL(IF(G$2:G376<>"0",ROW(G$2:G376)-ROW(G$2)+1),ROWS(H$2:H178)))))) -> 
F179: =IF(DesignTool!$B$40=parametric_table!D179,parametric_table!A179,"0") -> 0 | G179: =_xlfn.IFNA(IF(VLOOKUP(F179,ParametricTableRange,MATCH("Operating Region Used",parametric_table!$A$1:$AV$1,0),FALSE)>0,F179,"0"),"0") -> 0 | H179: =IF(ROWS(H$2:H179)>COUNTIF(G$2:G377,"<>0"),"",IF(ISERROR(INDEX(G$2:G377,SMALL(IF(G$2:G377<>"0",ROW(G$2:G377)-ROW(G$2)+1),ROWS(H$2:H179)))),"",IF(INDEX(G$2:G377,SMALL(IF(G$2:G377<>"0",ROW(G$2:G377)-ROW(G$2)+1),ROWS(H$2:H179)))=0,"",INDEX(G$2:G377,SMALL(IF(G$2:G377<>"0",ROW(G$2:G377)-ROW(G$2)+1),ROWS(H$2:H179)))))) -> 
F180: =IF(DesignTool!$B$40=parametric_table!D180,parametric_table!A180,"0") -> 0 | G180: =_xlfn.IFNA(IF(VLOOKUP(F180,ParametricTableRange,MATCH("Operating Region Used",parametric_table!$A$1:$AV$1,0),FALSE)>0,F180,"0"),"0") -> 0 | H180: =IF(ROWS(H$2:H180)>COUNTIF(G$2:G378,"<>0"),"",IF(ISERROR(INDEX(G$2:G378,SMALL(IF(G$2:G378<>"0",ROW(G$2:G378)-ROW(G$2)+1),ROWS(H$2:H180)))),"",IF(INDEX(G$2:G378,SMALL(IF(G$2:G378<>"0",ROW(G$2:G378)-ROW(G$2)+1),ROWS(H$2:H180)))=0,"",INDEX(G$2:G378,SMALL(IF(G$2:G378<>"0",ROW(G$2:G378)-ROW(G$2)+1),ROWS(H$2:H180)))))) -> 
F181: =IF(DesignTool!$B$40=parametric_table!D181,parametric_table!A181,"0") -> 0 | G181: =_xlfn.IFNA(IF(VLOOKUP(F181,ParametricTableRange,MATCH("Operating Region Used",parametric_table!$A$1:$AV$1,0),FALSE)>0,F181,"0"),"0") -> 0 | H181: =IF(ROWS(H$2:H181)>COUNTIF(G$2:G379,"<>0"),"",IF(ISERROR(INDEX(G$2:G379,SMALL(IF(G$2:G379<>"0",ROW(G$2:G379)-ROW(G$2)+1),ROWS(H$2:H181)))),"",IF(INDEX(G$2:G379,SMALL(IF(G$2:G379<>"0",ROW(G$2:G379)-ROW(G$2)+1),ROWS(H$2:H181)))=0,"",INDEX(G$2:G379,SMALL(IF(G$2:G379<>"0",ROW(G$2:G379)-ROW(G$2)+1),ROWS(H$2:H181)))))) -> 
F182: =IF(DesignTool!$B$40=parametric_table!D182,parametric_table!A182,"0") -> 0 | G182: =_xlfn.IFNA(IF(VLOOKUP(F182,ParametricTableRange,MATCH("Operating Region Used",parametric_table!$A$1:$AV$1,0),FALSE)>0,F182,"0"),"0") -> 0 | H182: =IF(ROWS(H$2:H182)>COUNTIF(G$2:G380,"<>0"),"",IF(ISERROR(INDEX(G$2:G380,SMALL(IF(G$2:G380<>"0",ROW(G$2:G380)-ROW(G$2)+1),ROWS(H$2:H182)))),"",IF(INDEX(G$2:G380,SMALL(IF(G$2:G380<>"0",ROW(G$2:G380)-ROW(G$2)+1),ROWS(H$2:H182)))=0,"",INDEX(G$2:G380,SMALL(IF(G$2:G380<>"0",ROW(G$2:G380)-ROW(G$2)+1),ROWS(H$2:H182)))))) -> 
F183: =IF(DesignTool!$B$40=parametric_table!D183,parametric_table!A183,"0") -> 0 | G183: =_xlfn.IFNA(IF(VLOOKUP(F183,ParametricTableRange,MATCH("Operating Region Used",parametric_table!$A$1:$AV$1,0),FALSE)>0,F183,"0"),"0") -> 0 | H183: =IF(ROWS(H$2:H183)>COUNTIF(G$2:G381,"<>0"),"",IF(ISERROR(INDEX(G$2:G381,SMALL(IF(G$2:G381<>"0",ROW(G$2:G381)-ROW(G$2)+1),ROWS(H$2:H183)))),"",IF(INDEX(G$2:G381,SMALL(IF(G$2:G381<>"0",ROW(G$2:G381)-ROW(G$2)+1),ROWS(H$2:H183)))=0,"",INDEX(G$2:G381,SMALL(IF(G$2:G381<>"0",ROW(G$2:G381)-ROW(G$2)+1),ROWS(H$2:H183)))))) -> 
F184: =IF(DesignTool!$B$40=parametric_table!D184,parametric_table!A184,"0") -> 0 | G184: =_xlfn.IFNA(IF(VLOOKUP(F184,ParametricTableRange,MATCH("Operating Region Used",parametric_table!$A$1:$AV$1,0),FALSE)>0,F184,"0"),"0") -> 0 | H184: =IF(ROWS(H$2:H184)>COUNTIF(G$2:G382,"<>0"),"",IF(ISERROR(INDEX(G$2:G382,SMALL(IF(G$2:G382<>"0",ROW(G$2:G382)-ROW(G$2)+1),ROWS(H$2:H184)))),"",IF(INDEX(G$2:G382,SMALL(IF(G$2:G382<>"0",ROW(G$2:G382)-ROW(G$2)+1),ROWS(H$2:H184)))=0,"",INDEX(G$2:G382,SMALL(IF(G$2:G382<>"0",ROW(G$2:G382)-ROW(G$2)+1),ROWS(H$2:H184)))))) -> 
F185: =IF(DesignTool!$B$40=parametric_table!D185,parametric_table!A185,"0") -> 0 | G185: =_xlfn.IFNA(IF(VLOOKUP(F185,ParametricTableRange,MATCH("Operating Region Used",parametric_table!$A$1:$AV$1,0),FALSE)>0,F185,"0"),"0") -> 0 | H185: =IF(ROWS(H$2:H185)>COUNTIF(G$2:G383,"<>0"),"",IF(ISERROR(INDEX(G$2:G383,SMALL(IF(G$2:G383<>"0",ROW(G$2:G383)-ROW(G$2)+1),ROWS(H$2:H185)))),"",IF(INDEX(G$2:G383,SMALL(IF(G$2:G383<>"0",ROW(G$2:G383)-ROW(G$2)+1),ROWS(H$2:H185)))=0,"",INDEX(G$2:G383,SMALL(IF(G$2:G383<>"0",ROW(G$2:G383)-ROW(G$2)+1),ROWS(H$2:H185)))))) -> 
F186: =IF(DesignTool!$B$40=parametric_table!D186,parametric_table!A186,"0") -> 0 | G186: =_xlfn.IFNA(IF(VLOOKUP(F186,ParametricTableRange,MATCH("Operating Region Used",parametric_table!$A$1:$AV$1,0),FALSE)>0,F186,"0"),"0") -> 0 | H186: =IF(ROWS(H$2:H186)>COUNTIF(G$2:G384,"<>0"),"",IF(ISERROR(INDEX(G$2:G384,SMALL(IF(G$2:G384<>"0",ROW(G$2:G384)-ROW(G$2)+1),ROWS(H$2:H186)))),"",IF(INDEX(G$2:G384,SMALL(IF(G$2:G384<>"0",ROW(G$2:G384)-ROW(G$2)+1),ROWS(H$2:H186)))=0,"",INDEX(G$2:G384,SMALL(IF(G$2:G384<>"0",ROW(G$2:G384)-ROW(G$2)+1),ROWS(H$2:H186)))))) -> 
F187: =IF(DesignTool!$B$40=parametric_table!D187,parametric_table!A187,"0") -> 0 | G187: =_xlfn.IFNA(IF(VLOOKUP(F187,ParametricTableRange,MATCH("Operating Region Used",parametric_table!$A$1:$AV$1,0),FALSE)>0,F187,"0"),"0") -> 0 | H187: =IF(ROWS(H$2:H187)>COUNTIF(G$2:G385,"<>0"),"",IF(ISERROR(INDEX(G$2:G385,SMALL(IF(G$2:G385<>"0",ROW(G$2:G385)-ROW(G$2)+1),ROWS(H$2:H187)))),"",IF(INDEX(G$2:G385,SMALL(IF(G$2:G385<>"0",ROW(G$2:G385)-ROW(G$2)+1),ROWS(H$2:H187)))=0,"",INDEX(G$2:G385,SMALL(IF(G$2:G385<>"0",ROW(G$2:G385)-ROW(G$2)+1),ROWS(H$2:H187)))))) -> 
F188: =IF(DesignTool!$B$40=parametric_table!D188,parametric_table!A188,"0") -> 0 | G188: =_xlfn.IFNA(IF(VLOOKUP(F188,ParametricTableRange,MATCH("Operating Region Used",parametric_table!$A$1:$AV$1,0),FALSE)>0,F188,"0"),"0") -> 0 | H188: =IF(ROWS(H$2:H188)>COUNTIF(G$2:G386,"<>0"),"",IF(ISERROR(INDEX(G$2:G386,SMALL(IF(G$2:G386<>"0",ROW(G$2:G386)-ROW(G$2)+1),ROWS(H$2:H188)))),"",IF(INDEX(G$2:G386,SMALL(IF(G$2:G386<>"0",ROW(G$2:G386)-ROW(G$2)+1),ROWS(H$2:H188)))=0,"",INDEX(G$2:G386,SMALL(IF(G$2:G386<>"0",ROW(G$2:G386)-ROW(G$2)+1),ROWS(H$2:H188)))))) -> 
F189: =IF(DesignTool!$B$40=parametric_table!D189,parametric_table!A189,"0") -> 0 | G189: =_xlfn.IFNA(IF(VLOOKUP(F189,ParametricTableRange,MATCH("Operating Region Used",parametric_table!$A$1:$AV$1,0),FALSE)>0,F189,"0"),"0") -> 0 | H189: =IF(ROWS(H$2:H189)>COUNTIF(G$2:G387,"<>0"),"",IF(ISERROR(INDEX(G$2:G387,SMALL(IF(G$2:G387<>"0",ROW(G$2:G387)-ROW(G$2)+1),ROWS(H$2:H189)))),"",IF(INDEX(G$2:G387,SMALL(IF(G$2:G387<>"0",ROW(G$2:G387)-ROW(G$2)+1),ROWS(H$2:H189)))=0,"",INDEX(G$2:G387,SMALL(IF(G$2:G387<>"0",ROW(G$2:G387)-ROW(G$2)+1),ROWS(H$2:H189)))))) -> 
F190: =IF(DesignTool!$B$40=parametric_table!D190,parametric_table!A190,"0") -> 0 | G190: =_xlfn.IFNA(IF(VLOOKUP(F190,ParametricTableRange,MATCH("Operating Region Used",parametric_table!$A$1:$AV$1,0),FALSE)>0,F190,"0"),"0") -> 0 | H190: =IF(ROWS(H$2:H190)>COUNTIF(G$2:G388,"<>0"),"",IF(ISERROR(INDEX(G$2:G388,SMALL(IF(G$2:G388<>"0",ROW(G$2:G388)-ROW(G$2)+1),ROWS(H$2:H190)))),"",IF(INDEX(G$2:G388,SMALL(IF(G$2:G388<>"0",ROW(G$2:G388)-ROW(G$2)+1),ROWS(H$2:H190)))=0,"",INDEX(G$2:G388,SMALL(IF(G$2:G388<>"0",ROW(G$2:G388)-ROW(G$2)+1),ROWS(H$2:H190)))))) -> 
F191: =IF(DesignTool!$B$40=parametric_table!D191,parametric_table!A191,"0") -> 0 | G191: =_xlfn.IFNA(IF(VLOOKUP(F191,ParametricTableRange,MATCH("Operating Region Used",parametric_table!$A$1:$AV$1,0),FALSE)>0,F191,"0"),"0") -> 0 | H191: =IF(ROWS(H$2:H191)>COUNTIF(G$2:G389,"<>0"),"",IF(ISERROR(INDEX(G$2:G389,SMALL(IF(G$2:G389<>"0",ROW(G$2:G389)-ROW(G$2)+1),ROWS(H$2:H191)))),"",IF(INDEX(G$2:G389,SMALL(IF(G$2:G389<>"0",ROW(G$2:G389)-ROW(G$2)+1),ROWS(H$2:H191)))=0,"",INDEX(G$2:G389,SMALL(IF(G$2:G389<>"0",ROW(G$2:G389)-ROW(G$2)+1),ROWS(H$2:H191)))))) -> 
F192: =IF(DesignTool!$B$40=parametric_table!D192,parametric_table!A192,"0") -> 0 | G192: =_xlfn.IFNA(IF(VLOOKUP(F192,ParametricTableRange,MATCH("Operating Region Used",parametric_table!$A$1:$AV$1,0),FALSE)>0,F192,"0"),"0") -> 0 | H192: =IF(ROWS(H$2:H192)>COUNTIF(G$2:G390,"<>0"),"",IF(ISERROR(INDEX(G$2:G390,SMALL(IF(G$2:G390<>"0",ROW(G$2:G390)-ROW(G$2)+1),ROWS(H$2:H192)))),"",IF(INDEX(G$2:G390,SMALL(IF(G$2:G390<>"0",ROW(G$2:G390)-ROW(G$2)+1),ROWS(H$2:H192)))=0,"",INDEX(G$2:G390,SMALL(IF(G$2:G390<>"0",ROW(G$2:G390)-ROW(G$2)+1),ROWS(H$2:H192)))))) -> 
F193: =IF(DesignTool!$B$40=parametric_table!D193,parametric_table!A193,"0") -> 0 | G193: =_xlfn.IFNA(IF(VLOOKUP(F193,ParametricTableRange,MATCH("Operating Region Used",parametric_table!$A$1:$AV$1,0),FALSE)>0,F193,"0"),"0") -> 0 | H193: =IF(ROWS(H$2:H193)>COUNTIF(G$2:G391,"<>0"),"",IF(ISERROR(INDEX(G$2:G391,SMALL(IF(G$2:G391<>"0",ROW(G$2:G391)-ROW(G$2)+1),ROWS(H$2:H193)))),"",IF(INDEX(G$2:G391,SMALL(IF(G$2:G391<>"0",ROW(G$2:G391)-ROW(G$2)+1),ROWS(H$2:H193)))=0,"",INDEX(G$2:G391,SMALL(IF(G$2:G391<>"0",ROW(G$2:G391)-ROW(G$2)+1),ROWS(H$2:H193)))))) -> 
F194: =IF(DesignTool!$B$40=parametric_table!D194,parametric_table!A194,"0") -> 0 | G194: =_xlfn.IFNA(IF(VLOOKUP(F194,ParametricTableRange,MATCH("Operating Region Used",parametric_table!$A$1:$AV$1,0),FALSE)>0,F194,"0"),"0") -> 0 | H194: =IF(ROWS(H$2:H194)>COUNTIF(G$2:G392,"<>0"),"",IF(ISERROR(INDEX(G$2:G392,SMALL(IF(G$2:G392<>"0",ROW(G$2:G392)-ROW(G$2)+1),ROWS(H$2:H194)))),"",IF(INDEX(G$2:G392,SMALL(IF(G$2:G392<>"0",ROW(G$2:G392)-ROW(G$2)+1),ROWS(H$2:H194)))=0,"",INDEX(G$2:G392,SMALL(IF(G$2:G392<>"0",ROW(G$2:G392)-ROW(G$2)+1),ROWS(H$2:H194)))))) -> 
F195: =IF(DesignTool!$B$40=parametric_table!D195,parametric_table!A195,"0") -> 0 | G195: =_xlfn.IFNA(IF(VLOOKUP(F195,ParametricTableRange,MATCH("Operating Region Used",parametric_table!$A$1:$AV$1,0),FALSE)>0,F195,"0"),"0") -> 0 | H195: =IF(ROWS(H$2:H195)>COUNTIF(G$2:G393,"<>0"),"",IF(ISERROR(INDEX(G$2:G393,SMALL(IF(G$2:G393<>"0",ROW(G$2:G393)-ROW(G$2)+1),ROWS(H$2:H195)))),"",IF(INDEX(G$2:G393,SMALL(IF(G$2:G393<>"0",ROW(G$2:G393)-ROW(G$2)+1),ROWS(H$2:H195)))=0,"",INDEX(G$2:G393,SMALL(IF(G$2:G393<>"0",ROW(G$2:G393)-ROW(G$2)+1),ROWS(H$2:H195)))))) -> 
F196: =IF(DesignTool!$B$40=parametric_table!D196,parametric_table!A196,"0") -> 0 | G196: =_xlfn.IFNA(IF(VLOOKUP(F196,ParametricTableRange,MATCH("Operating Region Used",parametric_table!$A$1:$AV$1,0),FALSE)>0,F196,"0"),"0") -> 0 | H196: =IF(ROWS(H$2:H196)>COUNTIF(G$2:G394,"<>0"),"",IF(ISERROR(INDEX(G$2:G394,SMALL(IF(G$2:G394<>"0",ROW(G$2:G394)-ROW(G$2)+1),ROWS(H$2:H196)))),"",IF(INDEX(G$2:G394,SMALL(IF(G$2:G394<>"0",ROW(G$2:G394)-ROW(G$2)+1),ROWS(H$2:H196)))=0,"",INDEX(G$2:G394,SMALL(IF(G$2:G394<>"0",ROW(G$2:G394)-ROW(G$2)+1),ROWS(H$2:H196)))))) -> 
F197: =IF(DesignTool!$B$40=parametric_table!D197,parametric_table!A197,"0") -> 0 | G197: =_xlfn.IFNA(IF(VLOOKUP(F197,ParametricTableRange,MATCH("Operating Region Used",parametric_table!$A$1:$AV$1,0),FALSE)>0,F197,"0"),"0") -> 0 | H197: =IF(ROWS(H$2:H197)>COUNTIF(G$2:G395,"<>0"),"",IF(ISERROR(INDEX(G$2:G395,SMALL(IF(G$2:G395<>"0",ROW(G$2:G395)-ROW(G$2)+1),ROWS(H$2:H197)))),"",IF(INDEX(G$2:G395,SMALL(IF(G$2:G395<>"0",ROW(G$2:G395)-ROW(G$2)+1),ROWS(H$2:H197)))=0,"",INDEX(G$2:G395,SMALL(IF(G$2:G395<>"0",ROW(G$2:G395)-ROW(G$2)+1),ROWS(H$2:H197)))))) -> 
F198: =IF(DesignTool!$B$40=parametric_table!D198,parametric_table!A198,"0") -> 0 | G198: =_xlfn.IFNA(IF(VLOOKUP(F198,ParametricTableRange,MATCH("Operating Region Used",parametric_table!$A$1:$AV$1,0),FALSE)>0,F198,"0"),"0") -> 0 | H198: =IF(ROWS(H$2:H198)>COUNTIF(G$2:G396,"<>0"),"",IF(ISERROR(INDEX(G$2:G396,SMALL(IF(G$2:G396<>"0",ROW(G$2:G396)-ROW(G$2)+1),ROWS(H$2:H198)))),"",IF(INDEX(G$2:G396,SMALL(IF(G$2:G396<>"0",ROW(G$2:G396)-ROW(G$2)+1),ROWS(H$2:H198)))=0,"",INDEX(G$2:G396,SMALL(IF(G$2:G396<>"0",ROW(G$2:G396)-ROW(G$2)+1),ROWS(H$2:H198)))))) -> 
F199: =IF(DesignTool!$B$40=parametric_table!D199,parametric_table!A199,"0") -> 0 | G199: =_xlfn.IFNA(IF(VLOOKUP(F199,ParametricTableRange,MATCH("Operating Region Used",parametric_table!$A$1:$AV$1,0),FALSE)>0,F199,"0"),"0") -> 0 | H199: =IF(ROWS(H$2:H199)>COUNTIF(G$2:G397,"<>0"),"",IF(ISERROR(INDEX(G$2:G397,SMALL(IF(G$2:G397<>"0",ROW(G$2:G397)-ROW(G$2)+1),ROWS(H$2:H199)))),"",IF(INDEX(G$2:G397,SMALL(IF(G$2:G397<>"0",ROW(G$2:G397)-ROW(G$2)+1),ROWS(H$2:H199)))=0,"",INDEX(G$2:G397,SMALL(IF(G$2:G397<>"0",ROW(G$2:G397)-ROW(G$2)+1),ROWS(H$2:H199)))))) -> 
F200: =IF(DesignTool!$B$40=parametric_table!D200,parametric_table!A200,"0") -> 0 | G200: =_xlfn.IFNA(IF(VLOOKUP(F200,ParametricTableRange,MATCH("Operating Region Used",parametric_table!$A$1:$AV$1,0),FALSE)>0,F200,"0"),"0") -> 0 | H200: =IF(ROWS(H$2:H200)>COUNTIF(G$2:G398,"<>0"),"",IF(ISERROR(INDEX(G$2:G398,SMALL(IF(G$2:G398<>"0",ROW(G$2:G398)-ROW(G$2)+1),ROWS(H$2:H200)))),"",IF(INDEX(G$2:G398,SMALL(IF(G$2:G398<>"0",ROW(G$2:G398)-ROW(G$2)+1),ROWS(H$2:H200)))=0,"",INDEX(G$2:G398,SMALL(IF(G$2:G398<>"0",ROW(G$2:G398)-ROW(G$2)+1),ROWS(H$2:H200)))))) -> 

Sheet parametric_table (hidden)
A1: Part number | B1: Datasheet | C1: Description | D1: Type | E1: Auto Qual (Y/N) | F1: X-Sensor Loc (mm) | G1: X-tolerance (mm) | H1: Y-Sensor Loc (mm) | I1: Y-tolerance (mm) | J1: Z-Sensor Loc (mm) | K1: Z-tolerance (mm) | L1: Supply Min (V) | M1: Supply Max (V) | N1: Operating Regions | O1: Operating Region Used | P1: ICC Min | Q1: ICC Typ (mA) | R1: ICC Max (mA) | S1: Sensitivity Min (mV/mT) | T1: Sensitivity Typ (mV/mT) | U1: Sensitivity Max (mV/mT) | V1: Sensitivity (%D/mT) | W1: Tolerance | X1: Noise peak to peak (mT) | Y1: BL min | Z1: BL max | AA1: VQ (V) | AB1: VLmin-GND (V) | AC1: VCC-VLmax (V) | AD1: Vout Min (V) | AE1: Vout Max (V) | AF1: BOP Min (mT) | AG1: BOP Typ (mT) | AH1: BOP Max (mT) | AI1: BRP Min (mT) | AJ1: BRP Typ (mT) | AK1: BRP Max (mT) | AL1: Bhys Min (mT) | AM1: Bhys Typ (mT) | AN1: Bhys Max (mT) | AO1: Active State | AP1: Sensor Axis | AQ1: Package Group | AR1: Package size: mm2:W x L (PKG) | AS1: HBM (V) | AT1: CDM (V) | AU1: Op temp range (C) | AV1: Approx. price (USD) | AW1: Within B Range
A2: TMAG5111A2 | B2: DS | C2: 2-dimensional, dual-channel, high-sensitivity, speed and direction outputs, Hall-effect latch | D2: 2D Latch | E2: N | L2: 2.5 | M2: 38 | N2: =LEN(M2)-LEN(SUBSTITUTE(M2,";",""))+1 -> 1 | O2: 1 | Q2: 6 | R2: 8 | AC2: 0 | AE2: =VSUPPLY-AC2 -> 3.3 | AF2: 0.2 | AG2: 1.4 | AH2: 2.6 | AI2: -2.6 | AJ2: -1.4 | AK2: -0.2 | AL2: 0.9 | AN2: 4.6 | AP2: 2, 3, 6 | AQ2: SOT-23|5 | AR2: 5 mm2: 1.6 x 2.9 (SOT-23|5) | AS2: 2000 | AT2: 500 | AU2: -40 to 125 | AV2: $0.330 | 1ku | BA2: =COUNTIF(AW2:AW21, "below") -> 2
A3: TMAG5111A4 | B3: DS | C3: 2-dimensional, dual-channel, high-sensitivity, speed and direction outputs, Hall-effect latch | D3: 2D Latch | E3: N | L3: 2.5 | M3: 38 | N3: =LEN(M3)-LEN(SUBSTITUTE(M3,";",""))+1 -> 1 | O3: 1 | Q3: 6 | R3: 8 | AC3: 0 | AE3: 3.3 | AG3: 3 | AH3: 2.6 | AI3: -2.6 | AJ3: -1.4 | AK3: -0.2 | AL3: 0.9 | AN3: 4.6 | AP3: 2, 3, 6 | AQ3: SOT-23|5 | AR3: 5 mm2: 1.6 x 2.9 (SOT-23|5) | AS3: 2000 | AT3: 500 | AU3: -40 to 125 | AV3: $0.330 | 1ku | AW3: below
A4: TMAG5111B2 | B4: DS | C4: 2-dimensional, dual-channel, high-sensitivity, speed and direction outputs, Hall-effect latch | D4: 2D Latch | E4: N | L4: 2.5 | M4: 38 | N4: 1 | O4: 1 | Q4: 6 | R4: 8 | AC4: 0 | AE4: 3.3 | AF4: 0.2 | AG4: 1.4 | AH4: 2.6 | AI4: -2.6 | AJ4: -1.4 | AK4: -0.2 | AL4: 0.9 | AN4: 4.6 | AP4: 2, 3, 6 | AQ4: SOT-23|5 | AR4: 5 mm2: 1.6 x 2.9 (SOT-23|5) | AS4: 2000 | AT4: 500 | AU4: -40 to 125 | AV4: $0.330 | 1ku | AW4: below
A5: TMAG5111B4 | B5: DS | C5: 2-dimensional, dual-channel, high-sensitivity, speed and direction outputs, Hall-effect latch | D5: 2D Latch | E5: N | L5: 2.5 | M5: 38 | N5: 1 | O5: 1 | Q5: 6 | R5: 8 | AC5: 0 | AE5: 3.3 | AG5: 3 | AH5: 2.6 | AI5: -2.6 | AJ5: -1.4 | AK5: -0.2 | AL5: 0.9 | AN5: 4.6 | AP5: 2, 3, 6 | AQ5: SOT-23|5 | AR5: 5 mm2: 1.6 x 2.9 (SOT-23|5) | AS5: 2000 | AT5: 500 | AU5: -40 to 125 | AV5: $0.330 | 1ku
A6: TMAG5111C2 | B6: DS | C6: 2-dimensional, dual-channel, high-sensitivity, speed and direction outputs, Hall-effect latch | D6: 2D Latch | E6: N | L6: 2.5 | M6: 38 | N6: 1 | O6: 1 | Q6: 6 | R6: 8 | AC6: 0 | AE6: 3.3 | AF6: 0.2 | AG6: 1.4 | AH6: 2.6 | AI6: -2.6 | AJ6: -1.4 | AK6: -0.2 | AL6: 0.9 | AN6: 4.6 | AP6: 2, 3, 6 | AQ6: SOT-23|5 | AR6: 5 mm2: 1.6 x 2.9 (SOT-23|5) | AS6: 2000 | AT6: 500 | AU6: -40 to 125 | AV6: $0.330 | 1ku
A7: TMAG5111C4 | B7: DS | C7: 2-dimensional, dual-channel, high-sensitivity, speed and direction outputs, Hall-effect latch | D7: 2D Latch | E7: N | L7: 2.5 | M7: 38 | N7: 1 | O7: 1 | Q7: 6 | R7: 8 | AC7: 0 | AE7: 3.3 | AG7: 3 | AH7: 2.6 | AI7: -2.6 | AJ7: -1.4 | AK7: -0.2 | AL7: 0.9 | AN7: 4.6 | AP7: 2, 3, 6 | AQ7: SOT-23|5 | AR7: 5 mm2: 1.6 x 2.9 (SOT-23|5) | AS7: 2000 | AT7: 500 | AU7: -40 to 125 | AV7: $0.330 | 1ku
A8: TMAG5110A2 | B8: DS | C8: 2-dimensional, dual-channel, high-sensitivity, Hall-effect latch | D8: 2D Latch | E8: N | L8: 2.5 | M8: 38 | N8: 1 | O8: 1 | Q8: 6 | R8: 8 | AC8: 0 | AE8: 3.3 | AF8: 0.2 | AG8: 1.4 | AH8: 2.6 | AI8: -2.6 | AJ8: -1.4 | AK8: -0.2 | AL8: 0.9 | AN8: 4.6 | AP8: 2 | AQ8: SOT-23|5 | AR8: 5 mm2: 1.6 x 2.9 (SOT-23|5) | AS8: 2000 | AT8: 500 | AU8: -40 to 125 | AV8: $0.330 | 1ku
A9: TMAG5110A4 | B9: DS | C9: 2-dimensional, dual-channel, high-sensitivity, Hall-effect latch | D9: 2D Latch | E9: N | L9: 2.5 | M9: 38 | N9: 1 | O9: 1 | Q9: 6 | R9: 8 | AC9: 0 | AE9: 3.3 | AG9: 3 | AH9: 2.6 | AI9: -2.6 | AJ9: -1.4 | AK9: -0.2 | AL9: 0.9 | AN9: 4.6 | AP9: 2 | AQ9: SOT-23|5 | AR9: 5 mm2: 1.6 x 2.9 (SOT-23|5) | AS9: 2000 | AT9: 500 | AU9: -40 to 125 | AV9: $0.330 | 1ku
A10: TMAG5110B2 | B10: DS | C10: 2-dimensional, dual-channel, high-sensitivity, Hall-effect latch | D10: 2D Latch | E10: N | L10: 2.5 | M10: 38 | N10: 1 | O10: 1 | Q10: 6 | R10: 8 | AC10: 0 | AE10: 3.3 | AF10: 0.2 | AG10: 1.4 | AH10: 2.6 | AI10: -2.6 | AJ10: -1.4 | AK10: -0.2 | AL10: 0.9 | AN10: 4.6 | AP10: 2 | AQ10: SOT-23|5 | AR10: 5 mm2: 1.6 x 2.9 (SOT-23|5) | AS10: 2000 | AT10: 500 | AU10: -40 to 125 | AV10: $0.330 | 1ku
A11: TMAG5110B4 | B11: DS | C11: 2-dimensional, dual-channel, high-sensitivity, Hall-effect latch | D11: 2D Latch | E11: N | L11: 2.5 | M11: 38 | N11: 1 | O11: 1 | Q11: 6 | R11: 8 | AC11: 0 | AE11: 3.3 | AG11: 3 | AH11: 2.6 | AI11: -2.6 | AJ11: -1.4 | AK11: -0.2 | AL11: 0.9 | AN11: 4.6 | AP11: 2 | AQ11: SOT-23|5 | AR11: 5 mm2: 1.6 x 2.9 (SOT-23|5) | AS11: 2000 | AT11: 500 | AU11: -40 to 125 | AV11: $0.330 | 1ku
A12: TMAG5110C2 | B12: DS | C12: 2-dimensional, dual-channel, high-sensitivity, Hall-effect latch | D12: 2D Latch | E12: N | L12: 2.5 | M12: 38 | N12: 1 | O12: 1 | Q12: 6 | R12: 8 | AC12: 0 | AE12: 3.3 | AF12: 0.2 | AG12: 1.4 | AH12: 2.6 | AI12: -2.6 | AJ12: -1.4 | AK12: -0.2 | AL12: 0.9 | AN12: 4.6 | AP12: 2 | AQ12: SOT-23|5 | AR12: 5 mm2: 1.6 x 2.9 (SOT-23|5) | AS12: 2000 | AT12: 500 | AU12: -40 to 125 | AV12: $0.330 | 1ku
A13: TMAG5110C4 | B13: DS | C13: 2-dimensional, dual-channel, high-sensitivity, Hall-effect latch | D13: 2D Latch | E13: N | L13: 2.5 | M13: 38 | N13: 1 | O13: 1 | Q13: 6 | R13: 8 | AC13: 0 | AE13: 3.3 | AG13: 3 | AH13: 2.6 | AI13: -2.6 | AJ13: -1.4 | AK13: -0.2 | AL13: 0.9 | AN13: 4.6 | AP13: 2 | AQ13: SOT-23|5 | AR13: 5 mm2: 1.6 x 2.9 (SOT-23|5) | AS13: 2000 | AT13: 500 | AU13: -40 to 125 | AV13: $0.330 | 1ku
A14: TMAG5170A1EDGK | B14: DS | C14: 3-Axis Linear Hall Effect Sensor With SPI Interface | D14: 3-Axis linear | E14: Y | F14: =-(((3.1+2.9)/2)/2-1.77) -> 0.27 | H14: =((3.1+2.9)/2)/2-1.54 -> -0.04 | J14: 0.32 | L14: 2.3 | M14: 5.5 | N14: 1 | O14: 1 | AP14: 2 | AQ14: VSSOP|8 | AU14: -40 to 150
A15: TMAG5273A1QDBV | B15: DS | C15: Low-Power Linear 3D Hall-Effect Sensor With I2C Interface | D15: 3-Axis linear | E15: N | F15: =-(((1.75+1.45)/2)/2-0.68) -> -0.12 | H15: =((3.05+2.75)/2)/2-1.85 -> -0.4 | J15: 0.73 | L15: 1.7 | M15: 3.6 | N15: 1 | O15: 1 | AP15: 2 | AQ15: SOT-23|6 | AU15: -40 to 125
A16: TMAG5273A2QDBV | B16: DS | C16: Low-Power Linear 3D Hall-Effect Sensor With I2C Interface | D16: 3-Axis linear | E16: N | F16: =-(((1.75+1.45)/2)/2-0.68) -> -0.12 | H16: =((3.05+2.75)/2)/2-1.85 -> -0.4 | J16: 0.73 | L16: 1.7 | M16: 3.6 | N16: 1 | O16: 1 | AP16: 2 | AQ16: SOT-23|6 | AU16: -40 to 125
A17: TMAG5231B1DQDBZ | B17: DS | C17: Low-Power, Hall Effect Switch | D17: Omnipolar switch | E17: N | F17: NA | G17: NA | H17: NA | I17: NA | J17: =1.12-0.65 -> 0.47 | K17: 0.08 | L17: 1.65 | M17: 5.5 | N17: 1 | O17: 1 | AC17: 0 | AE17: 3.3 | AF17: 2 | AG17: 3 | AH17: 4.1 | AI17: 0.6 | AJ17: 1.5 | AK17: 2.2 | AL17: 0.8 | AM17: 1.5 | AN17: 2.3 | AO17: Low-HighB | AP17: 2 | AQ17: SOT-23|3 | AR17: 7 mm2: 2.37 x 2.92 (SOT-23|3) | AS17: 2000 | AT17: 500 | AU17: -40 to 85
A18: TMAG5123B | B18: DS | C18: Automotive, in-plane, high-precision, high-voltage switch | D18: Omnipolar switch | E18: Y | F18: 1.77 | G18: 0.06 | H18: NA | I18: NA | J18: NA | K18: NA | L18: 2.7 | M18: 38 | N18: 1 | O18: 1 | Q18: 3.5 | R18: 5.4 | AC18: 0 | AE18: =VSUPPLY-AC18 -> 3.3 | AF18: 2.2 | AG18: 4.1 | AH18: 6 | AI18: 0.3 | AJ18: 2.2 | AK18: 4 | AL18: 0.5 | AM18: 1.9 | AN18: 3 | AO18: Low-HighB | AP18: 1 | AQ18: SOT-23|3 | AR18: 7 mm2: 2.37 x 2.92 (SOT-23|3) | AS18: 2000 | AT18: 500 | AU18: -40 to 150 | AV18: $0.425 | 1ku
A19: TMAG5123C | B19: DS | C19: Automotive, in-plane, high-precision, high-voltage switch | D19: Omnipolar switch | E19: Y | F19: 1.77 | G19: 0.06 | H19: NA | I19: NA | J19: NA | K19: NA | L19: 2.7 | M19: 38 | N19: 1 | O19: 1 | Q19: 3.5 | R19: 5.4 | AC19: 0 | AE19: =VSUPPLY-AC19 -> 3.3 | AF19: 5.5 | AG19: 7.5 | AH19: 9.5 | AI19: 3.5 | AJ19: 5.5 | AK19: 7.5 | AL19: 0.5 | AM19: 2 | AN19: 3 | AO19: Low-HighB | AP19: 1 | AQ19: SOT-23|3 | AR19: 7 mm2: 2.37 x 2.92 (SOT-23|3) | AS19: 2000 | AT19: 500 | AU19: -40 to 150 | AV19: $0.425 | 1ku
A20: TMAG5123D | B20: DS | C20: Automotive, in-plane, high-precision, high-voltage switch | D20: Omnipolar switch | E20: Y | F20: 1.77 | G20: 0.06 | H20: NA | I20: NA | J20: NA | K20: NA | L20: 2.7 | M20: 38 | N20: 1 | O20: 1 | Q20: 3.5 | R20: 5.4 | AC20: 0 | AE20: =VSUPPLY-AC20 -> 3.3 | AF20: 8.7 | AG20: 10.9 | AH20: 13 | AI20: 6.7 | AJ20: 8.9 | AK20: 11 | AL20: 0.5 | AM20: 2 | AN20: 3 | AO20: Low-HighB | AP20: 1 | AQ20: SOT-23|3 | AR20: 7 mm2: 2.37 x 2.92 (SOT-23|3) | AS20: 2000 | AT20: 500 | AU20: -40 to 150 | AV20: $0.425 | 1ku
A21: TMAG5124A | B21: DS | C21: Two-wire (current output), high-voltage (up to 38V), high-precision switch | D21: Unipolar switch | E21: N | F21: NA | G21: NA | H21: NA | I21: NA | J21: =1.12-(0.73+0.57)/2 -> 0.47 | K21: =(0.73-0.57)/2 -> 0.08 | L21: 2.5 | M21: 38 | N21: 1 | O21: 1 | AC21: 0 | AE21: =VSUPPLY-AC21 -> 3.3 | AF21: 3 | AG21: 4 | AH21: 5 | AI21: 1 | AJ21: 2 | AK21: 3 | AL21: 0.6 | AM21: 2 | AN21: 3.4 | AO21: High North | AP21: 2 | AQ21: SOT-23|3 | AR21: 7 mm2: 2.37 x 2.92 (SOT-23|3) | AS21: 2000 | AT21: 500 | AU21: -40 to 125 | AV21: $0.300 | 1ku
A22: TMAG5124B | B22: DS | C22: Two-wire (current output), high-voltage (up to 38V), high-precision switch | D22: Unipolar switch | E22: N | F22: NA | G22: NA | H22: NA | I22: NA | J22: =1.12-(0.73+0.57)/2 -> 0.47 | K22: =(0.73-0.57)/2 -> 0.08 | L22: 2.5 | M22: 38 | N22: 1 | O22: 1 | AC22: 0 | AE22: 3.3 | AF22: 5 | AG22: 6 | AH22: 7 | AI22: 3 | AJ22: 4 | AK22: 5 | AL22: 0.6 | AM22: 2 | AN22: 3.4 | AO22: High North | AP22: 2 | AQ22: SOT-23|3 | AR22: 7 mm2: 2.37 x 2.92 (SOT-23|3) | AS22: 2000 | AT22: 500 | AU22: -40 to 125 | AV22: $0.300 | 1ku
A23: TMAG5124C | B23: DS | C23: Two-wire (current output), high-voltage (up to 38V), high-precision switch | D23: Unipolar switch | E23: N | F23: NA | G23: NA | H23: NA | I23: NA | J23: 0.47 | K23: 0.08 | L23: 2.5 | M23: 38 | N23: 1 | O23: 1 | AC23: 0 | AE23: 3.3 | AF23: 8.8 | AG23: 10 | AH23: 11 | AI23: 6.8 | AJ23: 8 | AK23: 9.4 | AL23: 0.6 | AM23: 2 | AN23: 3.4 | AO23: High North | AP23: 2 | AQ23: SOT-23|3 | AR23: 7 mm2: 2.37 x 2.92 (SOT-23|3) | AS23: 2000 | AT23: 500 | AU23: -40 to 125 | AV23: $0.300 | 1ku
A24: TMAG5124D | B24: DS | C24: Two-wire (current output), high-voltage (up to 38V), high-precision switch | D24: Unipolar switch | E24: N | F24: NA | G24: NA | H24: NA | I24: NA | J24: 0.47 | K24: 0.08 | L24: 2.5 | M24: 38 | N24: 1 | O24: 1 | AC24: 0 | AE24: 3.3 | AF24: 13.6 | AG24: 15 | AH24: 16.1 | AI24: 11.4 | AJ24: 13 | AK24: 14.2 | AL24: 0.6 | AM24: 2 | AN24: 3.4 | AO24: High North | AP24: 2 | AQ24: SOT-23|3 | AR24: 7 mm2: 2.37 x 2.92 (SOT-23|3) | AS24: 2000 | AT24: 500 | AU24: -40 to 125 | AV24: $0.300 | 1ku
A25: TMAG5124E | B25: DS | C25: Two-wire (current output), high-voltage (up to 38V), high-precision switch | D25: Unipolar switch | E25: N | F25: NA | G25: NA | H25: NA | I25: NA | J25: 0.47 | K25: 0.08 | L25: 2.5 | M25: 38 | N25: 1 | O25: 1 | AC25: 0 | AE25: 3.3 | AF25: 3 | AG25: 4 | AH25: 5 | AI25: 1 | AJ25: 2 | AK25: 3 | AL25: 0.6 | AM25: 2 | AN25: 3.4 | AO25: High North | AP25: 2 | AQ25: SOT-23|3 | AR25: 7 mm2: 2.37 x 2.92 (SOT-23|3) | AS25: 2000 | AT25: 500 | AU25: -40 to 125 | AV25: $0.300 | 1ku
A26: TMAG5124F | B26: DS | C26: Two-wire (current output), high-voltage (up to 38V), high-precision switch | D26: Unipolar switch | E26: N | F26: NA | G26: NA | H26: NA | I26: NA | J26: 0.47 | K26: 0.08 | L26: 2.5 | M26: 38 | N26: 1 | O26: 1 | AC26: 0 | AE26: 3.3 | AF26: 5 | AG26: 6 | AH26: 7 | AI26: 3 | AJ26: 4 | AK26: 5 | AL26: 0.6 | AM26: 2 | AN26: 3.4 | AO26: High North | AP26: 2 | AQ26: SOT-23|3 | AR26: 7 mm2: 2.37 x 2.92 (SOT-23|3) | AS26: 2000 | AT26: 500 | AU26: -40 to 125 | AV26: $0.300 | 1ku
A27: TMAG5124G | B27: DS | C27: Two-wire (current output), high-voltage (up to 38V), high-precision switch | D27: Unipolar switch | E27: N | F27: NA | G27: NA | H27: NA | I27: NA | J27: 0.47 | K27: 0.08 | L27: 2.5 | M27: 38 | N27: 1 | O27: 1 | AC27: 0 | AE27: 3.3 | AF27: 8.8 | AG27: 10 | AH27: 11 | AI27: 6.8 | AJ27: 8 | AK27: 9.4 | AL27: 0.6 | AM27: 2 | AN27: 3.4 | AO27: High North | AP27: 2 | AQ27: SOT-23|3 | AR27: 7 mm2: 2.37 x 2.92 (SOT-23|3) | AS27: 2000 | AT27: 500 | AU27: -40 to 125 | AV27: $0.300 | 1ku
A28: TMAG5124H | B28: DS | C28: Two-wire (current output), high-voltage (up to 38V), high-precision switch | D28: Unipolar switch | E28: N | F28: NA | G28: NA | H28: NA | I28: NA | J28: 0.47 | K28: 0.08 | L28: 2.5 | M28: 38 | N28: 1 | O28: 1 | AC28: 0 | AE28: 3.3 | AF28: 13.6 | AG28: 15 | AH28: 16.1 | AI28: 11.4 | AJ28: 13 | AK28: 14.2 | AL28: 0.6 | AM28: 2 | AN28: 3.4 | AO28: High North | AP28: 2 | AQ28: SOT-23|3 | AR28: 7 mm2: 2.37 x 2.92 (SOT-23|3) | AS28: 2000 | AT28: 500 | AU28: -40 to 125 | AV28: $0.300 | 1ku
A29: DRV5021A1 | B29: DS | C29: Low voltage (up to 5.5V), high bandwidth (up to 30 kHz) unipolar switch | D29: Unipolar switch | E29: Y | F29: NA | G29: NA | H29: NA | I29: NA | J29: =1.12-0.65 -> 0.47 | K29: 0.08 | L29: 2.5 | M29: 5.5 | N29: 1 | O29: 1 | Q29: 2.3 | R29: 2.8 | AC29: 0 | AE29: 3.3 | AF29: 1.4 | AG29: 2.9 | AH29: 4.4 | AI29: 0.4 | AJ29: 1.8 | AK29: 3 | AL29: 0.2 | AM29: 1.1 | AN29: 2.5 | AO29: High North | AP29: 2 | AQ29: SOT-23|3 | AR29: 7 mm2: 2.37 x 2.92 (SOT-23|3) | AS29: 4000 | AT29: 1000 | AU29: -40 to 125 | AV29: $0.195 | 1ku
A30: DRV5021A2 | B30: DS | C30: Low voltage (up to 5.5V), high bandwidth (up to 30 kHz) unipolar switch | D30: Unipolar switch | E30: Y | F30: NA | G30: NA | H30: NA | I30: NA | J30: =1.12-0.65 -> 0.47 | K30: 0.08 | L30: 2.5 | M30: 5.5 | N30: 1 | O30: 1 | Q30: 2.3 | R30: 2.8 | AC30: 0 | AE30: 3.3 | AF30: 5.5 | AG30: 9.2 | AH30: 12.5 | AI30: 3.6 | AJ30: 7 | AK30: 9.5 | AL30: 1.1 | AM30: 2.2 | AN30: 4.5 | AO30: High North | AP30: 2 | AQ30: SOT-23|3 | AR30: 7 mm2: 2.37 x 2.92 (SOT-23|3) | AS30: 4000 | AT30: 1000 | AU30: -40 to 125 | AV30: $0.195 | 1ku
A31: DRV5021A3 | B31: DS | C31: Low voltage (up to 5.5V), high bandwidth (up to 30 kHz) unipolar switch | D31: Unipolar switch | E31: Y | F31: NA | G31: NA | H31: NA | I31: NA | J31: 0.47 | K31: 0.08 | L31: 2.5 | M31: 5.5 | N31: 1 | O31: 1 | Q31: 2.3 | R31: 2.8 | AC31: 0 | AE31: 3.3 | AF31: 9.5 | AG31: 17.9 | AH31: 22.7 | AI31: 6.7 | AJ31: 14.1 | AK31: 18.5 | AL31: 1.6 | AM31: 3.8 | AN31: 6 | AO31: High North | AP31: 2 | AQ31: SOT-23|3 | AR31: 7 mm2: 2.37 x 2.92 (SOT-23|3) | AS31: 4000 | AT31: 1000 | AU31: -40 to 125 | AV31: $0.195 | 1ku
A32: DRV5015A1 | B32: DS | C32: High sensitivity (&plusmn;2-mT), low voltage (up to 5.5-V) Hall effect latch | D32: Latch | E32: Y | F32: NA | G32: NA | H32: NA | I32: NA | J32: 0.47 | K32: 0.08 | L32: 2.5 | M32: 5.5 | N32: 1 | O32: 1 | Q32: 2.3 | R32: 2.8 | AC32: 0 | AE32: 3.3 | AF32: -0.2 | AG32: 0.7 | AH32: 2 | AI32: -2 | AJ32: -0.7 | AK32: 0.2 | AL32: 0.35 | AM32: 1.4 | AO32: High North | AP32: 2 | AQ32: SOT-23|3 | AR32: 7 mm2: 2.37 x 2.92 (SOT-23|3) | AS32: 5000 | AT32: 1500 | AU32: -40 to 125 | AV32: $0.090 | 1ku
A33: DRV5015A2 | B33: DS | C33: High sensitivity (&plusmn;2-mT), low voltage (up to 5.5-V) Hall effect latch | D33: Latch | E33: Y | F33: NA | G33: NA | H33: NA | I33: NA | J33: 0.47 | K33: 0.08 | L33: 2.5 | M33: 5.5 | N33: 1 | O33: 1 | Q33: 2.3 | R33: 2.8 | AC33: 0 | AE33: 3.3 | AF33: 0.5 | AG33: 0.7 | AH33: 3.7 | AI33: -3.7 | AJ33: -1.8 | AK33: -0.5 | AL33: 2.3 | AM33: 3.6 | AO33: High North | AP33: 2 | AQ33: SOT-23|3 | AR33: 7 mm2: 2.37 x 2.92 (SOT-23|3) | AS33: 5000 | AT33: 1500 | AU33: -40 to 125 | AV33: $0.090 | 1ku
A34: DRV5015A3 | B34: DS | C34: High sensitivity (&plusmn;2-mT), low voltage (up to 5.5-V) Hall effect latch | D34: Latch | E34: Y | F34: NA | G34: NA | H34: NA | I34: NA | J34: 0.47 | K34: 0.08 | L34: 2.5 | M34: 5.5 | N34: 1 | O34: 1 | Q34: 2.3 | R34: 2.8 | AC34: 0 | AE34: 3.3 | AF34: 0.5 | AG34: 0.7 | AH34: 3.7 | AI34: -3.7 | AJ34: -1.8 | AK34: -0.5 | AL34: 2.3 | AM34: 3.6 | AO34: Low North | AP34: 2 | AQ34: SOT-23|3 | AR34: 7 mm2: 2.37 x 2.92 (SOT-23|3) | AS34: 5000 | AT34: 1500 | AU34: -40 to 125 | AV34: $0.090 | 1ku
A35: DRV5011ADDBZ | B35: DS | C35: Small size (available in WCSP and X2SON), low voltage (up to 5.5-V) Hall effect latch | D35: Latch | E35: N | F35: NA | G35: NA | H35: NA | I35: NA | J35: 0.47 | K35: 0.08 | L35: 2.5 | M35: 5.5 | N35: 1 | O35: 1 | Q35: 2.3 | R35: 3 | AC35: 0 | AE35: 3.3 | AF35: 0.6 | AG35: 2 | AH35: 3.8 | AI35: -3.8 | AJ35: -2 | AK35: -0.6 | AL35: 2 | AM35: 4 | AN35: 6 | AO35: High North | AP35: 2 | AQ35: SOT-23|3 | AR35: 7 mm2: 2.37 x 2.92 (SOT-23|3) | AS35: 6000 | AT35: 750 | AU35: -40 to 125 | AV35: $0.090 | 1ku
A36: DRV5011ADDMR | B36: DS | C36: Small size (available in WCSP and X2SON), low voltage (up to 5.5-V) Hall effect latch | D36: Latch | E36: N | F36: NA | G36: NA | H36: NA | I36: NA | J36: 0.47 | K36: 0.08 | L36: 2.5 | M36: 5.5 | N36: 1 | O36: 1 | Q36: 2.3 | R36: 3 | AC36: 0 | AE36: =VSUPPLY-AC36 -> 3.3 | AF36: 0.6 | AG36: 2 | AH36: 3.8 | AI36: -3.8 | AJ36: -2 | AK36: -0.6 | AL36: 2 | AM36: 4 | AN36: 6 | AO36: High North | AP36: 2 | AQ36: X2SON|4 | AR36: 2 mm2: 1.1 x 1.4 (X2SON|4) | AS36: 6000 | AT36: 750 | AU36: -40 to 125 | AV36: $0.090 | 1ku
A37: DRV5011ADLPG | B37: DS | C37: Small size (available in WCSP and X2SON), low voltage (up to 5.5-V) Hall effect latch | D37: Latch | E37: N | F37: =(1.62+1.42)/2-1.03 -> 0.49 | G37: 0.115 | H37: NA | I37: NA | J37: NA | K37: NA | L37: 2.5 | M37: 5.5 | N37: 1 | O37: 1 | Q37: 2.3 | R37: 3 | AC37: 0 | AE37: =VSUPPLY-AC37 -> 3.3 | AF37: 0.6 | AG37: 2 | AH37: 3.8 | AI37: -3.8 | AJ37: -2 | AK37: -0.6 | AL37: 2 | AM37: 4 | AN37: 6 | AO37: High North | AP37: 1 | AQ37: TO-92|3 | AR37: 6 mm2: 1.52 x 4 (TO-92|3) | AS37: 6000 | AT37: 750 | AU37: -40 to 125 | AV37: $0.090 | 1ku
A38: DRV5011ADYBH | B38: DS | C38: Small size (available in WCSP and X2SON), low voltage (up to 5.5-V) Hall effect latch | D38: Latch | E38: N | F38: NA | G38: NA | H38: NA | I38: NA | J38: 0.47 | K38: 0.08 | L38: 2.5 | M38: 5.5 | N38: 1 | O38: 1 | Q38: 2.3 | R38: 3 | AC38: 0 | AE38: =VSUPPLY-AC38 -> 3.3 | AF38: 0.6 | AG38: 2 | AH38: 3.8 | AI38: -3.8 | AJ38: -2 | AK38: -0.6 | AL38: 2 | AM38: 4 | AN38: 6 | AO38: High North | AP38: 2 | AQ38: DSBGA|4 | AR38: 1 mm2: .8 x .8 (DSBGA|4) | AS38: 6000 | AT38: 750 | AU38: -40 to 125 | AV38: $0.090 | 1ku
A39: DRV5012AEDMR | B39: DS | C39: Low power (as low as 3.3-&micro;A), low voltage (up to 5.5-V) Hall effect latch | D39: Latch | E39: N | F39: NA | G39: NA | H39: NA | I39: NA | J39: 0.47 | K39: 0.08 | L39: 1.65 | M39: 5.5 | N39: 1 | O39: 1 | AC39: 0 | AE39: 3.3 | AF39: 0.6 | AG39: 2 | AH39: 3.3 | AI39: -3.3 | AJ39: -2 | AK39: -0.6 | AL39: 2 | AM39: 4 | AO39: High North | AP39: 2 | AQ39: X2SON|4 | AR39: 2 mm2: 1.1 x 1.4 (X2SON|4) | AS39: 6000 | AT39: 750 | AU39: -40 to 85 | AV39: $0.120 | 1ku
A40: DRV5032DUDBZ | B40: DS | C40: Low power (5 Hz, <1µA), low voltage (up to 5.5V) switch | D40: Unipolar switch | E40: N | F40: NA | G40: NA | H40: NA | I40: NA | J40: =1.12-0.65 -> 0.47 | K40: 0.08 | L40: 1.65 | M40: 5.5 | N40: 1 | O40: 1 | AC40: 0 | AE40: 3.3 | AF40: -3.9 | AG40: -2.5 | AH40: -1.2 | AI40: -3.5 | AJ40: -1.8 | AK40: -0.9 | AL40: 0.1 | AM40: 0.7 | AN40: 1.9 | AO40: High North | AP40: 2 | AQ40: SOT-23|3 | AR40: 7 mm2: 2.37 x 2.92 (SOT-23|3) | AS40: 6000 | AT40: 750 | AU40: -40 to 85 | AV40: $0.194 | 1ku
A41: DRV5032DUDMR | B41: DS | C41: Low power (5 Hz, <1µA), low voltage (up to 5.5V) switch | D41: Unipolar switch | E41: N | L41: 1.65 | M41: 5.5 | N41: 1 | O41: 1 | AC41: 0 | AE41: =VSUPPLY-AC41 -> 3.3 | AF41: -3.9 | AG41: -2.5 | AH41: -1.2 | AI41: -3.5 | AJ41: -1.8 | AK41: -0.9 | AL41: 0.1 | AM41: 0.7 | AN41: 1.9 | AO41: Low North, High North | AP41: 2 | AQ41: X2SON|4 | AR41: 2 mm2: 1.1 x 1.4 (X2SON|4) | AS41: 6000 | AT41: 750 | AU41: -40 to 85 | AV41: $0.194 | 1ku
A42: DRV5032DULPG | B42: DS | C42: Low power (5 Hz, <1µA), low voltage (up to 5.5V) switch | D42: Unipolar switch | E42: N | F42: =(1.62+1.42)/2-1.03 -> 0.49 | G42: 0.115 | H42: NA | I42: NA | J42: NA | K42: NA | L42: 1.65 | M42: 5.5 | N42: 1 | O42: 1 | AC42: 0 | AE42: =VSUPPLY-AC42 -> 3.3 | AF42: -3.9 | AG42: -2.5 | AH42: -1.2 | AI42: -3.5 | AJ42: -1.8 | AK42: -0.9 | AL42: 0.1 | AM42: 0.7 | AN42: 1.9 | AO42: High North | AP42: 1 | AQ42: TO-92|3 | AR42: 6 mm2: 1.52 x 4 (TO-92|3) | AS42: 6000 | AT42: 750 | AU42: -40 to 85 | AV42: $0.194 | 1ku
A43: DRV5032FADBZ | B43: DS | C43: Low power (5 Hz, <1µA), low voltage (up to 5.5V) switch | D43: Omnipolar switch | E43: N | F43: NA | G43: NA | H43: NA | I43: NA | J43: =1.12-0.65 -> 0.47 | K43: 0.08 | L43: 1.65 | M43: 5.5 | N43: 1 | O43: 1 | AC43: 0 | AE43: 3.3 | AF43: 1.5 | AG43: 3 | AH43: 4.8 | AI43: 0.5 | AJ43: 1.5 | AK43: 3 | AL43: 0.8 | AM43: 1.5 | AN43: 3 | AO43: Low-HighB | AP43: 2 | AQ43: SOT-23|3 | AR43: 8 mm2: 2.37 x 2.92 (SOT-23|3) | AS43: 6000 | AT43: 750 | AU43: -40 to 85 | AV43: $0.194 | 1ku
A44: DRV5032FADMR | B44: DS | C44: Low power (5 Hz, <1µA), low voltage (up to 5.5V) switch | D44: Omnipolar switch | E44: N | L44: 1.65 | M44: 5.5 | N44: 1 | O44: 1 | AC44: 0 | AE44: =VSUPPLY-AC44 -> 3.3 | AF44: 1.5 | AG44: 3 | AH44: 4.8 | AI44: 0.5 | AJ44: 1.5 | AK44: 3 | AL44: 0.8 | AM44: 1.5 | AN44: 3 | AO44: Low-HighB | AP44: 2 | AQ44: X2SON|4 | AR44: 3 mm2: 1.1 x 1.4 (X2SON|4) | AS44: 6000 | AT44: 750 | AU44: -40 to 85 | AV44: $0.194 | 1ku
A45: DRV5032FALPG | B45: DS | C45: Low power (5 Hz, <1µA), low voltage (up to 5.5V) switch | D45: Omnipolar switch | E45: N | F45: =(1.62+1.42)/2-1.03 -> 0.49 | G45: 0.115 | H45: NA | I45: NA | J45: NA | K45: NA | L45: 1.65 | M45: 5.5 | N45: 1 | O45: 1 | AC45: 0 | AE45: =VSUPPLY-AC45 -> 3.3 | AF45: 1.5 | AG45: 3 | AH45: 4.8 | AI45: 0.5 | AJ45: 1.5 | AK45: 3 | AL45: 0.8 | AM45: 1.5 | AN45: 3 | AO45: Low-HighB | AP45: 1 | AQ45: TO-92|3 | AR45: 7 mm2: 1.52 x 4 (TO-92|3) | AS45: 6000 | AT45: 750 | AU45: -40 to 85 | AV45: $0.194 | 1ku
A46: DRV5032FBDBZ | B46: DS | C46: Low power (5 Hz, <1µA), low voltage (up to 5.5V) switch | D46: Omnipolar switch | E46: N | F46: NA | G46: NA | H46: NA | I46: NA | J46: =1.12-0.65 -> 0.47 | K46: 0.08 | L46: 1.65 | M46: 5.5 | N46: 1 | O46: 1 | AC46: 0 | AE46: 3.3 | AF46: 1.5 | AG46: 3 | AH46: 4.8 | AI46: 0.5 | AJ46: 1.5 | AK46: 3 | AL46: 0.8 | AM46: 1.5 | AN46: 3 | AO46: Low-HighB | AP46: 2 | AQ46: SOT-23|3 | AR46: 9 mm2: 2.37 x 2.92 (SOT-23|3) | AS46: 6000 | AT46: 750 | AU46: -40 to 85 | AV46: $0.194 | 1ku
A47: DRV5032FBLPG | B47: DS | C47: Low power (5 Hz, <1µA), low voltage (up to 5.5V) switch | D47: Omnipolar switch | E47: N | F47: =(1.62+1.42)/2-1.03 -> 0.49 | G47: 0.115 | H47: NA | I47: NA | J47: NA | K47: NA | L47: 1.65 | M47: 5.5 | N47: 1 | O47: 1 | AC47: 0 | AE47: =VSUPPLY-AC47 -> 3.3 | AF47: 1.5 | AG47: 3 | AH47: 4.8 | AI47: 0.5 | AJ47: 1.5 | AK47: 3 | AL47: 0.8 | AM47: 1.5 | AN47: 3 | AO47: Low-HighB | AP47: 1 | AQ47: TO-92|3 | AR47: 8 mm2: 1.52 x 4 (TO-92|3) | AS47: 6000 | AT47: 750 | AU47: -40 to 85 | AV47: $0.194 | 1ku
A48: DRV5032FCDBZ | B48: DS | C48: Low power (5 Hz, <1µA), low voltage (up to 5.5V) switch | D48: Omnipolar switch | E48: N | F48: NA | G48: NA | H48: NA | I48: NA | J48: =1.12-0.65 -> 0.47 | K48: 0.08 | L48: 1.65 | M48: 5.5 | N48: 1 | O48: 1 | AC48: 0 | AE48: 3.3 | AF48: 1.5 | AG48: 3 | AH48: 4.8 | AI48: 0.5 | AJ48: 1.5 | AK48: 3 | AL48: 0.8 | AM48: 1.5 | AN48: 3 | AO48: Low-HighB | AP48: 2 | AQ48: SOT-23|3 | AR48: 10 mm2: 2.37 x 2.92 (SOT-23|3) | AS48: 6000 | AT48: 750 | AU48: -40 to 85 | AV48: $0.194 | 1ku
A49: DRV5032FCLPG | B49: DS | C49: Low power (5 Hz, <1µA), low voltage (up to 5.5V) switch | D49: Omnipolar switch | E49: N | F49: =(1.62+1.42)/2-1.03 -> 0.49 | G49: 0.115 | H49: NA | I49: NA | J49: NA | K49: NA | L49: 1.65 | M49: 5.5 | N49: 1 | O49: 1 | AC49: 0 | AE49: =VSUPPLY-AC49 -> 3.3 | AF49: 1.5 | AG49: 3 | AH49: 4.8 | AI49: 0.5 | AJ49: 1.5 | AK49: 3 | AL49: 0.8 | AM49: 1.5 | AN49: 3 | AO49: Low-HighB | AP49: 1 | AQ49: TO-92|3 | AR49: 9 mm2: 1.52 x 4 (TO-92|3) | AS49: 6000 | AT49: 750 | AU49: -40 to 85 | AV49: $0.194 | 1ku
A50: DRV5032FDDMR | B50: DS | C50: Low power (5 Hz, <1µA), low voltage (up to 5.5V) switch | D50: Unipolar switch | E50: N | L50: 1.65 | M50: 5.5 | N50: 1 | O50: 1 | AC50: 0 | AE50: 3.3 | AF50: -4.8 | AG50: -3 | AH50: -1.5 | AI50: -3 | AJ50: -1.5 | AK50: -0.5 | AL50: 0.8 | AM50: 1.5 | AN50: 3 | AO50: Low North, High North | AP50: 2 | AQ50: X2SON|4 | AR50: 2 mm2: 1.1 x 1.4 (X2SON|4) | AS50: 6000 | AT50: 750 | AU50: -40 to 85 | AV50: $0.194 | 1ku
A51: DRV5032FDLPG | B51: DS | C51: Low power (5 Hz, <1µA), low voltage (up to 5.5V) switch | D51: Unipolar switch | E51: N | F51: =(1.62+1.42)/2-1.03 -> 0.49 | G51: 0.115 | H51: NA | I51: NA | J51: NA | K51: NA | L51: 1.65 | M51: 5.5 | N51: 1 | O51: 1 | AC51: 0 | AE51: =VSUPPLY-AC51 -> 3.3 | AF51: -4.8 | AG51: -3 | AH51: -1.5 | AI51: -3 | AJ51: -1.5 | AK51: -0.5 | AL51: 0.8 | AM51: 1.5 | AN51: 3 | AO51: High North | AP51: 1 | AQ51: TO-92|3 | AR51: 6 mm2: 1.52 x 4 (TO-92|3) | AS51: 6000 | AT51: 750 | AU51: -40 to 85 | AV51: $0.194 | 1ku
A52: DRV5032AJDBZ | B52: DS | C52: Low power (5 Hz, <1µA), low voltage (up to 5.5V) switch | D52: Omnipolar switch | E52: N | F52: NA | G52: NA | H52: NA | I52: NA | J52: =1.12-0.65 -> 0.47 | K52: 0.08 | L52: 1.65 | M52: 5.5 | N52: 1 | O52: 1 | AC52: 0 | AE52: 3.3 | AF52: 4 | AG52: 7 | AH52: 9.5 | AI52: 3 | AJ52: 5.6 | AK52: 7.5 | AL52: 0.5 | AM52: 1.4 | AN52: 3 | AO52: Low-HighB | AP52: 2 | AQ52: SOT-23|3 | AR52: 7 mm2: 2.37 x 2.92 (SOT-23|3) | AS52: 6000 | AT52: 750 | AU52: -40 to 85 | AV52: $0.194 | 1ku
A53: DRV5032AJDMR | B53: DS | C53: Low power (5 Hz, <1µA), low voltage (up to 5.5V) switch | D53: Omnipolar switch | E53: N | L53: 1.65 | M53: 5.5 | N53: 1 | O53: 1 | AC53: 0 | AE53: =VSUPPLY-AC53 -> 3.3 | AF53: 4 | AG53: 7 | AH53: 9.5 | AI53: 3 | AJ53: 5.6 | AK53: 7.5 | AL53: 0.5 | AM53: 1.4 | AN53: 3 | AO53: Low-HighB | AP53: 2 | AQ53: X2SON|4 | AR53: 2 mm2: 1.1 x 1.4 (X2SON|4) | AS53: 6000 | AT53: 750 | AU53: -40 to 85 | AV53: $0.194 | 1ku
A54: DRV5032AJLPG | B54: DS | C54: Low power (5 Hz, <1µA), low voltage (up to 5.5V) switch | D54: Omnipolar switch | E54: N | F54: =(1.62+1.42)/2-1.03 -> 0.49 | G54: 0.115 | H54: NA | I54: NA | J54: NA | K54: NA | L54: 1.65 | M54: 5.5 | N54: 1 | O54: 1 | AC54: 0 | AE54: =VSUPPLY-AC54 -> 3.3 | AF54: 4 | AG54: 7 | AH54: 9.5 | AI54: 3 | AJ54: 5.6 | AK54: 7.5 | AL54: 0.5 | AM54: 1.4 | AN54: 3 | AO54: Low-HighB | AP54: 1 | AQ54: TO-92|3 | AR54: 6 mm2: 1.52 x 4 (TO-92|3) | AS54: 6000 | AT54: 750 | AU54: -40 to 85 | AV54: $0.194 | 1ku
A55: DRV5032ZEDBZ | B55: DS | C55: Low power (5 Hz, <1µA), low voltage (up to 5.5V) switch | D55: Omnipolar switch | E55: N | F55: NA | G55: NA | H55: NA | I55: NA | J55: =1.12-0.65 -> 0.47 | K55: 0.08 | L55: 1.65 | M55: 5.5 | N55: 1 | O55: 1 | AC55: 0 | AE55: 3.3 | AF55: 33 | AG55: 47 | AH55: 63 | AI55: 30 | AJ55: 43 | AK55: 58 | AL55: 1.2 | AM55: 4 | AN55: 8.5 | AO55: Low-HighB | AP55: 2 | AQ55: SOT-23|3 | AR55: 10 mm2: 2.37 x 2.92 (SOT-23|3) | AS55: 6000 | AT55: 750 | AU55: -40 to 85 | AV55: $0.194 | 1ku
A56: DRV5032ZELPG | B56: DS | C56: Low power (5 Hz, <1µA), low voltage (up to 5.5V) switch | D56: Omnipolar switch | E56: N | F56: =(1.62+1.42)/2-1.03 -> 0.49 | G56: 0.115 | H56: NA | I56: NA | J56: NA | K56: NA | L56: 1.65 | M56: 5.5 | N56: 1 | O56: 1 | AC56: 0 | AE56: =VSUPPLY-AC56 -> 3.3 | AF56: 33 | AG56: 47 | AH56: 63 | AI56: 30 | AJ56: 43 | AK56: 58 | AL56: 1.2 | AM56: 4 | AN56: 8.5 | AO56: Low-HighB | AP56: 1 | AQ56: TO-92|3 | AR56: 9 mm2: 1.52 x 4 (TO-92|3) | AS56: 6000 | AT56: 750 | AU56: -40 to 85 | AV56: $0.194 | 1ku
A57: DRV5023FAQDBZ | B57: DS | C57: High voltage (up to 38V), high bandwidth (up to 30 kHz) unipolar switch | D57: Unipolar switch | E57: Y | F57: NA | G57: NA | H57: NA | I57: NA | J57: =1.12-0.7 -> 0.42 | K57: 0.05 | L57: 2.5 | M57: 38 | N57: 1 | O57: 1 | Q57: 2.7 | R57: 3.5 | AC57: 0 | AE57: 3.3 | AF57: 1.8 | AG57: 3.5 | AH57: 6.8 | AI57: 0.5 | AJ57: 2 | AK57: 4.2 | AM57: 1.5 | AO57: High North | AP57: 2 | AQ57: SOT-23|3 | AR57: 7 mm2: 2.37 x 2.92 (SOT-23|3) | AS57: 2500 | AT57: 500 | AU57: -40 to 125 | AV57: $0.250 | 1ku
A58: DRV5023AJQDBZ | B58: DS | C58: High voltage (up to 38V), high bandwidth (up to 30 kHz) unipolar switch | D58: Unipolar switch | E58: Y | F58: NA | G58: NA | H58: NA | I58: NA | J58: =1.12-0.7 -> 0.42 | K58: 0.05 | L58: 2.5 | M58: 38 | N58: 1 | O58: 1 | Q58: 2.7 | R58: 3.5 | AC58: 0 | AE58: 3.3 | AF58: 3 | AG58: 6.9 | AH58: 12 | AI58: 1 | AJ58: 3.2 | AK58: 5 | AM58: 3.7 | AO58: High North | AP58: 2 | AQ58: SOT-23|3 | AR58: 7 mm2: 2.37 x 2.92 (SOT-23|3) | AS58: 2500 | AT58: 500 | AU58: -40 to 125 | AV58: $0.250 | 1ku
A59: DRV5023AJQLPG | B59: DS | C59: High voltage (up to 38V), high bandwidth (up to 30 kHz) unipolar switch | D59: Unipolar switch | E59: Y | F59: =(1.62+1.42)/2-0.987 -> 0.533 | G59: 0.05 | H59: NA | I59: NA | J59: NA | K59: NA | L59: 2.5 | M59: 38 | N59: 1 | O59: 1 | Q59: 2.7 | R59: 3.5 | AC59: 0 | AE59: =VSUPPLY-AC59 -> 3.3 | AF59: 3 | AG59: 6.9 | AH59: 12 | AI59: 1 | AJ59: 3.2 | AK59: 5 | AM59: 3.7 | AO59: High North | AP59: 1 | AQ59: TO-92|3 | AR59: 6 mm2: 1.52 x 4 (TO-92|3) | AS59: 2500 | AT59: 500 | AU59: -40 to 125 | AV59: $0.250 | 1ku
A60: DRV5023BIQDBZ | B60: DS | C60: High voltage (up to 38V), high bandwidth (up to 30 kHz) unipolar switch | D60: Unipolar switch | E60: Y | F60: NA | G60: NA | H60: NA | I60: NA | J60: =1.12-0.7 -> 0.42 | K60: 0.05 | L60: 2.5 | M60: 38 | N60: 1 | O60: 1 | Q60: 2.7 | R60: 3.5 | AC60: 0 | AE60: 3.3 | AF60: 6 | AG60: 14.5 | AH60: 24 | AI60: 3 | AJ60: 6 | AK60: 9 | AM60: 8.5 | AO60: High North | AP60: 2 | AQ60: SOT-23|3 | AR60: 7 mm2: 2.37 x 2.92 (SOT-23|3) | AS60: 2500 | AT60: 500 | AU60: -40 to 125 | AV60: $0.250 | 1ku
A61: DRV5023BIQLPG | B61: DS | C61: High voltage (up to 38V), high bandwidth (up to 30 kHz) unipolar switch | D61: Unipolar switch | E61: Y | F61: =(1.62+1.42)/2-0.987 -> 0.533 | G61: 0.05 | H61: NA | I61: NA | J61: NA | K61: NA | L61: 2.5 | M61: 38 | N61: 1 | O61: 1 | Q61: 2.7 | R61: 3.5 | AC61: 0 | AE61: 3.3 | AF61: 6 | AG61: 14.5 | AH61: 24 | AI61: 3 | AJ61: 6 | AK61: 9 | AM61: 8.5 | AO61: High North | AP61: 1 | AQ61: TO-92|3 | AR61: 6 mm2: 1.52 x 4 (TO-92|3) | AS61: 2500 | AT61: 500 | AU61: -40 to 125 | AV61: $0.250 | 1ku
A62: DRV5033FAQDBZ | B62: DS | C62: High voltage (up to 38V), high bandwidth (up to 30 kHz) omnipolar switch | D62: Omnipolar switch | E62: Y | F62: NA | G62: NA | H62: NA | I62: NA | J62: =1.12-0.7 -> 0.42 | K62: 0.05 | L62: 2.5 | M62: 38 | N62: 1 | O62: 1 | Q62: 2.7 | R62: 3.6 | AC62: 0 | AE62: 3.3 | AF62: 1.8 | AG62: 3.5 | AH62: 6.8 | AI62: 0.5 | AJ62: 2 | AK62: 4.2 | AM62: 1.5 | AO62: Low-HighB | AP62: 2 | AQ62: SOT-23|3 | AR62: 7 mm2: 2.37 x 2.92 (SOT-23|3) | AS62: 2500 | AT62: 500 | AU62: -40 to 125 | AV62: $0.250 | 1ku
A63: DRV5033AJQDBZ | B63: DS | C63: High voltage (up to 38V), high bandwidth (up to 30 kHz) omnipolar switch | D63: Omnipolar switch | E63: Y | F63: NA | G63: NA | H63: NA | I63: NA | J63: =1.12-0.7 -> 0.42 | K63: 0.05 | L63: 2.5 | M63: 38 | N63: 1 | O63: 1 | Q63: 2.7 | R63: 3.6 | AC63: 0 | AE63: 3.3 | AF63: 3 | AG63: 6.9 | AH63: 12 | AI63: 1 | AJ63: 3.5 | AK63: 5 | AM63: 3.4 | AO63: Low-HighB | AP63: 2 | AQ63: SOT-23|3 | AR63: 7 mm2: 2.37 x 2.92 (SOT-23|3) | AS63: 2500 | AT63: 500 | AU63: -40 to 125 | AV63: $0.250 | 1ku
A64: DRV5033AJQLPG | B64: DS | C64: High voltage (up to 38V), high bandwidth (up to 30 kHz) omnipolar switch | D64: Omnipolar switch | E64: Y | F64: =(1.62+1.42)/2-0.987 -> 0.533 | G64: 0.05 | H64: NA | I64: NA | J64: NA | K64: NA | L64: 2.5 | M64: 38 | N64: 1 | O64: 1 | Q64: 2.7 | R64: 3.6 | AC64: 0 | AE64: 3.3 | AF64: 3 | AG64: 6.9 | AH64: 12 | AI64: 1 | AJ64: 3.5 | AK64: 5 | AM64: 3.4 | AO64: Low-HighB | AP64: 1 | AQ64: TO-92|3 | AR64: 6 mm2: 1.52 x 4 (TO-92|3) | AS64: 2500 | AT64: 500 | AU64: -40 to 125 | AV64: $0.250 | 1ku
A65: DRV5013ADQDBZ | B65: DS | C65: High voltage (up to 38-V), high bandwidth (30-kHz) Hall effect latch | D65: Latch | E65: Y | F65: NA | G65: NA | H65: NA | I65: NA | J65: =1.12-0.7 -> 0.42 | K65: 0.05 | L65: 2.5 | M65: 38 | N65: 1 | O65: 1 | Q65: 2.7 | R65: 3.5 | AM65: 5.4 | AO65: High North | AP65: 2 | AQ65: SOT-23|3 | AR65: 7 mm2: 2.37 x 2.92 (SOT-23|3) | AS65: 2500 | AT65: 500 | AU65: -40 to 125 | AV65: $0.100 | 1ku
A66: DRV5013ADQLPG | B66: DS | C66: High voltage (up to 38-V), high bandwidth (30-kHz) Hall effect latch | D66: Latch | E66: Y | F66: =(1.62+1.42)/2-0.987 -> 0.533 | G66: 0.05 | H66: NA | I66: NA | J66: NA | K66: NA | L66: 2.5 | M66: 38 | N66: 1 | O66: 1 | Q66: 2.7 | R66: 3.5 | AM66: 5.4 | AO66: High North | AP66: 1 | AQ66: TO-92|3 | AR66: 6 mm2: 1.52 x 4 (TO-92|3) | AS66: 2500 | AT66: 500 | AU66: -40 to 125 | AV66: $0.100 | 1ku
A67: DRV5013AGQDBZ | B67: DS | C67: High voltage (up to 38-V), high bandwidth (30-kHz) Hall effect latch | D67: Latch | E67: Y | F67: NA | G67: NA | H67: NA | I67: NA | J67: =1.12-0.7 -> 0.42 | K67: 0.05 | L67: 2.5 | M67: 38 | N67: =LEN(M67)-LEN(SUBSTITUTE(M67,";",""))+1 -> 1 | O67: 1 | Q67: 2.7 | R67: 3.5 | AM67: 12 | AO67: High North | AP67: 2 | AQ67: SOT-23|3 | AR67: 7 mm2: 2.37 x 2.92 (SOT-23|3) | AS67: 2500 | AT67: 500 | AU67: -40 to 125 | AV67: $0.100 | 1ku
A68: DRV5013AGQLPG | B68: DS | C68: High voltage (up to 38-V), high bandwidth (30-kHz) Hall effect latch | D68: Latch | E68: Y | F68: =(1.62+1.42)/2-0.987 -> 0.533 | G68: 0.05 | H68: NA | I68: NA | J68: NA | K68: NA | L68: 2.5 | M68: 38 | N68: 1 | O68: 1 | Q68: 2.7 | R68: 3.5 | AM68: 12 | AO68: High North | AP68: 1 | AQ68: TO-92|3 | AR68: 6 mm2: 1.52 x 4 (TO-92|3) | AS68: 2500 | AT68: 500 | AU68: -40 to 125 | AV68: $0.100 | 1ku
A69: DRV5013BCELPE | B69: DS | C69: High voltage (up to 38-V), high bandwidth (30-kHz) Hall effect latch | D69: Latch | E69: Y | F69: =(1.62+1.42)/2-0.987 -> 0.533 | G69: 0.05 | H69: NA | I69: NA | J69: NA | K69: NA | L69: 2.5 | M69: 38 | N69: 1 | O69: 1 | Q69: 2.7 | R69: 3.5 | AM69: 24 | AO69: High North | AP69: 1 | AQ69: TO-92|3 | AR69: 6 mm2: 1.52 x 4 (TO-92|3) | AS69: 2500 | AT69: 500 | AU69: -40 to 125 | AV69: $0.100 | 1ku
A70: DRV5013BCQDBZ | B70: DS | C70: High voltage (up to 38-V), high bandwidth (30-kHz) Hall effect latch | D70: Latch | E70: Y | F70: NA | G70: NA | H70: NA | I70: NA | J70: =1.12-0.7 -> 0.42 | K70: 0.05 | L70: 2.5 | M70: 38 | N70: 1 | O70: 1 | Q70: 2.7 | R70: 3.5 | AM70: 24 | AO70: High North | AP70: 2 | AQ70: SOT-23|3 | AR70: 7 mm2: 2.37 x 2.92 (SOT-23|3) | AS70: 2500 | AT70: 500 | AU70: -40 to 125 | AV70: $0.100 | 1ku
A71: DRV5013BCQLPG | B71: DS | C71: High voltage (up to 38-V), high bandwidth (30-kHz) Hall effect latch | D71: Latch | E71: Y | F71: =(1.62+1.42)/2-0.987 -> 0.533 | G71: 0.05 | H71: NA | I71: NA | J71: NA | K71: NA | L71: 2.5 | M71: 38 | N71: 1 | O71: 1 | Q71: 2.7 | R71: 3.5 | AM71: 24 | AO71: High North | AP71: 1 | AQ71: TO-92|3 | AR71: 6 mm2: 1.52 x 4 (TO-92|3) | AS71: 2500 | AT71: 500 | AU71: -40 to 125 | AV71: $0.100 | 1ku
A72: DRV5013FAQDBZ | B72: DS | C72: High voltage (up to 38-V), high bandwidth (30-kHz) Hall effect latch | D72: Latch | E72: Y | F72: NA | G72: NA | H72: NA | I72: NA | J72: =1.12-0.7 -> 0.42 | K72: 0.05 | L72: 2.5 | M72: 38 | N72: 1 | O72: 1 | Q72: 2.7 | R72: 3.5 | AL72: 1.2 | AM72: 2.6 | AO72: High North | AP72: 2 | AQ72: SOT-23|3 | AR72: 7 mm2: 2.37 x 2.92 (SOT-23|3) | AS72: 2500 | AT72: 500 | AU72: -40 to 125 | AV72: $0.100 | 1ku
A73: DRV5057A1QDBZ | B73: DS | C73: Linear hall effect sensor with digital PWM output | D73: Ratiometric PWM output | E73: Y | F73: NA | G73: NA | H73: NA | I73: NA | J73: =1.12-0.65 -> 0.47 | K73: 0.08 | L73: 4.5; 3 | M73: 5.5; 3.63 | N73: 2 | O73: 2 | Q73: 6 | R73: 10 | V73: 2, 1.2 | AP73: 2 | AQ73: SOT-23|3 | AR73: 7 mm2: 2.37 x 2.92 (SOT-23|3) | AS73: 3000 | AT73: 750 | AU73: -40 to 125 | AV73: $0.650 | 1ku
A74: DRV5057A1QLPG | B74: DS | C74: Linear hall effect sensor with digital PWM output | D74: Ratiometric PWM output | E74: Y | F74: =(1.62+1.42)/2-1.03 -> 0.49 | G74: 0.115 | H74: NA | I74: NA | J74: NA | K74: NA | L74: 4.5; 3 | M74: 5.5; 3.63 | N74: 2 | O74: 2 | Q74: 6 | R74: 10 | V74: 2, 1.2 | AP74: 1 | AQ74: TO-92|3 | AR74: 6 mm2: 1.52 x 4 (TO-92|3) | AS74: 3000 | AT74: 750 | AU74: -40 to 125 | AV74: $0.650 | 1ku
A75: DRV5057A2QDBZ | B75: DS | C75: Linear hall effect sensor with digital PWM output | D75: Ratiometric PWM output | E75: Y | F75: NA | G75: NA | H75: NA | I75: NA | J75: =1.12-0.65 -> 0.47 | K75: 0.08 | L75: 4.5; 3 | M75: 5.5; 3.63 | N75: 2 | O75: 2 | Q75: 6 | R75: 10 | V75: 1, 0.6 | AP75: 2 | AQ75: SOT-23|3 | AR75: 7 mm2: 2.37 x 2.92 (SOT-23|3) | AS75: 3000 | AT75: 750 | AU75: -40 to 125 | AV75: $0.650 | 1ku
A76: DRV5057A2QLPG | B76: DS | C76: Linear hall effect sensor with digital PWM output | D76: Ratiometric PWM output | E76: Y | F76: =(1.62+1.42)/2-1.03 -> 0.49 | G76: 0.115 | H76: NA | I76: NA | J76: NA | K76: NA | L76: 4.5; 3 | M76: 5.5; 3.63 | N76: 2 | O76: 2 | Q76: 6 | R76: 10 | V76: 1, 0.6 | AP76: 1 | AQ76: TO-92|3 | AR76: 6 mm2: 1.52 x 4 (TO-92|3) | AS76: 3000 | AT76: 750 | AU76: -40 to 125 | AV76: $0.650 | 1ku
A77: DRV5057A3QDBZ | B77: DS | C77: Linear hall effect sensor with digital PWM output | D77: Ratiometric PWM output | E77: Y | F77: NA | G77: NA | H77: NA | I77: NA | J77: =1.12-0.65 -> 0.47 | K77: 0.08 | L77: 4.5; 3 | M77: 5.5; 3.63 | N77: 2 | O77: 2 | Q77: 6 | R77: 10 | V77: 0.5, 0.3 | AP77: 2 | AQ77: SOT-23|3 | AR77: 7 mm2: 2.37 x 2.92 (SOT-23|3) | AS77: 3000 | AT77: 750 | AU77: -40 to 125 | AV77: $0.650 | 1ku
A78: DRV5057A3QLPG | B78: DS | C78: Linear hall effect sensor with digital PWM output | D78: Ratiometric PWM output | E78: Y | F78: =(1.62+1.42)/2-1.03 -> 0.49 | G78: 0.115 | H78: NA | I78: NA | J78: NA | K78: NA | L78: 4.5; 3 | M78: 5.5; 3.63 | N78: 2 | O78: 2 | Q78: 6 | R78: 10 | V78: 0.5, 0.3 | AP78: 1 | AQ78: TO-92|3 | AR78: 6 mm2: 1.52 x 4 (TO-92|3) | AS78: 3000 | AT78: 750 | AU78: -40 to 125 | AV78: $0.650 | 1ku
A79: DRV5057A4QDBZ | B79: DS | C79: Linear hall effect sensor with digital PWM output | D79: Ratiometric PWM output | E79: Y | F79: NA | G79: NA | H79: NA | I79: NA | J79: =1.12-0.65 -> 0.47 | K79: 0.08 | L79: 4.5; 3 | M79: 5.5; 3.63 | N79: 2 | O79: 2 | Q79: 6 | R79: 10 | V79: 0.25, 0.15 | AP79: 2 | AQ79: SOT-23|3 | AR79: 7 mm2: 2.37 x 2.92 (SOT-23|3) | AS79: 3000 | AT79: 750 | AU79: -40 to 125 | AV79: $0.650 | 1ku
A80: DRV5057A4QLPG | B80: DS | C80: Linear hall effect sensor with digital PWM output | D80: Ratiometric PWM output | E80: Y | F80: =(1.62+1.42)/2-1.03 -> 0.49 | G80: 0.115 | H80: NA | I80: NA | J80: NA | K80: NA | L80: 4.5; 3 | M80: 5.5; 3.63 | N80: 2 | O80: 2 | Q80: 6 | R80: 10 | V80: 0.25, 0.15 | AP80: 1 | AQ80: TO-92|3 | AR80: 6 mm2: 1.52 x 4 (TO-92|3) | AS80: 3000 | AT80: 750 | AU80: -40 to 125 | AV80: $0.650 | 1ku
A81: DRV5056A1QDBZ | B81: DS | C81: Ratiometric unipolar linear hall effect sensor with analog output | D81: Ratiometric unipolar | E81: Y | F81: NA | G81: NA | H81: NA | I81: NA | J81: =1.12-0.65 -> 0.47 | K81: 0.08 | L81: 4.5; 3 | M81: 5.5; 3.6 | N81: 2 | O81: 2 | Q81: 6 | R81: 10 | S81: 190, 114 | T81: 200, 120 | U81: 210, 126 | X81: 0.12, 0.2, z | Y81: 0.06, 0.1 | Z81: 20, 19 | AA81: 0.6 | AB81: =AA81 -> 0.6 | AC81: =0.2 -> 0.2 | AD81: =AB81 -> 0.6 | AE81: =VSUPPLY-AC81 -> 3.1 | AP81: 2 | AQ81: SOT-23|3 | AR81: 7 mm2: 2.37 x 2.92 (SOT-23|3) | AS81: 2500 | AT81: 750 | AU81: -40 to 125 | AV81: $0.540 | 1ku
A82: DRV5056A1QLPG | B82: DS | C82: Ratiometric unipolar linear hall effect sensor with analog output | D82: Ratiometric unipolar | E82: Y | F82: =(1.62+1.42)/2-1.03 -> 0.49 | G82: 0.115 | H82: NA | I82: NA | J82: NA | K82: NA | L82: 4.5; 3 | M82: 5.5; 3.6 | N82: 2 | O82: 2 | Q82: 6 | R82: 10 | S82: 190, 114 | T82: 200, 120 | U82: 210, 126 | X82: 0.12, 0.2, z | Y82: 0.06, 0.2 | Z82: 20, 19 | AA82: 0.6 | AB82: 0.6 | AC82: 0.2 | AD82: =AB82 -> 0.6 | AE82: =VSUPPLY-AC82 -> 3.1 | AP82: 1 | AQ82: TO-92|3 | AR82: 6 mm2: 1.52 x 4 (TO-92|3) | AS82: 2500 | AT82: 750 | AU82: -40 to 125 | AV82: $0.540 | 1ku
A83: DRV5056A2QDBZ | B83: DS | C83: Ratiometric unipolar linear hall effect sensor with analog output | D83: Ratiometric unipolar | E83: Y | F83: NA | G83: NA | H83: NA | I83: NA | J83: =1.12-0.65 -> 0.47 | K83: 0.08 | L83: 4.5; 3 | M83: 5.5; 3.6 | N83: 2 | O83: 2 | Q83: 6 | R83: 10 | S83: 95, 57 | T83: 100, 60 | U83: 105, 63 | X83: 0.12, 0.2 | Y83: 0.06, 0.1 | Z83: 39, 39 | AA83: 0.6 | AB83: 0.6 | AC83: 0.2 | AD83: 0.6 | AE83: 3.1 | AP83: 2 | AQ83: SOT-23|3 | AR83: 7 mm2: 2.37 x 2.92 (SOT-23|3) | AS83: 2500 | AT83: 750 | AU83: -40 to 125 | AV83: $0.540 | 1ku
A84: DRV5056A2QLPG | B84: DS | C84: Ratiometric unipolar linear hall effect sensor with analog output | D84: Ratiometric unipolar | E84: Y | F84: =(1.62+1.42)/2-1.03 -> 0.49 | G84: 0.115 | H84: NA | I84: NA | J84: NA | K84: NA | L84: 4.5; 3 | M84: 5.5; 3.6 | N84: 2 | O84: 2 | Q84: 6 | R84: 10 | S84: 95, 57 | T84: 100, 60 | U84: 105, 63 | X84: 0.12, 0.2 | Y84: 0.06, 0.1 | Z84: 39, 39 | AA84: 0.6 | AB84: 0.6 | AC84: 0.2 | AD84: =AB84 -> 0.6 | AE84: =VSUPPLY-AC84 -> 3.1 | AP84: 1 | AQ84: TO-92|3 | AR84: 6 mm2: 1.52 x 4 (TO-92|3) | AS84: 2500 | AT84: 750 | AU84: -40 to 125 | AV84: $0.540 | 1ku
A85: DRV5056A3QDBZ | B85: DS | C85: Ratiometric unipolar linear hall effect sensor with analog output | D85: Ratiometric unipolar | E85: Y | F85: NA | G85: NA | H85: NA | I85: NA | J85: =1.12-0.65 -> 0.47 | K85: 0.08 | L85: 4.5; 3 | M85: 5.5; 3.6 | N85: 2 | O85: 2 | Q85: 6 | R85: 10 | S85: 47.5, 28.5 | T85: 50, 30 | U85: 52.5, 31.5 | X85: 0.12, 0.2 | Y85: 0.06, 0.1 | Z85: 79, 78 | AA85: 0.6 | AB85: 0.6 | AC85: 0.2 | AD85: 0.6 | AE85: 3.1 | AP85: 2 | AQ85: SOT-23|3 | AR85: 7 mm2: 2.37 x 2.92 (SOT-23|3) | AS85: 2500 | AT85: 750 | AU85: -40 to 125 | AV85: $0.540 | 1ku
A86: DRV5056A3QLPG | B86: DS | C86: Ratiometric unipolar linear hall effect sensor with analog output | D86: Ratiometric unipolar | E86: Y | F86: =(1.62+1.42)/2-1.03 -> 0.49 | G86: 0.115 | H86: NA | I86: NA | J86: NA | K86: NA | L86: 4.5; 3 | M86: 5.5; 3.6 | N86: 2 | O86: 2 | Q86: 6 | R86: 10 | S86: 47.5, 28.5 | T86: 50, 30 | U86: 52.5, 31.5 | X86: 0.12, 0.2 | Y86: 0.06, 0.1 | Z86: 79, 78 | AA86: 0.6 | AB86: 0.6 | AC86: 0.2 | AD86: =AB86 -> 0.6 | AE86: =VSUPPLY-AC86 -> 3.1 | AP86: 1 | AQ86: TO-92|3 | AR86: 6 mm2: 1.52 x 4 (TO-92|3) | AS86: 2500 | AT86: 750 | AU86: -40 to 125 | AV86: $0.540 | 1ku
A87: DRV5056A4QDBZ | B87: DS | C87: Ratiometric unipolar linear hall effect sensor with analog output | D87: Ratiometric unipolar | E87: Y | F87: NA | G87: NA | H87: NA | I87: NA | J87: =1.12-0.65 -> 0.47 | K87: 0.08 | L87: 4.5; 3 | M87: 5.5; 3.6 | N87: 2 | O87: 2 | Q87: 6 | R87: 10 | S87: 23.8, 14.3 | T87: 25, 15 | U87: 26.2, 15.8 | X87: 0.12, 0.2 | Y87: 0.06, 0.1 | Z87: 158, 155 | AA87: 0.6 | AB87: 0.6 | AC87: 0.2 | AD87: 0.6 | AE87: 3.1 | AP87: 2 | AQ87: SOT-23|3 | AR87: 7 mm2: 2.37 x 2.92 (SOT-23|3) | AS87: 2500 | AT87: 750 | AU87: -40 to 125 | AV87: $0.540 | 1ku
A88: DRV5056A4QLPG | B88: DS | C88: Ratiometric unipolar linear hall effect sensor with analog output | D88: Ratiometric unipolar | E88: Y | F88: =(1.62+1.42)/2-1.03 -> 0.49 | G88: 0.115 | H88: NA | I88: NA | J88: NA | K88: NA | L88: 4.5; 3 | M88: 5.5; 3.6 | N88: 2 | O88: 2 | Q88: 6 | R88: 10 | S88: 23.8, 14.3 | T88: 25, 15 | U88: 26.2, 15.8 | X88: 0.12, 0.2 | Y88: 0.06, 0.1 | Z88: 158, 155 | AA88: 0.6 | AB88: 0.6 | AC88: 0.2 | AD88: =AB88 -> 0.6 | AE88: =VSUPPLY-AC88 -> 3.1 | AP88: 1 | AQ88: TO-92|3 | AR88: 6 mm2: 1.52 x 4 (TO-92|3) | AS88: 2500 | AT88: 750 | AU88: -40 to 125 | AV88: $0.540 | 1ku
A89: DRV5055A1QDBZ | B89: DS | C89: Ratiometric linear hall effect sensor with analog output | D89: Ratiometric bipolar | E89: Y | F89: NA | G89: NA | H89: NA | I89: NA | J89: =1.12-0.65 -> 0.47 | K89: 0.08 | L89: 4.5; 3 | M89: 5.5; 3.63 | N89: 2 | O89: 2 | Q89: 6 | R89: 10 | S89: 95, 57 | T89: 100, 60 | U89: 105, 63 | X89: 0.12, 0.2 | Y89: 0.06, 0.1 | Z89: 21, 22 | AA89: 2.5 | AB89: 0.2 | AC89: 0.2 | AD89: 0.2 | AE89: 3.1 | AP89: 2 | AQ89: SOT-23|3 | AR89: 7 mm2: 2.37 x 2.92 (SOT-23|3) | AS89: 2500 | AT89: 750 | AU89: -40 to 125 | AV89: $0.500 | 1ku
A90: DRV5055A1QLPG | B90: DS | C90: Ratiometric linear hall effect sensor with analog output | D90: Ratiometric bipolar | E90: Y | F90: =(1.62+1.42)/2-1.03 -> 0.49 | G90: 0.115 | H90: NA | I90: NA | J90: NA | K90: NA | L90: 4.5; 3 | M90: 5.5; 3.63 | N90: 2 | O90: 2 | Q90: 6 | R90: 10 | S90: 95, 57 | T90: 100, 60 | U90: 105, 63 | X90: 0.12, 0.2 | Y90: 0.06, 0.1 | Z90: 21, 22 | AA90: 2.5 | AB90: 0.2 | AC90: 0.2 | AD90: =AB90 -> 0.2 | AE90: =VSUPPLY-AC90 -> 3.1 | AP90: 1 | AQ90: TO-92|3 | AR90: 6 mm2: 1.52 x 4 (TO-92|3) | AS90: 2500 | AT90: 750 | AU90: -40 to 125 | AV90: $0.500 | 1ku
A91: DRV5055A2QDBZ | B91: DS | C91: Ratiometric linear hall effect sensor with analog output | D91: Ratiometric bipolar | E91: Y | F91: NA | G91: NA | H91: NA | I91: NA | J91: =1.12-0.65 -> 0.47 | K91: 0.08 | L91: 4.5; 3 | M91: 5.5; 3.63 | N91: 2 | O91: 2 | Q91: 6 | R91: 10 | S91: 47.5, 28.5 | T91: 50, 30 | U91: 52.5, 31.5 | X91: 0.12, 0.2 | Y91: 0.06, 0.1 | Z91: 42, 44 | AA91: 2.5 | AB91: 0.2 | AC91: 0.2 | AD91: 0.2 | AE91: 3.1 | AP91: 2 | AQ91: SOT-23|3 | AR91: 7 mm2: 2.37 x 2.92 (SOT-23|3) | AS91: 2500 | AT91: 750 | AU91: -40 to 125 | AV91: $0.500 | 1ku
A92: DRV5055A2QLPG | B92: DS | C92: Ratiometric linear hall effect sensor with analog output | D92: Ratiometric bipolar | E92: Y | F92: =(1.62+1.42)/2-1.03 -> 0.49 | G92: 0.115 | H92: NA | I92: NA | J92: NA | K92: NA | L92: 4.5; 3 | M92: 5.5; 3.63 | N92: 2 | O92: 2 | Q92: 6 | R92: 10 | S92: 47.5, 28.5 | T92: 50, 30 | U92: 52.5, 31.5 | X92: 0.12, 0.2 | Y92: 0.06, 0.1 | Z92: 42, 44 | AA92: 2.5 | AB92: 0.2 | AC92: 0.2 | AD92: =AB92 -> 0.2 | AE92: =VSUPPLY-AC92 -> 3.1 | AP92: 1 | AQ92: TO-92|3 | AR92: 6 mm2: 1.52 x 4 (TO-92|3) | AS92: 2500 | AT92: 750 | AU92: -40 to 125 | AV92: $0.500 | 1ku
A93: DRV5055A3QDBZ | B93: DS | C93: Ratiometric linear hall effect sensor with analog output | D93: Ratiometric bipolar | E93: Y | F93: NA | G93: NA | H93: NA | I93: NA | J93: =1.12-0.65 -> 0.47 | K93: 0.08 | L93: 4.5; 3 | M93: 5.5; 3.63 | N93: 2 | O93: 2 | Q93: 6 | R93: 10 | S93: 23.8, 14.3 | T93: 25, 15 | U93: 26.2, 15.8 | X93: 0.12, 0.2 | Y93: 0.06, 0.1 | Z93: 85, 88 | AA93: 2.5 | AB93: 0.2 | AC93: 0.2 | AD93: 0.2 | AE93: 3.1 | AP93: 2 | AQ93: SOT-23|3 | AR93: 7 mm2: 2.37 x 2.92 (SOT-23|3) | AS93: 2500 | AT93: 750 | AU93: -40 to 125 | AV93: $0.500 | 1ku
A94: DRV5055A3QLPG | B94: DS | C94: Ratiometric linear hall effect sensor with analog output | D94: Ratiometric bipolar | E94: Y | F94: =(1.62+1.42)/2-1.03 -> 0.49 | G94: 0.115 | H94: NA | I94: NA | J94: NA | K94: NA | L94: 4.5; 3 | M94: 5.5; 3.63 | N94: 2 | O94: 2 | Q94: 6 | R94: 10 | S94: 23.8, 14.3 | T94: 25, 15 | U94: 26.2, 15.8 | X94: 0.12, 0.2 | Y94: 0.06, 0.1 | Z94: 85, 88 | AA94: 2.5 | AB94: 0.2 | AC94: 0.2 | AD94: =AB94 -> 0.2 | AE94: =VSUPPLY-AC94 -> 3.1 | AP94: 1 | AQ94: TO-92|3 | AR94: 6 mm2: 1.52 x 4 (TO-92|3) | AS94: 2500 | AT94: 750 | AU94: -40 to 125 | AV94: $0.500 | 1ku
A95: DRV5055A4QDBZ | B95: DS | C95: Ratiometric linear hall effect sensor with analog output | D95: Ratiometric bipolar | E95: Y | F95: NA | G95: NA | H95: NA | I95: NA | J95: =1.12-0.65 -> 0.47 | K95: 0.08 | L95: 4.5; 3 | M95: 5.5; 3.63 | N95: 2 | O95: 2 | Q95: 6 | R95: 10 | S95: 11.9, 7.1 | T95: 12.5, 7.5 | U95: 13.2, 7.9 | X95: 0.12, 0.2 | Y95: 0.06, 0.1 | Z95: 169, 176 | AA95: 2.5 | AB95: 0.2 | AC95: 0.2 | AD95: 0.2 | AE95: 3.1 | AP95: 2 | AQ95: SOT-23|3 | AR95: 7 mm2: 2.37 x 2.92 (SOT-23|3) | AS95: 2500 | AT95: 750 | AU95: -40 to 125 | AV95: $0.500 | 1ku
A96: DRV5055A4QLPG | B96: DS | C96: Ratiometric linear hall effect sensor with analog output | D96: Ratiometric bipolar | E96: Y | F96: =(1.62+1.42)/2-1.03 -> 0.49 | G96: 0.115 | H96: NA | I96: NA | J96: NA | K96: NA | L96: 4.5; 3 | M96: 5.5; 3.63 | N96: 2 | O96: 2 | Q96: 6 | R96: 10 | S96: 11.9, 7.1 | T96: 12.5, 7.5 | U96: 13.2, 7.9 | X96: 0.12, 0.2 | Y96: 0.06, 0.1 | Z96: 169, 176 | AA96: 2.5 | AB96: 0.2 | AC96: 0.2 | AD96: =AB96 -> 0.2 | AE96: =VSUPPLY-AC96 -> 3.1 | AP96: 1 | AQ96: TO-92|3 | AR96: 6 mm2: 1.52 x 4 (TO-92|3) | AS96: 2500 | AT96: 750 | AU96: -40 to 125 | AV96: $0.500 | 1ku
A97: DRV5053OAQDBZ | B97: DS | C97: Automotive, high voltage (up to 38V), linear hall effect sensor | D97: Bipolar | E97: Y | F97: NA | G97: NA | H97: NA | I97: NA | J97: =1.12-0.7 -> 0.42 | K97: 0.05 | L97: 2.5 | M97: 3.8 | N97: 1 | O97: 1 | Q97: 2.7 | R97: 3.6 | S97: -17.5 | T97: -11 | U97: -5 | X97: 0.49 | Y97: =X97/2 -> 0.245 | Z97: 73 | AA97: 1.02 | AB97: 0.2 | AD97: =AB97 -> 0.2 | AE97: 1.8 | AP97: 2 | AQ97: SOT-23|3 | AR97: 7 mm2: 2.37 x 2.92 (SOT-23|3) | AS97: 2500 | AT97: 500 | AU97: -40 to 125 | AV97: $0.366 | 1ku
A98: DRV5053OAQLPG | B98: DS | C98: Automotive, high voltage (up to 38V), linear hall effect sensor | D98: Bipolar | E98: Y | F98: =(1.62+1.42)/2-0.987 -> 0.533 | G98: 0.05 | H98: NA | I98: NA | J98: NA | K98: NA | L98: 2.5 | M98: 3.8 | N98: 1 | O98: 1 | Q98: 2.7 | R98: 3.6 | S98: -17.5 | T98: -11 | U98: -5 | X98: 0.49 | Y98: =X98/2 -> 0.245 | Z98: 73 | AA98: 1.02 | AB98: 0.2 | AD98: =AB98 -> 0.2 | AE98: 1.8 | AP98: 1 | AQ98: TO-92|3 | AR98: 6 mm2: 1.52 x 4 (TO-92|3) | AS98: 2500 | AT98: 500 | AU98: -40 to 125 | AV98: $0.366 | 1ku
A99: DRV5053PAQDBZ | B99: DS | C99: Automotive, high voltage (up to 38V), linear hall effect sensor | D99: Bipolar | E99: Y | F99: NA | G99: NA | H99: NA | I99: NA | J99: =1.12-0.7 -> 0.42 | K99: 0.05 | L99: 2.5 | M99: 3.8 | N99: 1 | O99: 1 | Q99: 2.7 | R99: 3.6 | S99: -35 | T99: -23 | U99: -10 | X99: 0.49 | Y99: 0.245 | Z99: 35 | AA99: 1.02 | AB99: 0.2 | AD99: 0.2 | AE99: 1.8 | AP99: 2 | AQ99: SOT-23|3 | AR99: 7 mm2: 2.37 x 2.92 (SOT-23|3) | AS99: 2500 | AT99: 500 | AU99: -40 to 125 | AV99: $0.366 | 1ku
A100: DRV5053PAQLPG | B100: DS | C100: Automotive, high voltage (up to 38V), linear hall effect sensor | D100: Bipolar | E100: Y | F100: =(1.62+1.42)/2-0.987 -> 0.533 | G100: 0.05 | H100: NA | I100: NA | J100: NA | K100: NA | L100: 2.5 | M100: 3.8 | N100: 1 | O100: 1 | Q100: 2.7 | R100: 3.6 | S100: -35 | T100: -23 | U100: -10 | X100: 0.49 | Y100: =X100/2 -> 0.245 | Z100: 35 | AA100: 1.02 | AB100: 0.2 | AD100: =AB100 -> 0.2 | AE100: 1.8 | AP100: 1 | AQ100: TO-92|3 | AR100: 6 mm2: 1.52 x 4 (TO-92|3) | AS100: 2500 | AT100: 500 | AU100: -40 to 125 | AV100: $0.366 | 1ku
A101: DRV5053RAQDBZ | B101: DS | C101: Automotive, high voltage (up to 38V), linear hall effect sensor | D101: Bipolar | E101: Y | F101: NA | G101: NA | H101: NA | I101: NA | J101: =1.12-0.7 -> 0.42 | K101: 0.05 | L101: 2.5 | M101: 3.8 | N101: 1 | O101: 1 | Q101: 2.7 | R101: 3.6 | S101: -70 | T101: -45 | U101: -20 | X101: 0.49 | Y101: 0.245 | Z101: 18 | AA101: 1.02 | AB101: 0.2 | AD101: 0.2 | AE101: 1.8 | AP101: 2 | AQ101: SOT-23|3 | AR101: 7 mm2: 2.37 x 2.92 (SOT-23|3) | AS101: 2500 | AT101: 500 | AU101: -40 to 125 | AV101: $0.366 | 1ku
A102: DRV5053RAQLPG | B102: DS | C102: Automotive, high voltage (up to 38V), linear hall effect sensor | D102: Bipolar | E102: Y | F102: =(1.62+1.42)/2-0.987 -> 0.533 | G102: 0.05 | H102: NA | I102: NA | J102: NA | K102: NA | L102: 2.5 | M102: 3.8 | N102: 1 | O102: 1 | Q102: 2.7 | R102: 3.6 | S102: -70 | T102: -45 | U102: -20 | X102: 0.49 | Y102: =X102/2 -> 0.245 | Z102: 18 | AA102: 1.02 | AB102: 0.2 | AD102: =AB102 -> 0.2 | AE102: 1.8 | AP102: 1 | AQ102: TO-92|3 | AR102: 6 mm2: 1.52 x 4 (TO-92|3) | AS102: 2500 | AT102: 500 | AU102: -40 to 125 | AV102: $0.366 | 1ku
A103: DRV5053VAQDBZ | B103: DS | C103: Automotive, high voltage (up to 38V), linear hall effect sensor | D103: Bipolar | E103: Y | F103: NA | G103: NA | H103: NA | I103: NA | J103: =1.12-0.7 -> 0.42 | K103: 0.05 | L103: 2.5 | M103: 3.8 | N103: 1 | O103: 1 | Q103: 2.7 | R103: 3.6 | S103: -140 | T103: -90 | U103: -45 | X103: 0.49 | Y103: 0.245 | Z103: 9 | AA103: 1.02 | AB103: 0.2 | AD103: 0.2 | AE103: 1.8 | AP103: 2 | AQ103: SOT-23|3 | AR103: 7 mm2: 2.37 x 2.92 (SOT-23|3) | AS103: 2500 | AT103: 500 | AU103: -40 to 125 | AV103: $0.366 | 1ku
A104: DRV5053VAQLPG | B104: DS | C104: Automotive, high voltage (up to 38V), linear hall effect sensor | D104: Bipolar | E104: Y | F104: =(1.62+1.42)/2-0.987 -> 0.533 | G104: 0.05 | H104: NA | I104: NA | J104: NA | K104: NA | L104: 2.5 | M104: 3.8 | N104: 1 | O104: 1 | Q104: 2.7 | R104: 3.6 | S104: -140 | T104: -90 | U104: -45 | X104: 0.49 | Y104: =X104/2 -> 0.245 | Z104: 9 | AA104: 1.02 | AB104: 0.2 | AD104: =AB104 -> 0.2 | AE104: 1.8 | AP104: 1 | AQ104: TO-92|3 | AR104: 6 mm2: 1.52 x 4 (TO-92|3) | AS104: 2500 | AT104: 500 | AU104: -40 to 125 | AV104: $0.366 | 1ku
A105: DRV5053CAQDBZ | B105: DS | C105: Automotive, high voltage (up to 38V), linear hall effect sensor | D105: Bipolar | E105: Y | F105: NA | G105: NA | H105: NA | I105: NA | J105: =1.12-0.7 -> 0.42 | K105: 0.05 | L105: 2.5 | M105: 3.8 | N105: 1 | O105: 1 | Q105: 2.7 | R105: 3.6 | S105: 10 | T105: 23 | U105: 35 | X105: 0.49 | Y105: 0.245 | Z105: 35 | AA105: 1.02 | AB105: 0.2 | AD105: 0.2 | AE105: 1.8 | AP105: 2 | AQ105: SOT-23|3 | AR105: 7 mm2: 2.37 x 2.92 (SOT-23|3) | AS105: 2500 | AT105: 500 | AU105: -40 to 125 | AV105: $0.366 | 1ku
A106: DRV5053CAQLPG | B106: DS | C106: Automotive, high voltage (up to 38V), linear hall effect sensor | D106: Bipolar | E106: Y | F106: =(1.62+1.42)/2-0.987 -> 0.533 | G106: 0.05 | H106: NA | I106: NA | J106: NA | K106: NA | L106: 2.5 | M106: 3.8 | N106: 1 | O106: 1 | Q106: 2.7 | R106: 3.6 | S106: 10 | T106: 23 | U106: 35 | X106: 0.49 | Y106: =X106/2 -> 0.245 | Z106: 35 | AA106: 1.02 | AB106: 0.2 | AD106: =AB106 -> 0.2 | AE106: 1.8 | AP106: 1 | AQ106: TO-92|3 | AR106: 6 mm2: 1.52 x 4 (TO-92|3) | AS106: 2500 | AT106: 500 | AU106: -40 to 125 | AV106: $0.366 | 1ku
A107: DRV5053EAQDBZ | B107: DS | C107: Automotive, high voltage (up to 38V), linear hall effect sensor | D107: Bipolar | E107: Y | F107: NA | G107: NA | H107: NA | I107: NA | J107: =1.12-0.7 -> 0.42 | K107: 0.05 | L107: 2.5 | M107: 3.8 | N107: 1 | O107: 1 | Q107: 2.7 | R107: 3.6 | S107: 20 | T107: 45 | U107: 70 | X107: 0.49 | Y107: 0.245 | Z107: 18 | AA107: 1.02 | AB107: 0.2 | AD107: 0.2 | AE107: 1.8 | AP107: 2 | AQ107: SOT-23|3 | AR107: 7 mm2: 2.37 x 2.92 (SOT-23|3) | AS107: 2500 | AT107: 500 | AU107: -40 to 125 | AV107: $0.366 | 1ku
A108: DRV5053EAQLPG | B108: DS | C108: Automotive, high voltage (up to 38V), linear hall effect sensor | D108: Bipolar | E108: Y | F108: =(1.62+1.42)/2-0.987 -> 0.533 | G108: 0.05 | H108: NA | I108: NA | J108: NA | K108: NA | L108: 2.5 | M108: 3.8 | N108: 1 | O108: 1 | Q108: 2.7 | R108: 3.6 | S108: 20 | T108: 45 | U108: 70 | X108: 0.49 | Y108: =X108/2 -> 0.245 | Z108: 18 | AA108: 1.02 | AB108: 0.2 | AD108: =AB108 -> 0.2 | AE108: 1.8 | AP108: 1 | AQ108: TO-92|3 | AR108: 6 mm2: 1.52 x 4 (TO-92|3) | AS108: 2500 | AT108: 500 | AU108: -40 to 125 | AV108: $0.366 | 1ku

Sheet DeviceComparison (hidden)
A1: dx | B1: dy | C1: dz | D1: Bx | E1: By | F1: Bz | G1: angle
A2: 0 | B2: 0 | C2: 3.47 | D2: 0 | E2: 0 | F2: 123.5621261 | G2: 123.5621261
A3: 0 | B3: 0 | C3: 3.496470588 | D3: 0 | E3: 0 | F3: 122.1884103 | G3: 122.1884103
A4: 0 | B4: 0 | C4: 3.522941176 | D4: 0 | E4: 0 | F4: 120.8146946 | G4: 120.8146946
A5: 0 | B5: 0 | C5: 3.549411765 | D5: 0 | E5: 0 | F5: 119.4409788 | G5: 119.4409788
A6: 0 | B6: 0 | C6: 3.575882353 | D6: 0 | E6: 0 | F6: 118.067263 | G6: 118.067263
A7: 0 | B7: 0 | C7: 3.602352941 | D7: 0 | E7: 0 | F7: 116.6935473 | G7: 116.6935473
A8: 0 | B8: 0 | C8: 3.628823529 | D8: 0 | E8: 0 | F8: 115.3198315 | G8: 115.3198315
A9: 0 | B9: 0 | C9: 3.655294118 | D9: 0 | E9: 0 | F9: 113.9461157 | G9: 113.9461157
A10: 0 | B10: 0 | C10: 3.681764706 | D10: 0 | E10: 0 | F10: 112.5724 | G10: 112.5724
A11: 0 | B11: 0 | C11: 3.708235294 | D11: 0 | E11: 0 | F11: 111.1986842 | G11: 111.1986842
A12: 0 | B12: 0 | C12: 3.734705882 | D12: 0 | E12: 0 | F12: 109.8249684 | G12: 109.8249684
A13: 0 | B13: 0 | C13: 3.761176471 | D13: 0 | E13: 0 | F13: 108.4512527 | G13: 108.4512527
A14: 0 | B14: 0 | C14: 3.787647059 | D14: 0 | E14: 0 | F14: 107.0775369 | G14: 107.0775369
A15: 0 | B15: 0 | C15: 3.814117647 | D15: 0 | E15: 0 | F15: 105.7038211 | G15: 105.7038211
A16: 0 | B16: 0 | C16: 3.840588235 | D16: 0 | E16: 0 | F16: 104.3301054 | G16: 104.3301054
A17: 0 | B17: 0 | C17: 3.867058824 | D17: 0 | E17: 0 | F17: 102.9563896 | G17: 102.9563896
A18: 0 | B18: 0 | C18: 3.893529412 | D18: 0 | E18: 0 | F18: 101.5826739 | G18: 101.5826739
A19: 0 | B19: 0 | C19: 3.92 | D19: 0 | E19: 0 | F19: 100.2089581 | G19: 100.2089581
A20: 0 | B20: 0 | C20: 3.946470588 | D20: 0 | E20: 0 | F20: 98.83524232 | G20: 98.83524232
A21: 0 | B21: 0 | C21: 3.972941176 | D21: 0 | E21: 0 | F21: 97.46152656 | G21: 97.46152656
A22: 0 | B22: 0 | C22: 3.999411765 | D22: 0 | E22: 0 | F22: 96.08781079 | G22: 96.08781079
A23: 0 | B23: 0 | C23: 4.025882353 | D23: 0 | E23: 0 | F23: 94.71409503 | G23: 94.71409503
A24: 0 | B24: 0 | C24: 4.052352941 | D24: 0 | E24: 0 | F24: 93.34037926 | G24: 93.34037926
A25: 0 | B25: 0 | C25: 4.078823529 | D25: 0 | E25: 0 | F25: 91.9666635 | G25: 91.9666635
A26: 0 | B26: 0 | C26: 4.105294118 | D26: 0 | E26: 0 | F26: 90.59294773 | G26: 90.59294773
A27: 0 | B27: 0 | C27: 4.131764706 | D27: 0 | E27: 0 | F27: 89.21923197 | G27: 89.21923197
A28: 0 | B28: 0 | C28: 4.158235294 | D28: 0 | E28: 0 | F28: 87.8455162 | G28: 87.8455162
A29: 0 | B29: 0 | C29: 4.184705882 | D29: 0 | E29: 0 | F29: 86.47180044 | G29: 86.47180044
A30: 0 | B30: 0 | C30: 4.211176471 | D30: 0 | E30: 0 | F30: 85.09808467 | G30: 85.09808467
A31: 0 | B31: 0 | C31: 4.237647059 | D31: 0 | E31: 0 | F31: 83.72436891 | G31: 83.72436891
A32: 0 | B32: 0 | C32: 4.264117647 | D32: 0 | E32: 0 | F32: 82.35065314 | G32: 82.35065314
A33: 0 | B33: 0 | C33: 4.290588235 | D33: 0 | E33: 0 | F33: 80.97693738 | G33: 80.97693738
A34: 0 | B34: 0 | C34: 4.317058824 | D34: 0 | E34: 0 | F34: 79.60322161 | G34: 79.60322161
A35: 0 | B35: 0 | C35: 4.343529412 | D35: 0 | E35: 0 | F35: 78.22950585 | G35: 78.22950585
A36: 0 | B36: 0 | C36: 4.37 | D36: 0 | E36: 0 | F36: 76.85579008 | G36: 76.85579008
A37: 0 | B37: 0 | C37: 4.396470588 | D37: 0 | E37: 0 | F37: 75.48207432 | G37: 75.48207432
A38: 0 | B38: 0 | C38: 4.422941176 | D38: 0 | E38: 0 | F38: 74.10835855 | G38: 74.10835855
A39: 0 | B39: 0 | C39: 4.449411765 | D39: 0 | E39: 0 | F39: 72.73464279 | G39: 72.73464279
A40: 0 | B40: 0 | C40: 4.475882353 | D40: 0 | E40: 0 | F40: 71.89566848 | G40: 71.89566848
A41: 0 | B41: 0 | C41: 4.502352941 | D41: 0 | E41: 0 | F41: 71.39152864 | G41: 71.39152864
A42: 0 | B42: 0 | C42: 4.528823529 | D42: 0 | E42: 0 | F42: 70.88738879 | G42: 70.88738879
A43: 0 | B43: 0 | C43: 4.555294118 | D43: 0 | E43: 0 | F43: 70.38324895 | G43: 70.38324895
A44: 0 | B44: 0 | C44: 4.581764706 | D44: 0 | E44: 0 | F44: 69.87910911 | G44: 69.87910911
A45: 0 | B45: 0 | C45: 4.608235294 | D45: 0 | E45: 0 | F45: 69.37496926 | G45: 69.37496926
A46: 0 | B46: 0 | C46: 4.634705882 | D46: 0 | E46: 0 | F46: 68.87082942 | G46: 68.87082942
A47: 0 | B47: 0 | C47: 4.661176471 | D47: 0 | E47: 0 | F47: 68.36668958 | G47: 68.36668958
A48: 0 | B48: 0 | C48: 4.687647059 | D48: 0 | E48: 0 | F48: 67.86254973 | G48: 67.86254973
A49: 0 | B49: 0 | C49: 4.714117647 | D49: 0 | E49: 0 | F49: 67.35840989 | G49: 67.35840989
A50: 0 | B50: 0 | C50: 4.740588235 | D50: 0 | E50: 0 | F50: 66.85427005 | G50: 66.85427005
A51: 0 | B51: 0 | C51: 4.767058824 | D51: 0 | E51: 0 | F51: 66.3501302 | G51: 66.3501302
A52: 0 | B52: 0 | C52: 4.793529412 | D52: 0 | E52: 0 | F52: 65.84599036 | G52: 65.84599036
A53: 0 | B53: 0 | C53: 4.82 | D53: 0 | E53: 0 | F53: 65.34185052 | G53: 65.34185052
A54: 0 | B54: 0 | C54: 4.846470588 | D54: 0 | E54: 0 | F54: 64.83771067 | G54: 64.83771067
A55: 0 | B55: 0 | C55: 4.872941176 | D55: 0 | E55: 0 | F55: 64.33357083 | G55: 64.33357083
A56: 0 | B56: 0 | C56: 4.899411765 | D56: 0 | E56: 0 | F56: 63.82943099 | G56: 63.82943099
A57: 0 | B57: 0 | C57: 4.925882353 | D57: 0 | E57: 0 | F57: 63.32529114 | G57: 63.32529114
A58: 0 | B58: 0 | C58: 4.952352941 | D58: 0 | E58: 0 | F58: 62.8211513 | G58: 62.8211513
A59: 0 | B59: 0 | C59: 4.978823529 | D59: 0 | E59: 0 | F59: 62.31701146 | G59: 62.31701146
A60: 0 | B60: 0 | C60: 5.005294118 | D60: 0 | E60: 0 | F60: 61.81287161 | G60: 61.81287161
A61: 0 | B61: 0 | C61: 5.031764706 | D61: 0 | E61: 0 | F61: 61.30873177 | G61: 61.30873177
A62: 0 | B62: 0 | C62: 5.058235294 | D62: 0 | E62: 0 | F62: 60.80459193 | G62: 60.80459193
A63: 0 | B63: 0 | C63: 5.084705882 | D63: 0 | E63: 0 | F63: 60.30045208 | G63: 60.30045208
A64: 0 | B64: 0 | C64: 5.111176471 | D64: 0 | E64: 0 | F64: 59.79631224 | G64: 59.79631224
A65: 0 | B65: 0 | C65: 5.137647059 | D65: 0 | E65: 0 | F65: 59.2921724 | G65: 59.2921724
A66: 0 | B66: 0 | C66: 5.164117647 | D66: 0 | E66: 0 | F66: 58.78803255 | G66: 58.78803255
A67: 0 | B67: 0 | C67: 5.190588235 | D67: 0 | E67: 0 | F67: 58.28389271 | G67: 58.28389271
A68: 0 | B68: 0 | C68: 5.217058824 | D68: 0 | E68: 0 | F68: 57.77975287 | G68: 57.77975287
A69: 0 | B69: 0 | C69: 5.243529412 | D69: 0 | E69: 0 | F69: 57.27561302 | G69: 57.27561302
A70: 0 | B70: 0 | C70: 5.27 | D70: 0 | E70: 0 | F70: 56.77147318 | G70: 56.77147318
A71: 0 | B71: 0 | C71: 5.296470588 | D71: 0 | E71: 0 | F71: 56.26733334 | G71: 56.26733334
A72: 0 | B72: 0 | C72: 5.322941176 | D72: 0 | E72: 0 | F72: 55.76319349 | G72: 55.76319349
A73: 0 | B73: 0 | C73: 5.349411765 | D73: 0 | E73: 0 | F73: 55.25905365 | G73: 55.25905365
A74: 0 | B74: 0 | C74: 5.375882353 | D74: 0 | E74: 0 | F74: 54.75491381 | G74: 54.75491381
A75: 0 | B75: 0 | C75: 5.402352941 | D75: 0 | E75: 0 | F75: 54.25077396 | G75: 54.25077396
A76: 0 | B76: 0 | C76: 5.428823529 | D76: 0 | E76: 0 | F76: 53.74663412 | G76: 53.74663412
A77: 0 | B77: 0 | C77: 5.455294118 | D77: 0 | E77: 0 | F77: 53.24249428 | G77: 53.24249428
A78: 0 | B78: 0 | C78: 5.481764706 | D78: 0 | E78: 0 | F78: 52.73835443 | G78: 52.73835443
A79: 0 | B79: 0 | C79: 5.508235294 | D79: 0 | E79: 0 | F79: 52.23421459 | G79: 52.23421459
A80: 0 | B80: 0 | C80: 5.534705882 | D80: 0 | E80: 0 | F80: 51.73007475 | G80: 51.73007475
A81: 0 | B81: 0 | C81: 5.561176471 | D81: 0 | E81: 0 | F81: 51.2259349 | G81: 51.2259349
A82: 0 | B82: 0 | C82: 5.587647059 | D82: 0 | E82: 0 | F82: 50.72179506 | G82: 50.72179506
A83: 0 | B83: 0 | C83: 5.614117647 | D83: 0 | E83: 0 | F83: 50.21765522 | G83: 50.21765522
A84: 0 | B84: 0 | C84: 5.640588235 | D84: 0 | E84: 0 | F84: 49.71351537 | G84: 49.71351537
A85: 0 | B85: 0 | C85: 5.667058824 | D85: 0 | E85: 0 | F85: 49.20937553 | G85: 49.20937553
A86: 0 | B86: 0 | C86: 5.693529412 | D86: 0 | E86: 0 | F86: 48.70523569 | G86: 48.70523569
A87: 0 | B87: 0 | C87: 5.72 | D87: 0 | E87: 0 | F87: 48.20109584 | G87: 48.20109584
A88: 0 | B88: 0 | C88: 5.746470588 | D88: 0 | E88: 0 | F88: 47.696956 | G88: 47.696956
A89: 0 | B89: 0 | C89: 5.772941176 | D89: 0 | E89: 0 | F89: 47.19281616 | G89: 47.19281616
A90: 0 | B90: 0 | C90: 5.799411765 | D90: 0 | E90: 0 | F90: 46.68867631 | G90: 46.68867631
A91: 0 | B91: 0 | C91: 5.825882353 | D91: 0 | E91: 0 | F91: 46.18453647 | G91: 46.18453647
A92: 0 | B92: 0 | C92: 5.852352941 | D92: 0 | E92: 0 | F92: 45.68039663 | G92: 45.68039663
A93: 0 | B93: 0 | C93: 5.878823529 | D93: 0 | E93: 0 | F93: 45.17625678 | G93: 45.17625678
A94: 0 | B94: 0 | C94: 5.905294118 | D94: 0 | E94: 0 | F94: 44.67211694 | G94: 44.67211694
A95: 0 | B95: 0 | C95: 5.931764706 | D95: 0 | E95: 0 | F95: 44.1679771 | G95: 44.1679771
A96: 0 | B96: 0 | C96: 5.958235294 | D96: 0 | E96: 0 | F96: 43.83304009 | G96: 43.83304009
A97: 0 | B97: 0 | C97: 5.984705882 | D97: 0 | E97: 0 | F97: 43.51445135 | G97: 43.51445135
A98: 0 | B98: 0 | C98: 6.011176471 | D98: 0 | E98: 0 | F98: 43.19586261 | G98: 43.19586261
A99: 0 | B99: 0 | C99: 6.037647059 | D99: 0 | E99: 0 | F99: 42.87727387 | G99: 42.87727387
A100: 0 | B100: 0 | C100: 6.064117647 | D100: 0 | E100: 0 | F100: 42.55868513 | G100: 42.55868513
A101: 0 | B101: 0 | C101: 6.090588235 | D101: 0 | E101: 0 | F101: 42.24009639 | G101: 42.24009639
A102: 0 | B102: 0 | C102: 6.117058824 | D102: 0 | E102: 0 | F102: 41.92150765 | G102: 41.92150765
A103: 0 | B103: 0 | C103: 6.143529412 | D103: 0 | E103: 0 | F103: 41.60291891 | G103: 41.60291891
A104: 0 | B104: 0 | C104: 6.17 | D104: 0 | E104: 0 | F104: 41.28433017 | G104: 41.28433017
A105: 0 | B105: 0 | C105: 6.196470588 | D105: 0 | E105: 0 | F105: 40.96574143 | G105: 40.96574143
A106: 0 | B106: 0 | C106: 6.222941176 | D106: 0 | E106: 0 | F106: 40.64715269 | G106: 40.64715269
A107: 0 | B107: 0 | C107: 6.249411765 | D107: 0 | E107: 0 | F107: 40.32856394 | G107: 40.32856394
A108: 0 | B108: 0 | C108: 6.275882353 | D108: 0 | E108: 0 | F108: 40.0099752 | G108: 40.0099752
A109: 0 | B109: 0 | C109: 6.302352941 | D109: 0 | E109: 0 | F109: 39.69138646 | G109: 39.69138646
A110: 0 | B110: 0 | C110: 6.328823529 | D110: 0 | E110: 0 | F110: 39.37279772 | G110: 39.37279772
A111: 0 | B111: 0 | C111: 6.355294118 | D111: 0 | E111: 0 | F111: 39.05420898 | G111: 39.05420898
A112: 0 | B112: 0 | C112: 6.381764706 | D112: 0 | E112: 0 | F112: 38.73562024 | G112: 38.73562024
A113: 0 | B113: 0 | C113: 6.408235294 | D113: 0 | E113: 0 | F113: 38.4170315 | G113: 38.4170315
A114: 0 | B114: 0 | C114: 6.434705882 | D114: 0 | E114: 0 | F114: 38.09844276 | G114: 38.09844276
A115: 0 | B115: 0 | C115: 6.461176471 | D115: 0 | E115: 0 | F115: 37.77985402 | G115: 37.77985402
A116: 0 | B116: 0 | C116: 6.487647059 | D116: 0 | E116: 0 | F116: 37.46126528 | G116: 37.46126528
A117: 0 | B117: 0 | C117: 6.514117647 | D117: 0 | E117: 0 | F117: 37.14267654 | G117: 37.14267654
A118: 0 | B118: 0 | C118: 6.540588235 | D118: 0 | E118: 0 | F118: 36.8240878 | G118: 36.8240878
A119: 0 | B119: 0 | C119: 6.567058824 | D119: 0 | E119: 0 | F119: 36.50549906 | G119: 36.50549906
A120: 0 | B120: 0 | C120: 6.593529412 | D120: 0 | E120: 0 | F120: 36.18691031 | G120: 36.18691031
A121: 0 | B121: 0 | C121: 6.62 | D121: 0 | E121: 0 | F121: 35.86832157 | G121: 35.86832157
A122: 0 | B122: 0 | C122: 6.646470588 | D122: 0 | E122: 0 | F122: 35.54973283 | G122: 35.54973283
A123: 0 | B123: 0 | C123: 6.672941176 | D123: 0 | E123: 0 | F123: 35.23114409 | G123: 35.23114409
A124: 0 | B124: 0 | C124: 6.699411765 | D124: 0 | E124: 0 | F124: 34.91255535 | G124: 34.91255535
A125: 0 | B125: 0 | C125: 6.725882353 | D125: 0 | E125: 0 | F125: 34.59396661 | G125: 34.59396661
A126: 0 | B126: 0 | C126: 6.752352941 | D126: 0 | E126: 0 | F126: 34.27537787 | G126: 34.27537787
A127: 0 | B127: 0 | C127: 6.778823529 | D127: 0 | E127: 0 | F127: 33.95678913 | G127: 33.95678913
A128: 0 | B128: 0 | C128: 6.805294118 | D128: 0 | E128: 0 | F128: 33.63820039 | G128: 33.63820039
A129: 0 | B129: 0 | C129: 6.831764706 | D129: 0 | E129: 0 | F129: 33.31961165 | G129: 33.31961165
A130: 0 | B130: 0 | C130: 6.858235294 | D130: 0 | E130: 0 | F130: 33.00102291 | G130: 33.00102291
A131: 0 | B131: 0 | C131: 6.884705882 | D131: 0 | E131: 0 | F131: 32.68243417 | G131: 32.68243417
A132: 0 | B132: 0 | C132: 6.911176471 | D132: 0 | E132: 0 | F132: 32.36384542 | G132: 32.36384542
A133: 0 | B133: 0 | C133: 6.937647059 | D133: 0 | E133: 0 | F133: 32.04525668 | G133: 32.04525668
A134: 0 | B134: 0 | C134: 6.964117647 | D134: 0 | E134: 0 | F134: 31.72666794 | G134: 31.72666794
A135: 0 | B135: 0 | C135: 6.990588235 | D135: 0 | E135: 0 | F135: 31.4080792 | G135: 31.4080792
A136: 0 | B136: 0 | C136: 7.017058824 | D136: 0 | E136: 0 | F136: 31.08949046 | G136: 31.08949046
A137: 0 | B137: 0 | C137: 7.043529412 | D137: 0 | E137: 0 | F137: 30.77090172 | G137: 30.77090172
A138: 0 | B138: 0 | C138: 7.07 | D138: 0 | E138: 0 | F138: 30.45231298 | G138: 30.45231298
A139: 0 | B139: 0 | C139: 7.096470588 | D139: 0 | E139: 0 | F139: 30.13372424 | G139: 30.13372424
A140: 0 | B140: 0 | C140: 7.122941176 | D140: 0 | E140: 0 | F140: 29.8151355 | G140: 29.8151355
A141: 0 | B141: 0 | C141: 7.149411765 | D141: 0 | E141: 0 | F141: 29.49654676 | G141: 29.49654676
A142: 0 | B142: 0 | C142: 7.175882353 | D142: 0 | E142: 0 | F142: 29.17795802 | G142: 29.17795802
A143: 0 | B143: 0 | C143: 7.202352941 | D143: 0 | E143: 0 | F143: 28.85936928 | G143: 28.85936928
A144: 0 | B144: 0 | C144: 7.228823529 | D144: 0 | E144: 0 | F144: 28.54078054 | G144: 28.54078054
A145: 0 | B145: 0 | C145: 7.255294118 | D145: 0 | E145: 0 | F145: 28.22219179 | G145: 28.22219179
A146: 0 | B146: 0 | C146: 7.281764706 | D146: 0 | E146: 0 | F146: 27.90360305 | G146: 27.90360305
A147: 0 | B147: 0 | C147: 7.308235294 | D147: 0 | E147: 0 | F147: 27.58501431 | G147: 27.58501431
A148: 0 | B148: 0 | C148: 7.334705882 | D148: 0 | E148: 0 | F148: 27.26642557 | G148: 27.26642557
A149: 0 | B149: 0 | C149: 7.361176471 | D149: 0 | E149: 0 | F149: 26.94783683 | G149: 26.94783683
A150: 0 | B150: 0 | C150: 7.387647059 | D150: 0 | E150: 0 | F150: 26.62924809 | G150: 26.62924809
A151: 0 | B151: 0 | C151: 7.414117647 | D151: 0 | E151: 0 | F151: 26.34897648 | G151: 26.34897648
A152: 0 | B152: 0 | C152: 7.440588235 | D152: 0 | E152: 0 | F152: 26.21386215 | G152: 26.21386215
A153: 0 | B153: 0 | C153: 7.467058824 | D153: 0 | E153: 0 | F153: 26.07874782 | G153: 26.07874782
A154: 0 | B154: 0 | C154: 7.493529412 | D154: 0 | E154: 0 | F154: 25.94363349 | G154: 25.94363349
A155: 0 | B155: 0 | C155: 7.52 | D155: 0 | E155: 0 | F155: 25.80851916 | G155: 25.80851916
A156: 0 | B156: 0 | C156: 7.546470588 | D156: 0 | E156: 0 | F156: 25.67340483 | G156: 25.67340483
A157: 0 | B157: 0 | C157: 7.572941176 | D157: 0 | E157: 0 | F157: 25.5382905 | G157: 25.5382905
A158: 0 | B158: 0 | C158: 7.599411765 | D158: 0 | E158: 0 | F158: 25.40317617 | G158: 25.40317617
A159: 0 | B159: 0 | C159: 7.625882353 | D159: 0 | E159: 0 | F159: 25.26806184 | G159: 25.26806184
A160: 0 | B160: 0 | C160: 7.652352941 | D160: 0 | E160: 0 | F160: 25.1329475 | G160: 25.1329475
A161: 0 | B161: 0 | C161: 7.678823529 | D161: 0 | E161: 0 | F161: 24.99783317 | G161: 24.99783317
A162: 0 | B162: 0 | C162: 7.705294118 | D162: 0 | E162: 0 | F162: 24.86271884 | G162: 24.86271884
A163: 0 | B163: 0 | C163: 7.731764706 | D163: 0 | E163: 0 | F163: 24.72760451 | G163: 24.72760451
A164: 0 | B164: 0 | C164: 7.758235294 | D164: 0 | E164: 0 | F164: 24.59249018 | G164: 24.59249018
A165: 0 | B165: 0 | C165: 7.784705882 | D165: 0 | E165: 0 | F165: 24.45737585 | G165: 24.45737585
A166: 0 | B166: 0 | C166: 7.811176471 | D166: 0 | E166: 0 | F166: 24.32226152 | G166: 24.32226152
A167: 0 | B167: 0 | C167: 7.837647059 | D167: 0 | E167: 0 | F167: 24.18714719 | G167: 24.18714719
A168: 0 | B168: 0 | C168: 7.864117647 | D168: 0 | E168: 0 | F168: 24.05203286 | G168: 24.05203286
A169: 0 | B169: 0 | C169: 7.890588235 | D169: 0 | E169: 0 | F169: 23.91691853 | G169: 23.91691853
A170: 0 | B170: 0 | C170: 7.917058824 | D170: 0 | E170: 0 | F170: 23.7818042 | G170: 23.7818042
A171: 0 | B171: 0 | C171: 7.943529412 | D171: 0 | E171: 0 | F171: 23.64668987 | G171: 23.64668987
A172: 0 | B172: 0 | C172: 7.97 | D172: 0 | E172: 0 | F172: 23.51157553 | G172: 23.51157553
A173: 0 | B173: 0 | C173: 7.996470588 | D173: 0 | E173: 0 | F173: 23.3764612 | G173: 23.3764612
A174: 0 | B174: 0 | C174: 8.022941176 | D174: 0 | E174: 0 | F174: 23.24134687 | G174: 23.24134687
A175: 0 | B175: 0 | C175: 8.049411765 | D175: 0 | E175: 0 | F175: 23.10623254 | G175: 23.10623254
A176: 0 | B176: 0 | C176: 8.075882353 | D176: 0 | E176: 0 | F176: 22.97111821 | G176: 22.97111821
A177: 0 | B177: 0 | C177: 8.102352941 | D177: 0 | E177: 0 | F177: 22.83600388 | G177: 22.83600388
A178: 0 | B178: 0 | C178: 8.128823529 | D178: 0 | E178: 0 | F178: 22.70088955 | G178: 22.70088955
A179: 0 | B179: 0 | C179: 8.155294118 | D179: 0 | E179: 0 | F179: 22.56577522 | G179: 22.56577522
A180: 0 | B180: 0 | C180: 8.181764706 | D180: 0 | E180: 0 | F180: 22.43066089 | G180: 22.43066089
A181: 0 | B181: 0 | C181: 8.208235294 | D181: 0 | E181: 0 | F181: 22.29554656 | G181: 22.29554656
A182: 0 | B182: 0 | C182: 8.234705882 | D182: 0 | E182: 0 | F182: 22.16043223 | G182: 22.16043223
A183: 0 | B183: 0 | C183: 8.261176471 | D183: 0 | E183: 0 | F183: 22.02531789 | G183: 22.02531789
A184: 0 | B184: 0 | C184: 8.287647059 | D184: 0 | E184: 0 | F184: 21.89020356 | G184: 21.89020356
A185: 0 | B185: 0 | C185: 8.314117647 | D185: 0 | E185: 0 | F185: 21.75508923 | G185: 21.75508923
A186: 0 | B186: 0 | C186: 8.340588235 | D186: 0 | E186: 0 | F186: 21.6199749 | G186: 21.6199749
A187: 0 | B187: 0 | C187: 8.367058824 | D187: 0 | E187: 0 | F187: 21.48486057 | G187: 21.48486057
A188: 0 | B188: 0 | C188: 8.393529412 | D188: 0 | E188: 0 | F188: 21.34974624 | G188: 21.34974624
A189: 0 | B189: 0 | C189: 8.42 | D189: 0 | E189: 0 | F189: 21.21463191 | G189: 21.21463191
A190: 0 | B190: 0 | C190: 8.446470588 | D190: 0 | E190: 0 | F190: 21.07951758 | G190: 21.07951758
A191: 0 | B191: 0 | C191: 8.472941176 | D191: 0 | E191: 0 | F191: 20.94440325 | G191: 20.94440325
A192: 0 | B192: 0 | C192: 8.499411765 | D192: 0 | E192: 0 | F192: 20.80928892 | G192: 20.80928892
A193: 0 | B193: 0 | C193: 8.525882353 | D193: 0 | E193: 0 | F193: 20.67417459 | G193: 20.67417459
A194: 0 | B194: 0 | C194: 8.552352941 | D194: 0 | E194: 0 | F194: 20.53906026 | G194: 20.53906026
A195: 0 | B195: 0 | C195: 8.578823529 | D195: 0 | E195: 0 | F195: 20.40394592 | G195: 20.40394592
A196: 0 | B196: 0 | C196: 8.605294118 | D196: 0 | E196: 0 | F196: 20.26883159 | G196: 20.26883159
A197: 0 | B197: 0 | C197: 8.631764706 | D197: 0 | E197: 0 | F197: 20.13371726 | G197: 20.13371726
A198: 0 | B198: 0 | C198: 8.658235294 | D198: 0 | E198: 0 | F198: 19.99860293 | G198: 19.99860293
A199: 0 | B199: 0 | C199: 8.684705882 | D199: 0 | E199: 0 | F199: 19.8634886 | G199: 19.8634886
A200: 0 | B200: 0 | C200: 8.711176471 | D200: 0 | E200: 0 | F200: 19.72837427 | G200: 19.72837427
... 822 more rows

Sheet Help_Page
E1: Help Page
B4: This Hall Effect Sensor Proximity tool is designed to assist with quick preliminary calculations for determing Hall and magnet sensor placement. While intended to assist in design, it is not expected serve as a replacement to bench verification. Please exercise due diligence in verifying your setup and final design on the bench.
B6: This tool is composed of six general design stages listed below. First pass design requires the user complete each stage sequentially.
B7: 1- | C7: General Implementation
B8: 2- | C8: Magnet Characteristics
B9: 3- | C9: Displacement Dimensions
B10: 4- | C10: Sensor Operation Conditions
B11: 5- | C11: Sensor Filters
B12: 6- | C12: Calculation
B15: General Implementation
B17: Magnet Movement
B32: Magnet Shapes
B39: L = Length
B40: W = Width
B41: T = Thickness
B42: R = Radius
B43: Ri = Inner Radius
B45: Magnet Orientation
B57: Magnet Characteristics
B70: L = Length
B71: W = Width
B72: T = Thickness
B86: R = Radius
B87: T = Thickness
B99: R = Radius
B101: Displacement Dimensions
B103: Head-On
B104: For Head-On displacement, all measurements are made relative to the bottom face of the magnet and the top face of the sensor.
B107: Slide-By
B113: Hinge
B125: Calculation
B145: The chart range is bounded by the values entered in d1 and d2. If the range is sufficiently large and appropriately chosen, both BOP max and BRP min should be visible. These are the key specifications that need to be within your design range to guarantee the your system will adequately trigger for all units.
B146: FEMM
B147: In order to get calculation results for the cylinder or sphere magnet, you will need to have FEMM installed on your computer. FEMM can be found at the link below.
B148: https://www.femm.info/wiki/HomePage
B167: Error
B168: It is possible through some combinations of choices and entries that the tool might run into an error or issue. In those cases, you may be able to resolve the issue by hitting clear.

Sheet About
B3: Version Number | C3: 1.0
I4: Version History | S4: Relevant Citations
I5: Version | J5: Change List Description | S5: For Block Magnet Equation, see Andreev, Andrew. Universal Method for the Calculation of Magnetic Microelectronic Components: the saturated ferromagnetic Rectangular Prism and the Rectangular Coil located at IEEE
I6: 1.0 | J6: Initial Release
